TRANS.No,Service Area Categorisation,Service Division Categorisation,Responsible Unit,Unit Code,Expenses Type,Expenses Sub Type,Expense Code,Narrative,Amount,Invoice Date,Cap/rev,SupplierName
1,Central Services,SupS Chief Execs,Local Involvement Network,A01039,Third Party Payments          ,Private Contractors           ,EH10,Contract Payments                       ,652,30/06/2014,REV,VOICEABILITY
2,Cultural Env Reg&Plan Services,Comm Safety (Crime Reduction),Crime and Strategy Team,A01100,Third Party Payments          ,Private Contractors           ,EH02,Miscellaneous Hired Services,10051.2,30/05/2014,REV,CORDIS BRIGHT LTD             
3,Cultural Env Reg&Plan Services,Comm Safety (Crime Reduction),Crime and Strategy Team,A01100,Third Party Payments          ,Private Contractors           ,EH02,Miscellaneous Hired Services            ,1500,01/07/2014,REV,STOP HATE UK                  
4,Cultural Env Reg&Plan Services,Comm Safety (Crime Reduction),CCTV,A01200,Supplies & Services           ,Equip Furniture/Materials     ,DA01,Equipment - R & M                       ,2263.8,27/06/2014,REV,EUROVIA INFRASTRUCTURE LTD    
5,Cultural Env Reg&Plan Services,Comm Safety (Crime Reduction),CCTV,A01200,Supplies & Services           ,Equip Furniture/Materials     ,DA01,Equipment - R & M                       ,681.1,27/06/2014,REV,EUROVIA INFRASTRUCTURE LTD    
6,Cultural Env Reg&Plan Services,Comm Safety (Crime Reduction),CCTV,A01200,Supplies & Services           ,Equip Furniture/Materials     ,DA01,Equipment - R & M                       ,676.5,27/06/2014,REV,EUROVIA INFRASTRUCTURE LTD    
7,Cultural Env Reg&Plan Services,Comm Safety (Crime Reduction),CCTV,A01200,Supplies & Services           ,Equip Furniture/Materials     ,DA01,Equipment - R & M                       ,623.24,27/06/2014,REV,EUROVIA INFRASTRUCTURE LTD    
8,Cultural Env Reg&Plan Services,Comm Safety (Crime Reduction),CCTV,A01200,Supplies & Services           ,Services                      ,DF57,Consulting Engineers Fees               ,2263.65,01/05/2014,REV,GLOBAL MSC SECURITY LTD       
9,Central Services,SupS Chief Execs,NON-STATUTORY MARKETING & COMM,A02019,Supplies & Services           ,Prntng Stnry Gen Off Exp      ,DE22,Marketing                               ,500,17/06/2014,REV,JOGPOST LTD                   
10,Central Services,SupS Chief Execs,NON-STATUTORY MARKETING & COMM,A02019,Supplies & Services           ,Services                      ,DF02,Misc Advertising/Publicity              ,600,25/05/2014,REV,NEWSQUEST (LONDON)LTD         
11,Central Services,SupS Chief Execs,NON-STATUTORY MARKETING & COMM,A02019,Supplies & Services           ,Services                      ,DF02,Misc Advertising/Publicity              ,500,16/07/2014,REV,NEW FAMILY SOCIAL             
12,Central Services,SupS Chief Execs,Press and Public Relations.,A02026,Supplies & Services           ,Prntng Stnry Gen Off Exp      ,DE20,Council Magazine                        ,3715,24/06/2014,REV,DOMINO 4 LIMITED              
13,Central Services,SupS Chief Execs,Press and Public Relations.,A02026,Supplies & Services           ,Prntng Stnry Gen Off Exp      ,DE20,Council Magazine                        ,3892,04/07/2014,REV,LONDON LETTERBOX MARKETING    
14,CS -Oth Operating Inc & Expend,T/A Corporate Services,Prtng Jobs - Ext Agncy,A03041,Supplies & Services           ,Prntng Stnry Gen Off Exp      ,DE01,External Printing                       ,510,13/07/2014,REV,IMPRESS PRINT SERVICES LTD    
15,CS -Oth Operating Inc & Expend,T/A Corporate Services,Prtng Jobs - Ext Agncy,A03041,Supplies & Services           ,Prntng Stnry Gen Off Exp      ,DE01,External Printing                       ,1341,30/06/2014,REV,IMPRESS PRINT SERVICES LTD    
16,CS -Oth Operating Inc & Expend,T/A Corporate Services,Prtng Jobs - Ext Agncy,A03041,Supplies & Services           ,Prntng Stnry Gen Off Exp      ,DE01,External Printing                       ,7922,30/06/2014,REV,CLIFFE ENTERPRISE             
17,CS -Oth Operating Inc & Expend,T/A Corporate Services,PrintUnit-HighVolPhtcopying,A03042,Supplies & Services           ,Equip Furniture/Materials     ,DA06,Paper-Internal Print Jobs               ,6750,18/07/2014,REV,RAINBOW OFFICE SUPPLIES LTD   
18,CS -Oth Operating Inc & Expend,T/A Corporate Services,Translation Services,A04060,Supplies & Services           ,Services                      ,DF45,Payment of Sessional Workers            ,540,13/06/2014,REV,COSMIC EUROPE LIMTED          
19,CS -Oth Operating Inc & Expend,T/A Corporate Services,Translation Services,A04060,Supplies & Services           ,Services                      ,DF45,Payment of Sessional Workers            ,666,02/07/2014,REV,REDACTED
20,CS -Oth Operating Inc & Expend,T/A Corporate Services,Translation Services,A04060,Supplies & Services           ,Services                      ,DF45,Payment of Sessional Workers            ,657,20/06/2014,REV,REDACTED
21,CS -Oth Operating Inc & Expend,T/A Corporate Services,Translation Services,A04060,Supplies & Services           ,Services                      ,DF45,Payment of Sessional Workers            ,909,17/07/2014,REV,REDACTED
22,CS -Oth Operating Inc & Expend,T/A Corporate Services,Translation Services,A04060,Supplies & Services           ,Services                      ,DF46,Payment for Signers                     ,1204.95,19/06/2014,REV,CLARION INTERPRETING LTD      
23,Central Services,SupS Comm and Member Services,PROGRAMME OFFICE,A04068,Employees                     ,Direct Employee Expenses      ,AA17,AGENCY STAFF & CASUAL PAYMTS            ,5400,30/06/2014,REV,REDACTED
24,Central Services,Grants - Voluntary Groups,VOLUNTARY SECTOR COORDINATION,A04082,Supplies & Services           ,Grants and Subscriptions      ,DJ01,Grants                                  ,18000,03/06/2014,REV,AGE UK MERTON LIMITED         
25,Central Services,Grants - Voluntary Groups,VOLUNTARY SECTOR COORDINATION,A04082,Supplies & Services           ,Grants and Subscriptions      ,DJ04,Subscriptions                           ,54763,25/06/2014,REV,LONDON COUNCILS               
26,Central Services,SupS Comm and Member Services,COMMERICIAL SERVICES,A04085,Employees                     ,Direct Employee Expenses      ,AA17,Agency Staff & Casual Paymts            ,3390,25/06/2014,REV,HAYS RECRUITING EXPERTS       
27,Central Services,SupS Comm and Member Services,COMMERICIAL SERVICES,A04085,Employees                     ,Direct Employee Expenses      ,AA17,Agency Staff & Casual Paymts            ,2712,02/07/2014,REV,HAYS RECRUITING EXPERTS       
28,Central Services,SupS Comm and Member Services,COMMERICIAL SERVICES,A04085,Employees                     ,Direct Employee Expenses      ,AA17,Agency Staff & Casual Paymts            ,3390,09/07/2014,REV,HAYS RECRUITING EXPERTS       
29,Central Services,SupS Comm and Member Services,COMMERICIAL SERVICES,A04085,Employees                     ,Direct Employee Expenses      ,AA17,Agency Staff & Casual Paymts            ,14272.19,03/07/2014,REV,V4 SERVICES LIMITED           
30,Central Services,SupS Comm and Member Services,COMMERICIAL SERVICES,A04085,Employees                     ,Direct Employee Expenses      ,AA17,Agency Staff & Casual Paymts            ,3390,16/07/2014,REV,HAYS RECRUITING EXPERTS       
31,Central Services,SupS Comm and Member Services,COMMERICIAL SERVICES,A04085,Employees                     ,Direct Employee Expenses      ,AA17,Agency Staff & Casual Paymts            ,2712,11/06/2014,REV,HAYS RECRUITING EXPERTS       
32,Central Services,SupS Comm and Member Services,COMMERICIAL SERVICES,A04085,Employees                     ,Indirect Employee Expenses    ,AB02,Recruitment Adverts                     ,1339,22/07/2014,REV,PENNA COMMUNICATIONS (NO 2 A/C
33,Highways & Transport Services,On-street parking,Blue Badge Service,A04088,Supplies & Services           ,Comms and Computing           ,DG15,Network Maintenance                     ,982.22,01/07/2014,REV,NORTHGATE  INFORMATION SOLUT. 
34,Central Services,Emergency Planning (Cent Serv),Emergency Planning,B06138,Supplies & Services           ,Services                      ,DF04,Miscellaneous Expenses                  ,1515,24/07/2014,REV,CITY OF WESTMINSTER           
35,Central Services,SupS Health & Safety,Learning and Development,B06146,Employees                     ,Indirect Employee Expenses    ,AB56,Internal Training Costs                 ,650,07/06/2014,REV,KW TRAINING SERVICES          
36,Central Services,SupS Health & Safety,Learning and Development,B06146,Employees                     ,Indirect Employee Expenses    ,AB56,Internal Training Costs                 ,750,21/06/2014,REV,KW TRAINING SERVICES          
37,Central Services,SupS Health & Safety,Learning and Development,B06146,Employees                     ,Indirect Employee Expenses    ,AB56,Internal Training Costs                 ,800,22/05/2014,REV,KW TRAINING SERVICES          
38,Central Services,SupS Health & Safety,Learning and Development,B06146,Employees                     ,Indirect Employee Expenses    ,AB56,Internal Training Costs                 ,600,24/05/2014,REV,KW TRAINING SERVICES          
39,Central Services,SupS Health & Safety,Learning and Development,B06146,Employees                     ,Indirect Employee Expenses    ,AB57,EXTERNAL TRAINING COSTS                 ,835,13/01/2014,REV,ACAS                          
40,Central Services,SupS Health & Safety,Learning and Development,B06146,Employees                     ,Indirect Employee Expenses    ,AB57,EXTERNAL TRAINING COSTS                 ,835,10/02/2014,REV,ACAS                          
41,Central Services,SupS Health & Safety,Learning and Development,B06146,Employees                     ,Indirect Employee Expenses    ,AB57,EXTERNAL TRAINING COSTS                 ,2805,08/04/2014,REV,SERCO LTD                     
42,Central Services,SupS Health & Safety,Learning and Development,B06146,Employees                     ,Indirect Employee Expenses    ,AB57,EXTERNAL TRAINING COSTS                 ,2340,18/06/2014,REV,FACULTY HEALTH & SOCIAL CARE  
43,Central Services,SupS Health & Safety,Learning and Development,B06146,Employees                     ,Indirect Employee Expenses    ,AB57,EXTERNAL TRAINING COSTS                 ,4000,19/07/2014,REV,SPRING TECHNOLOGY             
44,Central Services,SupS Health & Safety,Learning and Development,B06146,Employees                     ,Indirect Employee Expenses    ,AB57,EXTERNAL TRAINING COSTS                 ,565.75,28/01/2014,REV,BILD                          
45,Central Services,SupS Health & Safety,Learning and Development,B06146,Supplies & Services           ,Expenses                      ,DH60,Members Training AP Creditors           ,998.5,02/07/2014,REV,THE BAIKIE-WOOD CONSULT'CY LTD
46,Central Services,SupS Health & Safety,Learning and Development,B06146,Supplies & Services           ,Expenses                      ,DH60,Members Training AP Creditors           ,1000,04/07/2014,REV,IDEA                          
47,Central Services,SupS Health & Safety,Learning and Development,B06146,Supplies & Services           ,Grants and Subscriptions      ,DJ04,Subscriptions                           ,3300,01/09/2014,REV,EMPLOYER'S FORUM ON DISABILIT 
132,,,Birches Close                           ,CC014RA,Other Capital Expenditure,,E1,Grants                                  ,111589.86,08/07/2014,CAP,ABILITY HOUSING ASSOCIATION   
133,,,Laptops for Other Staff                 ,CC018EB,Vehicles Plant Equipment and Machinery,,D3,Equipment                               ,1116,17/07/2014,CAP,EVERYTHING EVERYWHERE         
134,,,Disabled Facilities Grant DCLG          ,CE004RA,Other Capital Expenditure,,E1,Grants                                  ,2161.82,04/07/2014,CAP,CBS ADAPTATION                
135,,,Disabled Facilities Grant DCLG          ,CE004RA,Other Capital Expenditure,,E1,Grants                                  ,689.2,04/07/2014,CAP,STAYING FIRST                 
136,,,Disabled Facilities Grant DCLG          ,CE004RA,Other Capital Expenditure,,E1,Grants                                  ,1470,04/07/2014,CAP,REDACTED
137,,,Colliers Wd- Regeneration Fund          ,CE006FB,New Construction Conversion and Renovation,,B4,Contractor - Site works                 ,12177.51,02/07/2014,CAP,FM CONWAY LTD                 
138,,,Mitcham - Outer London Fund             ,CE006FC,New Construction Conversion and Renovation,,B3,Other Expenses D&S Structure            ,1936.29,29/05/2014,CAP,MAY GURNEY LTD T/A CARTLEDGE  
139,,,B674a-d Phase 1 Lambton rd              ,CE007CC,New Construction Conversion and Renovation,,B4,Contractor - Site works                 ,4455.85,09/07/2014,CAP,FM CONWAY LTD                 
140,,,B673a-c Phase 2 Lambton rd              ,CE007CD,New Construction Conversion and Renovation,,B4,Contractor - Site works                 ,4455.85,09/07/2014,CAP,FM CONWAY LTD                 
141,,,Parks Investment                        ,CE013SA,New Construction Conversion and Renovation,,B4,Contractor - Site works                 ,5735,27/06/2014,CAP,FORGEN RENEWABLES LIMITED     
142,,,Parks Investment                        ,CE013SA,New Construction Conversion and Renovation,,B4,Contractor - Site works                 ,1920,21/07/2014,CAP,REDACTED
143,,,Parks Investment                        ,CE013SA,New Construction Conversion and Renovation,,B4,Contractor - Site works                 ,21000,02/07/2014,CAP,THE CRESCENT FENCING CO.      
144,,,Parks Investment                        ,CE013SA,Vehicles Plant Equipment and Machinery,,D3,Equipment                               ,27300,30/05/2014,CAP,MACQUARIE EQUIP FINANCE (UK)LT
145,,,Surface Water Drainage                  ,CE024FA,New Construction Conversion and Renovation,,B4,Contractor - Site works                 ,6389.97,25/07/2014,CAP,FM CONWAY LTD                 
146,,,Borough Roads Maintenance               ,CE026FA,New Construction Conversion and Renovation,,B4,Contractor - Site works                 ,2000,24/07/2014,CAP,URETEK UK LTD                 
147,,,TFL Projected Slippage                  ,CE026SA,New Construction Conversion and Renovation,,B4,Contractor - Site works                 ,24687.82,31/03/2014,CAP,FM CONWAY LTD                 
148,,,TFL Projected Slippage                  ,CE026SA,New Construction Conversion and Renovation,,B4,Contractor - Site works                 ,39189,30/05/2014,CAP,FM CONWAY LTD                 
149,,,TFL Projected Slippage                  ,CE026SA,New Construction Conversion and Renovation,,B4,Contractor - Site works                 ,10063.08,25/07/2014,CAP,FM CONWAY LTD                 
150,,,Repairs to Footways                     ,CE029FA,New Construction Conversion and Renovation,,B4,Contractor - Site works                 ,30383.43,25/07/2014,CAP,FM CONWAY LTD                 
151,,,Repairs to Footways                     ,CE029FA,New Construction Conversion and Renovation,,B4,Contractor - Site works                 ,21347.28,09/07/2014,CAP,FM CONWAY LTD                 
152,,,Repairs to Footways                     ,CE029FA,New Construction Conversion and Renovation,,B4,Contractor - Site works                 ,595.73,25/07/2014,CAP,FM CONWAY LTD                 
153,,,Street scene enhancements               ,CE066FE,New Construction Conversion and Renovation,,B4,Contractor - Site works                 ,3465,30/05/2014,CAP,COBSEN-DAVIES ROOFING (LOND)LT
154,,,Street scene enhancements               ,CE066FE,Vehicles Plant Equipment and Machinery,,D5,Software                                ,5125,30/04/2014,CAP,FORMARK SCAFFOLDING LTD       
155,,,Street scene enhancements               ,CE066FE,Vehicles Plant Equipment and Machinery,,D5,Software                                ,1250,30/04/2014,CAP,FORMARK SCAFFOLDING LTD       
156,,,Street Lighting Replacement Pr          ,CE068FA,New Construction Conversion and Renovation,,B4,Contractor - Site works                 ,2767.8,30/07/2014,CAP,MAY GURNEY LTD T/A CARTLEDGE  
157,,,Street Lighting Replacement Pr          ,CE068FA,New Construction Conversion and Renovation,,B6,Other Costs - Site works                ,1054,18/07/2014,CAP,UK POWER NETWORKS (OPERATIONS)
158,,,Street Lighting Replacement Pr          ,CE068FA,New Construction Conversion and Renovation,,B6,Other Costs - Site works                ,642,25/07/2014,CAP,UK POWER NETWORKS (OPERATIONS)
159,,,Street Lighting Replacement Pr          ,CE068FA,New Construction Conversion and Renovation,,B6,Other Costs - Site works                ,642,25/07/2014,CAP,UK POWER NETWORKS (OPERATIONS)
160,,,Street Lighting Replacement Pr          ,CE068FA,New Construction Conversion and Renovation,,B6,Other Costs - Site works                ,642,25/07/2014,CAP,UK POWER NETWORKS (OPERATIONS)
161,,,Replacement of Fleet Vehicles           ,CE082EA,New Construction Conversion and Renovation,,B4,Contractor - Site works                 ,2373.41,29/04/2014,CAP,STONERIDGE ELECTRONICS        
162,,,Replacement of Fleet Vehicles           ,CE082EA,New Construction Conversion and Renovation,,B4,Contractor - Site works                 ,1791,13/06/2014,CAP,STONERIDGE ELECTRONICS        
163,,,Replacement of Fleet Vehicles           ,CE082EA,New Construction Conversion and Renovation,,B4,Contractor - Site works                 ,615,07/05/2014,CAP,STONERIDGE ELECTRONICS        
164,,,Alley Gating Scheme - Fly Tip           ,CE087FA,Other Capital Expenditure,,E1,Grants                                  ,1783.2,25/07/2014,CAP,THE CRESCENT FENCING CO       
165,,,Accesibility Programme                  ,CE104FD,New Construction Conversion and Renovation,,B4,Contractor - Site works                 ,22000,23/06/2014,CAP,FM CONWAY LTD                 
166,,,Accesibility Programme                  ,CE104FD,New Construction Conversion and Renovation,,B4,Contractor - Site works                 ,1386.27,09/07/2014,CAP,FM CONWAY LTD                 
167,,,Accesibility Programme                  ,CE104FD,New Construction Conversion and Renovation,,B4,Contractor - Site works                 ,502.4,23/06/2014,CAP,FM CONWAY LTD                 
168,,,Accesibility Programme                  ,CE104FD,New Construction Conversion and Renovation,,B4,Contractor - Site works                 ,7866.93,09/07/2014,CAP,FM CONWAY LTD                 
169,,,Accesibility Programme                  ,CE104FD,New Construction Conversion and Renovation,,B4,Contractor - Site works                 ,8000,23/06/2014,CAP,FM CONWAY LTD                 
170,,,Accesibility Programme                  ,CE104FD,New Construction Conversion and Renovation,,B4,Contractor - Site works                 ,842,02/07/2014,CAP,FM CONWAY LTD                 
171,,,Cycle access/parking                    ,CE104FG,New Construction Conversion and Renovation,,B6,Other Costs - Site works                ,1920,13/06/2014,CAP,UK POWER NETWORKS (OPERATIONS)
172,,,Casualty Reduction & Schools            ,CE104RA,New Construction Conversion and Renovation,,B4,Contractor - Site works                 ,1476.46,23/06/2014,CAP,FM CONWAY LTD                 
173,,,Tamworth Paddling Pool                  ,CE110CL,New Construction Conversion and Renovation,,B4,Contractor - Site works                 ,31000,21/07/2014,CAP,REDACTED
174,,,Improved parking- shop parades          ,CE132FA,New Construction Conversion and Renovation,,B4,Contractor - Site works                 ,18456.25,02/07/2014,CAP,FM CONWAY LTD                 
175,,,Traffic Schemes                         ,CE142FA,New Construction Conversion and Renovation,,B4,Contractor - Site works                 ,3563.96,02/07/2014,CAP,FM CONWAY LTD                 
176,,,Traffic Schemes                         ,CE142FA,New Construction Conversion and Renovation,,B4,Contractor - Site works                 ,5942.94,23/06/2014,CAP,FM CONWAY LTD                 
177,,,Civic Centre refurbishment              ,CF001AB,New Construction Conversion and Renovation,,B2,Site Surveys D&S Structure              ,3477,31/03/2014,CAP,SIR FREDERICK SNOW & PARTNERS 
178,,,Civic Centre Windows                    ,CF001AK,New Construction Conversion and Renovation,,B4,Contractor - Site works                 ,23222.6,11/07/2014,CAP,HAZLEMERE WINDOW CO LIMITED   
179,,,Civic Centre- Upgrading lifts           ,CF001AL,New Construction Conversion and Renovation,,B1,Consultants Fees D&S Structure          ,3600,30/04/2014,CAP,BUTLER & YOUNG LIFT CONSULTANT
180,,,Energy Utility Invest to Save           ,CF002SA,New Construction Conversion and Renovation,,B4,Contractor - Site works                 ,7000,29/07/2014,CAP,MAY GURNEY LTD T/A CARTLEDGE  
181,,,Invest to Save schemes-General          ,CF003SA,New Construction Conversion and Renovation,,B3,Other Expenses D&S Structure            ,107378.38,30/05/2014,CAP,REDACTED
182,,,Invest to Save schemes-General          ,CF003SA,New Construction Conversion and Renovation,,B3,Other Expenses D&S Structure            ,114051.3,30/05/2014,CAP,REDACTED
183,,,St Mary's expansion                     ,CS008RA,New Construction Conversion and Renovation,,B1,Consultants Fees D&S Structure          ,4152,29/06/2014,CAP,NPS PROPERTY CONSULTANTS LTD  
184,,,St Mary's expansion                     ,CS008RA,New Construction Conversion and Renovation,,B4,Contractor - Site works                 ,67803,23/06/2014,CAP,MANSELL CONSTRUCTION SERVICES 
185,,,Cranmer expansion                       ,CS010AA,New Construction Conversion and Renovation,,B1,Consultants Fees D&S Structure          ,8722.71,24/06/2014,CAP,ATKINS LIMITED                
186,,,Cranmer expansion                       ,CS010AA,New Construction Conversion and Renovation,,B4,Contractor - Site works                 ,288905,04/07/2014,CAP,WILLMOTT DIXON CONSTRUCT'N LTD
187,,,Joseph Hood Permanent Expansn           ,CS012AA,New Construction Conversion and Renovation,,B4,Contractor - Site works                 ,3640.83,30/06/2014,CAP,FLOOR SANDING EXPERTS LTD     
188,,,Hillcross School Expansion              ,CS020AC,New Construction Conversion and Renovation,,B1,Consultants Fees D&S Structure          ,17220,10/07/2014,CAP,CURL LA TOURELLE ARCHITECTS   
189,,,Hillcross School Expansion              ,CS020AC,New Construction Conversion and Renovation,,B1,Consultants Fees D&S Structure          ,1925,03/07/2014,CAP,STACE LLP                     
190,,,Hillcross School Expansion              ,CS020AC,New Construction Conversion and Renovation,,B1,Consultants Fees D&S Structure          ,2980,28/04/2014,CAP,METHOD CONSULTING LLP         
191,,,Hillcross School Expansion              ,CS020AC,New Construction Conversion and Renovation,,B4,Contractor - Site works                 ,36979.65,23/06/2014,CAP,MANSELL CONSTRUCTION SERVICES 
192,,,Hillcross School Expansion              ,CS020AC,New Construction Conversion and Renovation,,B4,Contractor - Site works                 ,132800.27,30/06/2014,CAP,MANSELL CONSTRUCTION SERVICES 
193,,,Merton Abbey Temp Accomodation          ,CS022AC,New Construction Conversion and Renovation,,B1,Consultants Fees D&S Structure          ,3764.12,30/06/2014,CAP,PELLINGS LLP                  
194,,,Merton Abbey Temp Accomodation          ,CS022AC,New Construction Conversion and Renovation,,B1,Consultants Fees D&S Structure          ,1310,02/07/2014,CAP,PELLINGS LLP                  
195,,,Merton Abbey Temp Accomodation          ,CS022AC,New Construction Conversion and Renovation,,B2,Site Surveys D&S Structure              ,750.2,30/06/2014,CAP,KEEGANS LIMITED               
196,,,Pelham School Expansion                 ,CS023AC,New Construction Conversion and Renovation,,B1,Consultants Fees D&S Structure          ,975,03/07/2014,CAP,STACE LLP                     
197,,,Pelham School Expansion                 ,CS023AC,New Construction Conversion and Renovation,,B1,Consultants Fees D&S Structure          ,1975,03/07/2014,CAP,STACE LLP                     
198,,,Pelham School Expansion                 ,CS023AC,New Construction Conversion and Renovation,,B1,Consultants Fees D&S Structure          ,4000,03/07/2014,CAP,STACE LLP                     
199,,,Pelham School Expansion                 ,CS023AC,New Construction Conversion and Renovation,,B1,Consultants Fees D&S Structure          ,8655,30/06/2014,CAP,HAVERSTOCK ASSOCIATES LLP     
200,,,Pelham School Expansion                 ,CS023AC,New Construction Conversion and Renovation,,B2,Site Surveys D&S Structure              ,589,30/06/2014,CAP,SIMON JONES ASSOCIATES LTD    
201,,,Pelham School Expansion                 ,CS023AC,New Construction Conversion and Renovation,,B4,Contractor - Site works                 ,66340.42,30/06/2014,CAP,MANSELL CONSTRUCTION SERVICES 
202,,,Cricket Green Site                      ,CS027AE,New Construction Conversion and Renovation,,B4,Contractor - Site works                 ,5329.5,15/07/2014,CAP,TAG CONSTRUCTION (UK) LTD     
203,,,Dundonald expansion                     ,CS031AC,New Construction Conversion and Renovation,,B1,Consultants Fees D&S Structure          ,21155,30/06/2014,CAP,HAVERSTOCK ASSOCIATES LLP     
204,,,Dundonald expansion                     ,CS031AC,New Construction Conversion and Renovation,,B1,Consultants Fees D&S Structure          ,3150,25/06/2014,CAP,AREA LANDSCAPE ARCHITECTS     
205,,,Dundonald expansion                     ,CS031AC,New Construction Conversion and Renovation,,B1,Consultants Fees D&S Structure          ,1570,30/06/2014,CAP,SYNERGY CPC LLP               
206,,,St Ann's Primary Phase                  ,CS032AA,New Construction Conversion and Renovation,,B1,Consultants Fees D&S Structure          ,10055.5,02/07/2014,CAP,NPS PROPERTY CONSULTANTS LTD  
207,,,St Ann's Primary Phase                  ,CS032AA,New Construction Conversion and Renovation,,B1,Consultants Fees D&S Structure          ,5998.99,02/07/2014,CAP,NPS PROPERTY CONSULTANTS LTD  
208,,,St Ann's Primary Phase                  ,CS032AA,New Construction Conversion and Renovation,,B1,Consultants Fees D&S Structure          ,796,02/07/2014,CAP,NPS PROPERTY CONSULTANTS LTD  
209,,,Wimbledon Chase DCSF grant              ,CS033AA,New Construction Conversion and Renovation,,B4,Contractor - Site works                 ,3579,01/07/2014,CAP,GEE CONSTRUCTION LTD          
210,,,Free School Meals                       ,CS033AB,Vehicles Plant Equipment and Machinery,,D3,Equipment                               ,20447,25/07/2014,CAP,DF20 LTD                      
211,,,Poplar Permanent Expansion              ,CS034AB,New Construction Conversion and Renovation,,B1,Consultants Fees D&S Structure          ,600,02/07/2014,CAP,PELLINGS LLP                  
212,,,Poplar Permanent Expansion              ,CS034AB,New Construction Conversion and Renovation,,B1,Consultants Fees D&S Structure          ,3412.12,30/06/2014,CAP,PELLINGS LLP                  
213,,,Poplar Permanent Expansion              ,CS034AB,New Construction Conversion and Renovation,,B2,Site Surveys D&S Structure              ,750,30/06/2014,CAP,KEEGANS LIMITED               
214,,,Poplar Permanent Expansion              ,CS034AB,New Construction Conversion and Renovation,,B4,Contractor - Site works                 ,367463.36,30/06/2014,CAP,MANSELL CONSTRUCTION SERVICES 
215,,,Liberty expansion                       ,CS036AB,New Construction Conversion and Renovation,,B4,Contractor - Site works                 ,2076.72,15/07/2014,CAP,R DURTNELL & SONS LTD         
216,,,Wimbledon Park expansion                ,CS050AA,New Construction Conversion and Renovation,,B1,Consultants Fees D&S Structure          ,2295,30/06/2014,CAP,SYNERGY CPC LLP               
217,,,Wimbledon Park expansion                ,CS050AA,New Construction Conversion and Renovation,,B6,Other Costs - Site works                ,10953,08/07/2014,CAP,GODDARDS LANDSCAPE CONTRACTORS
218,,,Schools Access Initiative Inc           ,CS050SA,New Construction Conversion and Renovation,,B4,Contractor - Site works                 ,3288.84,27/06/2014,CAP,R DURTNELL & SONS LTD         
219,,,IT Equipment                            ,CT006EA,Vehicles Plant Equipment and Machinery,,D3,Equipment                               ,2333.55,10/06/2014,CAP,SPECIALIST COMPUTER CENT. PLC 
220,,,IT Equipment                            ,CT006EA,Vehicles Plant Equipment and Machinery,,D3,Equipment                               ,2217.35,30/06/2014,CAP,SPECIALIST COMPUTER CENT. PLC 
221,,,IT Equipment                            ,CT006EA,Vehicles Plant Equipment and Machinery,,D3,Equipment                               ,2660,07/07/2014,CAP,AMERICANINO LTD T/A MR MEMORY 
222,,,Data Labling                            ,CT023NA,Vehicles Plant Equipment and Machinery,,D5,Software                                ,5000,02/06/2014,CAP,APPERCEPTION                  
223,,,Data Labling                            ,CT023NA,Vehicles Plant Equipment and Machinery,,D5,Software                                ,5000,01/07/2014,CAP,APPERCEPTION                  
224,,,Data Labling                            ,CT023NA,Vehicles Plant Equipment and Machinery,,D5,Software                                ,5000,02/06/2014,CAP,APPERCEPTION                  
225,Central Services,Council tax collection,Local Taxation Services,E02100,Supplies & Services           ,Services                      ,DF11,Counsel's Fees                          ,600,06/07/2014,REV,WORLD OF 1DA                  
226,Central Services,Council tax collection,Local Taxation Services,E02100,Supplies & Services           ,Comms and Computing           ,DG09,Computer Purchases - Misc               ,2372.5,23/07/2014,REV,MAG:NET SOLUTIONS             
227,Central Services,Council tax collection,Local Taxation Services,E02100,Third Party Payments          ,Private Contractors           ,EH01,Miscellaneous Agency Services           ,679.28,01/04/2014,REV,COMMERCIAL COLLECTION SERVICES
228,Central Services,Council tax collection,Local Taxation Bailiffs,E02101,Supplies & Services           ,Services                      ,DF18,Bailiffs' fees                          ,2536,25/06/2014,REV,GREASBY'S AUCTION ROOMS       
229,Central Services,Council tax collection,Local Taxation Bailiffs,E02101,Supplies & Services           ,Services                      ,DF18,Bailiffs' fees                          ,608.8,30/06/2014,REV,HPI LIMITED                   
230,Central Services,Council tax collection,Local Taxation Bailiffs,E02101,Supplies & Services           ,Services                      ,DF18,Bailiffs' fees                          ,712.7,11/06/2014,REV,GREASBY'S AUCTION ROOMS       
231,Housing Services,HB Administration,Local Welfare Support,E02123,Transfer Payments             ,Housing Benefits              ,FA95,Other Payments                          ,738.77,24/06/2014,REV,THE VINE PROJECT              
232,Housing Services,HB Administration,Local Welfare Support,E02123,Transfer Payments             ,Housing Benefits              ,FA95,Other Payments                          ,678.77,03/07/2014,REV,THE VINE PROJECT              
233,Central Services,SupS Corporate Finance,TRANSACTIONS,E02139,Supplies & Services           ,Comms and Computing           ,DG50,Other IT Expenditure                    ,14330.95,25/04/2014,REV,LONDON BOROUGH OF SUTTON      
234,Central Services,SupS Payroll,Payroll,E02140,Third Party Payments          ,Private Contractors           ,EH10,Contract Payments                       ,14365.76,31/07/2014,REV,LONDON BOROUGH OF SUTTON      
235,Central Services,SupS Payroll,Payroll,E02140,Third Party Payments          ,Private Contractors           ,EH10,Contract Payments                       ,8481.08,23/07/2014,REV,LONDON BOROUGH OF SUTTON      
236,Central Services,SupS Payroll,Trinity Project,E02141,Supplies & Services           ,Services                      ,DF03,Consultants                             ,3280,14/07/2014,REV,LONDON BOROUGH OF SUTTON      
237,Central Services,SupS Facilities,Post Room,E02220,Supplies & Services           ,Comms and Computing           ,DG04,Postage - General                       ,862.86,16/06/2014,REV,STREETWISE COURIERS           
238,Central Services,SupS Facilities,Post Room,E02220,Supplies & Services           ,Comms and Computing           ,DG04,Postage - General                       ,730.95,14/07/2014,REV,STREETWISE COURIERS           
239,Central Services,SupS Facilities,Post Room,E02220,Supplies & Services           ,Comms and Computing           ,DG04,Postage - General                       ,618.41,30/06/2014,REV,STREETWISE COURIERS           
240,Central Services,SupS Facilities,Post Room,E02220,Supplies & Services           ,Comms and Computing           ,DG04,Postage - General                       ,793.64,21/07/2014,REV,STREETWISE COURIERS           
241,Central Services,SupS Facilities,Post Room,E02220,Supplies & Services           ,Comms and Computing           ,DG04,Postage - General                       ,2550,26/06/2014,REV,DX NETWORK SERVICES LTD       
242,Central Services,SupS Facilities,Security Services,E02221,Employees                     ,Direct Employee Expenses      ,AA17,Agency Staff & Casual Paymts            ,830.4,01/07/2014,REV,SIGHT & SOUND                 
243,Central Services,SupS Facilities,Security Services,E02221,Employees                     ,Direct Employee Expenses      ,AA17,Agency Staff & Casual Paymts            ,1135.2,01/07/2014,REV,SIGHT & SOUND                 
244,Central Services,SupS Facilities,Security Services,E02221,Employees                     ,Direct Employee Expenses      ,AA17,Agency Staff & Casual Paymts            ,2059.2,01/07/2014,REV,SIGHT & SOUND                 
245,Central Services,SupS Facilities,Security Services,E02221,Employees                     ,Direct Employee Expenses      ,AA17,Agency Staff & Casual Paymts            ,567.15,01/07/2014,REV,SIGHT & SOUND                 
246,Central Services,SupS Facilities,Security Services,E02221,Employees                     ,Direct Employee Expenses      ,AA17,Agency Staff & Casual Paymts            ,1737.75,01/07/2014,REV,SIGHT & SOUND                 
247,Central Services,SupS Facilities,Security Services,E02221,Employees                     ,Direct Employee Expenses      ,AA17,Agency Staff & Casual Paymts            ,1994.55,01/07/2014,REV,SIGHT & SOUND                 
248,Central Services,SupS Facilities,Civic Centre,E02222,Supplies & Services           ,Equip Furniture/Materials     ,DA01,Equipment - R & M                       ,1113,23/07/2014,REV,SSD LIMITED                   
249,Central Services,SupS Facilities,Civic Centre,E02222,Supplies & Services           ,Equip Furniture/Materials     ,DA01,Equipment - R & M                       ,1061,23/07/2014,REV,SSD LIMITED                   
250,Central Services,SupS Facilities,Civic Centre,E02222,Supplies & Services           ,Equip Furniture/Materials     ,DA01,Equipment - R & M                       ,7167,23/07/2014,REV,SSD LIMITED                   
251,Central Services,SupS Facilities,Civic Centre,E02222,Supplies & Services           ,Equip Furniture/Materials     ,DA01,Equipment - R & M                       ,1622,23/07/2014,REV,SSD LIMITED                   
252,Central Services,SupS Facilities,Civic Centre,E02222,Supplies & Services           ,Equip Furniture/Materials     ,DA02,Op. Leasing Equipment                   ,9722,27/07/2014,REV,GREENWORKS                    
253,Central Services,SupS Facilities,Facilities,E02231,Premises Related Expenditure  ,RepairsAlterations&MtceOfBldgs,BA02,ENERGY CONSERVATION                     ,1250,01/07/2014,REV,BERGEN ENERGI                 
254,Central Services,SupS Facilities,Facilities,E02231,Premises Related Expenditure  ,RepairsAlterations&MtceOfBldgs,BA02,ENERGY CONSERVATION                     ,791.64,15/07/2014,REV,BERGEN ENERGI                 
255,Central Services,SupS Facilities,Facilities,E02231,Premises Related Expenditure  ,RepairsAlterations&MtceOfBldgs,BA02,ENERGY CONSERVATION                     ,958.23,15/07/2014,REV,BERGEN ENERGI                 
256,Central Services,SupS Facilities,Facilities,E02231,Premises Related Expenditure  ,RepairsAlterations&MtceOfBldgs,BA02,ENERGY CONSERVATION                     ,667,01/07/2014,REV,BERGEN ENERGI                 
257,Central Services,SupS Facilities,Corporate Services Buildings,E02240,Premises Related Expenditure  ,RepairsAlterations&MtceOfBldgs,BA01,DDM - General Building                  ,2165,17/07/2014,REV,STATUTORY SUPPORT SERV(UK) LTD
258,Central Services,SupS Facilities,Corporate Services Buildings,E02240,Premises Related Expenditure  ,RepairsAlterations&MtceOfBldgs,BA01,DDM - General Building                  ,1854.75,17/07/2014,REV,STATUTORY SUPPORT SERV(UK) LTD
259,Central Services,SupS Facilities,Corporate Services Buildings,E02240,Premises Related Expenditure  ,RepairsAlterations&MtceOfBldgs,BA03,DDM - Mechanical                        ,519.85,27/06/2014,REV,EUROPA NATIONWIDE TECH.SER.LTD
260,Central Services,SupS Facilities,Corporate Services Buildings,E02240,Premises Related Expenditure  ,RepairsAlterations&MtceOfBldgs,BA03,DDM - Mechanical                        ,3875.61,16/06/2014,REV,EUROPA NATIONWIDE TECH.SER.LTD
261,Central Services,SupS Facilities,Corporate Services Buildings,E02240,Premises Related Expenditure  ,RepairsAlterations&MtceOfBldgs,BA29,Build Maint Mgt Fees                    ,2518.61,16/06/2014,REV,EUROPA NATIONWIDE TECH.SER.LTD
262,Central Services,SupS Facilities,Corporate Services Buildings,E02240,Premises Related Expenditure  ,RepairsAlterations&MtceOfBldgs,BA29,Build Maint Mgt Fees                    ,1073,21/07/2014,REV,KH FLOORING LTD               
263,Central Services,SupS Facilities,Corporate Services Buildings,E02240,Premises Related Expenditure  ,RepairsAlterations&MtceOfBldgs,BA29,Build Maint Mgt Fees                    ,998,21/07/2014,REV,KH FLOORING LTD               
264,Central Services,SupS Facilities,Corporate Services Buildings,E02240,Premises Related Expenditure  ,Energy Costs                  ,BB02,Electricity                             ,12775.12,07/07/2014,REV,SCOTTISHPOWER                 
265,Central Services,SupS Facilities,Corporate Services Buildings,E02240,Premises Related Expenditure  ,Energy Costs                  ,BB03,Gas (incl. Butane)                      ,5633.99,02/07/2014,REV,GAZPROM MARKETING&TRADING LTD 
266,Central Services,SupS Facilities,Corporate Services Buildings,E02240,Premises Related Expenditure  ,Water Services                ,BE01,Use of Water (Metered)                  ,1343.83,27/06/2014,REV,SUTTON AND EAST SURREY WATER  
267,Adult Social Care,OP 65 & Over Day Care,Pollards Hill Day Centre,E02270,Premises Related Expenditure  ,Cleaning and Domestic Supplies,BH01,Cleaning Materials                      ,504,22/07/2014,REV,GREENHAM TRADING LTD          
268,Adult Social Care,OP 65 & Over Day Care,Pollards Hill Day Centre,E02270,Premises Related Expenditure  ,Cleaning and Domestic Supplies,BH01,Cleaning Materials                      ,504,17/06/2014,REV,GREENHAM                      
269,Adult Social Care,OP 65 & Over Day Care,Pollards Hill Day Centre,E02270,Premises Related Expenditure  ,Cleaning and Domestic Supplies,BH01,Cleaning Materials                      ,504,02/07/2014,REV,GREENHAM TRADING LTD          
270,Adult Social Care,OP 65 & Over Day Care,Pollards Hill Day Centre,E02270,Premises Related Expenditure  ,Cleaning and Domestic Supplies,BH03,Cleaning Services                       ,1492.52,01/07/2014,REV,BIRKIN CLEANING SERVICES LTD  
271,Adult Social Care,OP 65 & Over Day Care,Pollards Hill Day Centre,E02270,Premises Related Expenditure  ,Cleaning and Domestic Supplies,BH03,Cleaning Services                       ,1673.61,01/07/2014,REV,BIRKIN CLEANING SERVICES LTD  
272,Adult Social Care,OP 65 & Over Day Care,Pollards Hill Day Centre,E02270,Premises Related Expenditure  ,Cleaning and Domestic Supplies,BH03,Cleaning Services                       ,1239.08,01/07/2014,REV,BIRKIN CLEANING SERVICES LTD  
273,Adult Social Care,OP 65 & Over Day Care,Pollards Hill Day Centre,E02270,Premises Related Expenditure  ,Cleaning and Domestic Supplies,BH03,Cleaning Services                       ,1540.02,01/07/2014,REV,BIRKIN CLEANING SERVICES LTD  
274,Adult Social Care,OP 65 & Over Day Care,Pollards Hill Day Centre,E02270,Premises Related Expenditure  ,Cleaning and Domestic Supplies,BH03,Cleaning Services                       ,3093.61,01/07/2014,REV,BIRKIN CLEANING SERVICES LTD  
275,Adult Social Care,OP 65 & Over Day Care,Pollards Hill Day Centre,E02270,Premises Related Expenditure  ,Cleaning and Domestic Supplies,BH03,Cleaning Services                       ,6596.17,01/07/2014,REV,BIRKIN CLEANING SERVICES LTD  
276,Adult Social Care,OP 65 & Over Day Care,Pollards Hill Day Centre,E02270,Premises Related Expenditure  ,Cleaning and Domestic Supplies,BH03,Cleaning Services                       ,835.04,01/07/2014,REV,BIRKIN CLEANING SERVICES LTD  
277,Adult Social Care,OP 65 & Over Day Care,Pollards Hill Day Centre,E02270,Premises Related Expenditure  ,Cleaning and Domestic Supplies,BH03,Cleaning Services                       ,1222.2,01/07/2014,REV,BIRKIN CLEANING SERVICES LTD  
278,Adult Social Care,OP 65 & Over Day Care,Pollards Hill Day Centre,E02270,Premises Related Expenditure  ,Cleaning and Domestic Supplies,BH03,Cleaning Services                       ,1421.8,01/07/2014,REV,BIRKIN CLEANING SERVICES LTD  
279,Cultural Env Reg&Plan Services,Parks & Open Spaces,E & R Buildings,E02344,Premises Related Expenditure  ,RepairsAlterations&MtceOfBldgs,BA03,DDM - Mechanical                        ,502.88,16/06/2014,REV,EUROPA NATIONWIDE TECH.SER.LTD
280,Cultural Env Reg&Plan Services,Parks & Open Spaces,E & R Buildings,E02344,Premises Related Expenditure  ,RepairsAlterations&MtceOfBldgs,BA03,DDM - Mechanical                        ,525.06,16/06/2014,REV,EUROPA NATIONWIDE TECH.SER.LTD
281,Cultural Env Reg&Plan Services,Parks & Open Spaces,Leisure Buildings,E02350,Premises Related Expenditure  ,RepairsAlterations&MtceOfBldgs,BA01,DDM - General Building                  ,3325,19/06/2014,REV,NATIONCARE WINDOWS LTD        
282,Cultural Env Reg&Plan Services,Parks & Open Spaces,Leisure Buildings,E02350,Premises Related Expenditure  ,RepairsAlterations&MtceOfBldgs,BA01,DDM - General Building                  ,1950,09/06/2014,REV,JUST METAL UK LTD             
283,Cultural Env Reg&Plan Services,Parks & Open Spaces,Leisure Buildings,E02350,Premises Related Expenditure  ,RepairsAlterations&MtceOfBldgs,BA03,DDM - Mechanical                        ,1447.8,01/07/2014,REV,EUROPA NATIONWIDE TECH.SER.LTD
284,Cultural Env Reg&Plan Services,Parks & Open Spaces,Leisure Buildings,E02350,Premises Related Expenditure  ,RepairsAlterations&MtceOfBldgs,BA03,DDM - Mechanical                        ,546.02,15/05/2014,REV,EUROPA NATIONWIDE TECH.SER.LTD
285,Cultural Env Reg&Plan Services,Parks & Open Spaces,Leisure Buildings,E02350,Premises Related Expenditure  ,RepairsAlterations&MtceOfBldgs,BA03,DDM - Mechanical                        ,546.02,16/06/2014,REV,EUROPA NATIONWIDE TECH.SER.LTD
286,Central Services,SupS DOF,BUSINESS PARTNERS,E04059,Employees                     ,Direct Employee Expenses      ,AA17,Agency Staff & Casual Paymts            ,7000,05/07/2014,REV,REDACTED
287,Central Services,SupS DOF,Director of Corporate Services,E04060,Employees                     ,Direct Employee Expenses      ,AA17,Agency Staff & Casual Paymts            ,2750,05/07/2014,REV,REDACTED
288,Central Services,SupS DOF,Director of Corporate Services,E04060,Employees                     ,Direct Employee Expenses      ,AA17,Agency Staff & Casual Paymts            ,14300,10/06/2014,REV,REDACTED
289,Central Services,SupS DOF,Director of Corporate Services,E04060,Employees                     ,Indirect Employee Expenses    ,AB02,Recruitment Adverts                     ,4166,19/06/2014,REV,PENNA COMMUNICATIONS (NO 2 A/C
290,Central Services,SupS DOF,AD RESOURCES,E04061,Employees                     ,Direct Employee Expenses      ,AA17,Agency Staff & Casual Paymts            ,14250,09/06/2014,REV,REDACTED
291,Central Services,SupS DOF,AD RESOURCES,E04061,Employees                     ,Direct Employee Expenses      ,AA17,Agency Staff & Casual Paymts            ,15000,09/06/2014,REV,REDACTED
292,Central Services,SupS DOF,AD RESOURCES,E04061,Employees                     ,Indirect Employee Expenses    ,AB02,Recruitment Adverts                     ,3600,19/06/2014,REV,PENNA COMMUNICATIONS (NO 2 A/C
293,Central Services,SupS DOF,AD RESOURCES,E04061,Supplies & Services           ,Services                      ,DF03,CONSULTANTS                             ,6440,11/07/2014,REV,PUBLIC SECTOR CONSULTANTS     
294,Central Services,SupS Strategic Finance,Business Planning,E06221,Employees                     ,Indirect Employee Expenses    ,AB02,Recruitment Adverts                     ,1275,26/06/2014,REV,PENNA COMMUNICATIONS (NO 2 A/C
295,Central Services,SupS Strategic Finance,Treasury & Insurance,E06222,Employees                     ,Direct Employee Expenses      ,AA17,Agency Staff & Casual Paymts            ,9400,26/06/2014,REV,RANDSTAD FIN & PROF LTD.      
296,Central Services,SupS Strategic Finance,Treasury & Insurance,E06222,Employees                     ,Direct Employee Expenses      ,AA17,Agency Staff & Casual Paymts            ,4700,09/07/2014,REV,RANDSTAD FIN & PROF LTD.      
297,Central Services,GENERATED ACCOUNT,Parking Cash Collect'n Contrct,E06225,Third Party Payments          ,Private Contractors           ,EH02,Miscellaneous Hired Services            ,1066.17,30/06/2014,REV,BANKING AUTOMATION LTD        
298,Central Services,GENERATED ACCOUNT,Parking Cash Collect'n Contrct,E06225,Third Party Payments          ,Private Contractors           ,EH02,Miscellaneous Hired Services            ,10601.8,30/06/2014,REV,BANKING AUTOMATION LTD        
299,Central Services,GENERATED ACCOUNT,Establishments' Cash Collect'n,E06226,Third Party Payments          ,Private Contractors           ,EH02,Miscellaneous Hired Services            ,3501.61,15/06/2014,REV,LOOMIS UK LTD                 
300,Central Services,SupS DOF,Service Accountancy,E06227,Employees                     ,Direct Employee Expenses      ,AA17,Agency Staff & Casual Paymts            ,4600,01/07/2014,REV,RANDSTAD FIN & PROF LTD.      
301,Central Services,SupS DOF,Service Accountancy,E06227,Transfer Payments             ,Housing Benefits              ,FA50,Burial and Cremation                    ,1144.5,24/06/2014,REV,F.W. PAINE                    
302,Central Services,SupS DOF,Service Accountancy,E06227,Transfer Payments             ,Housing Benefits              ,FA50,Burial and Cremation                    ,1759.5,22/07/2014,REV,F.W. PAINE                    
303,Central Services,SupS Legal,Legal Services,E10282,Supplies & Services           ,Services                      ,DF28,Court Fees                              ,1310,08/07/2014,REV,REDACTED
304,Central Services,SupS Legal,Legal Services,E10282,Supplies & Services           ,Services                      ,DF28,Court Fees                              ,2055,27/06/2014,REV,REDACTED
305,Central Services,SupS Legal,Legal Services,E10282,Supplies & Services           ,Services                      ,DF28,Court Fees                              ,670,27/06/2014,REV,REDACTED
306,Central Services,SupS Legal,Legal Services,E10282,Supplies & Services           ,Services                      ,DF28,Court Fees                              ,1420,27/06/2014,REV,REDACTED
307,Central Services,SupS Legal,Legal Services,E10282,Supplies & Services           ,Services                      ,DF28,Court Fees                              ,2055,27/06/2014,REV,REDACTED
308,Central Services,SupS Legal,Legal Services,E10282,Supplies & Services           ,Services                      ,DF28,Court Fees                              ,4320,27/06/2014,REV,REDACTED
309,Central Services,SupS Legal,Legal Services,E10282,Supplies & Services           ,Services                      ,DF28,Court Fees                              ,3530,27/06/2014,REV,REDACTED
310,Central Services,SupS Legal,Legal Services,E10282,Supplies & Services           ,Services                      ,DF28,Court Fees                              ,635,27/06/2014,REV,REDACTED
311,Central Services,SupS Legal,Legal Services,E10282,Supplies & Services           ,Services                      ,DF28,Court Fees                              ,2665,27/06/2014,REV,REDACTED
312,Central Services,Registration of electors,Electoral Registration,E10285,Employees                     ,Direct Employee Expenses      ,AA17,Agency Staff & Casual Paymts            ,13278.54,08/04/2014,REV,ASS.OF ELECTORAL ADMINISTRATOR
313,Central Services,Registration of electors,Electoral Registration,E10285,Employees                     ,Direct Employee Expenses      ,AA17,Agency Staff & Casual Paymts            ,19242.43,13/06/2014,REV,ASS.OF ELECTORAL ADMINISTRATOR
314,Central Services,Registration of electors,Electoral Registration,E10285,Supplies & Services           ,Comms and Computing           ,DG04,Postage - General                       ,714.8,07/07/2014,REV,ROYAL MAIL GROUP LTD          
315,Central Services,SupS Legal,Shared Legal Service,E10288,Supplies & Services           ,Prntng Stnry Gen Off Exp      ,DE03,Stationery                              ,662.5,08/07/2014,REV,OFFICE DEPOT UK LTD           
316,Central Services,SupS Legal,Shared Legal Service,E10288,Supplies & Services           ,Prntng Stnry Gen Off Exp      ,DE03,Stationery                              ,662.5,24/06/2014,REV,OFFICE DEPOT UK LTD           
317,Central Services,SupS Legal,Shared Legal Service,E10288,Supplies & Services           ,Prntng Stnry Gen Off Exp      ,DE03,Stationery                              ,662.5,23/07/2014,REV,OFFICE DEPOT UK LTD           
318,Central Services,SupS Legal,Shared Legal Service,E10288,Supplies & Services           ,Comms and Computing           ,DG02,Software Licences                       ,12005.01,13/06/2014,REV,LEXISNEXIS                    
319,Central Services,SupS Legal,Shared Legal Service,E10288,Supplies & Services           ,Comms and Computing           ,DG02,Software Licences                       ,3378.5,05/07/2014,REV,ZYLPHA LIMITED                
320,Central Services,SupS Legal,Richmond Legal,E10289,Supplies & Services           ,Services                      ,DF11,Counsel's Fees                          ,880,26/06/2014,REV,REDACTED
321,Central Services,SupS Legal,Richmond Legal,E10289,Supplies & Services           ,Services                      ,DF11,Counsel's Fees                          ,1000,27/06/2014,REV,REDACTED
322,Central Services,SupS Legal,Richmond Legal,E10289,Supplies & Services           ,Services                      ,DF11,Counsel's Fees                          ,600,01/07/2014,REV,REDACTED
323,Central Services,SupS Legal,Richmond Legal,E10289,Supplies & Services           ,Services                      ,DF11,Counsel's Fees                          ,1285,23/07/2014,REV,REDACTED
324,Central Services,SupS Legal,Richmond Legal,E10289,Supplies & Services           ,Services                      ,DF11,Counsel's Fees                          ,600,26/06/2014,REV,REDACTED
325,Central Services,SupS Legal,Richmond Legal,E10289,Supplies & Services           ,Services                      ,DF11,Counsel's Fees                          ,500,08/07/2014,REV,REDACTED
326,Central Services,SupS Legal,Richmond Legal,E10289,Supplies & Services           ,Services                      ,DF11,Counsel's Fees                          ,2500,17/06/2014,REV,REDACTED
327,Central Services,SupS Legal,Richmond Legal,E10289,Supplies & Services           ,Services                      ,DF11,Counsel's Fees                          ,2850,03/07/2014,REV,REDACTED
328,Central Services,SupS Legal,Richmond Legal,E10289,Supplies & Services           ,Services                      ,DF11,Counsel's Fees                          ,520,26/06/2014,REV,REDACTED
329,Central Services,SupS Legal,Richmond Legal,E10289,Supplies & Services           ,Services                      ,DF11,Counsel's Fees                          ,900,18/07/2014,REV,REDACTED
330,Central Services,SupS Legal,Richmond Legal,E10289,Supplies & Services           ,Services                      ,DF95,Services from Provider                  ,3550,05/06/2014,REV,REDACTED
331,Central Services,SupS Legal,K&S Shared Legal                        ,E10291,Supplies & Services           ,Comms and Computing           ,DG02,Software Licences                       ,3378.5,05/07/2014,REV,ZYLPHA LIMITED                
332,Central Services,SupS Legal,K&S Shared Legal                        ,E10291,Supplies & Services           ,Comms and Computing           ,DG02,Software Licences                       ,12005.01,13/06/2014,REV,LEXISNEXIS                    
333,Central Services,SupS Legal,K&S Shared Legal                        ,E10291,Supplies & Services           ,Expenses                      ,DH16,Compensation Payments                   ,12968.25,08/07/2014,REV,KINGSTON CORPORATION          
334,Central Services,SupS Legal,Kingston Legal                          ,E10292,Supplies & Services           ,Services                      ,DF11,Counsel's Fees                          ,2100,17/06/2014,REV,REDACTED
335,Central Services,SupS Legal,Kingston Legal                          ,E10292,Supplies & Services           ,Services                      ,DF11,Counsel's Fees                          ,600,22/01/2014,REV,REDACTED
336,Central Services,SupS Legal,Kingston Legal                          ,E10292,Supplies & Services           ,Services                      ,DF11,Counsel's Fees                          ,650,23/06/2014,REV,REDACTED
337,Central Services,SupS Legal,Kingston Legal                          ,E10292,Supplies & Services           ,Services                      ,DF11,Counsel's Fees                          ,2500,26/06/2014,REV,REDACTED
338,Central Services,SupS Legal,Kingston Legal                          ,E10292,Supplies & Services           ,Services                      ,DF11,Counsel's Fees                          ,700,23/06/2014,REV,REDACTED
339,Central Services,SupS Legal,Kingston Legal                          ,E10292,Supplies & Services           ,Services                      ,DF11,Counsel's Fees                          ,1180,07/07/2014,REV,REDACTED
340,Central Services,SupS Legal,Kingston Legal                          ,E10292,Supplies & Services           ,Services                      ,DF11,Counsel's Fees                          ,1475,24/06/2014,REV,REDACTED
341,Central Services,SupS Legal,Kingston Legal                          ,E10292,Supplies & Services           ,Services                      ,DF11,Counsel's Fees                          ,950,02/07/2014,REV,REDACTED
342,Central Services,SupS Legal,Kingston Legal                          ,E10292,Supplies & Services           ,Services                      ,DF11,Counsel's Fees                          ,575,29/05/2014,REV,REDACTED
343,Central Services,SupS Legal,Sutton Legal                            ,E10293,Supplies & Services           ,Services                      ,DF11,Counsel's Fees                          ,1300,19/06/2014,REV,REDACTED
344,Central Services,SupS Legal,Sutton Legal                            ,E10293,Supplies & Services           ,Services                      ,DF11,Counsel's Fees                          ,790,17/07/2014,REV,REDACTED
345,Central Services,SupS Legal,Sutton Legal                            ,E10293,Supplies & Services           ,Services                      ,DF11,Counsel's Fees                          ,585,26/06/2014,REV,REDACTED
346,Central Services,SupS Legal,Sutton Legal                            ,E10293,Supplies & Services           ,Services                      ,DF11,Counsel's Fees                          ,855,09/05/2014,REV,REDACTED
347,Central Services,SupS Legal,Sutton Legal                            ,E10293,Supplies & Services           ,Services                      ,DF11,Counsel's Fees                          ,1705.5,18/06/2014,REV,REDACTED
348,Central Services,SupS Legal,Sutton Legal                            ,E10293,Supplies & Services           ,Services                      ,DF11,Counsel's Fees                          ,783.75,02/07/2014,REV,REDACTED
349,Central Services,SupS Legal,Sutton Legal                            ,E10293,Supplies & Services           ,Services                      ,DF11,Counsel's Fees                          ,1282.5,11/06/2014,REV,REDACTED
350,Central Services,SupS Legal,Sutton Legal                            ,E10293,Supplies & Services           ,Services                      ,DF11,Counsel's Fees                          ,3790,25/05/2014,REV,REDACTED
351,Central Services,SupS Legal,Sutton Legal                            ,E10293,Supplies & Services           ,Services                      ,DF11,Counsel's Fees                          ,500,27/06/2014,REV,REDACTED
352,Central Services,SupS Legal,Sutton Legal                            ,E10293,Supplies & Services           ,Services                      ,DF11,Counsel's Fees                          ,840,08/07/2014,REV,REDACTED
353,Central Services,SupS Legal,Sutton Legal                            ,E10293,Supplies & Services           ,Services                      ,DF11,Counsel's Fees                          ,750,13/06/2014,REV,REDACTED
354,Central Services,SupS Legal,Sutton Legal                            ,E10293,Supplies & Services           ,Services                      ,DF11,Counsel's Fees                          ,510,26/06/2014,REV,REDACTED
355,Central Services,SupS Legal,Sutton Legal                            ,E10293,Supplies & Services           ,Services                      ,DF11,Counsel's Fees                          ,1360,26/06/2014,REV,REDACTED
356,Central Services,SupS Legal,Sutton Legal                            ,E10293,Supplies & Services           ,Services                      ,DF14,Doctors and Other Fees                  ,7850,11/10/2013,REV,REDACTED
357,Central Services,SupS Legal,Sutton Legal                            ,E10293,Supplies & Services           ,Services                      ,DF14,Doctors and Other Fees                  ,810,22/05/2014,REV,REDACTED
358,Central Services,SupS Legal,Sutton Legal                            ,E10293,Supplies & Services           ,Services                      ,DF14,Doctors and Other Fees                  ,937.67,13/05/2014,REV,REDACTED
359,Central Services,SupS Legal,Sutton Legal                            ,E10293,Supplies & Services           ,Services                      ,DF14,Doctors and Other Fees                  ,680,08/04/2014,REV,PARTNER ABUSE INTERVENT'NS LTD
360,Central Services,SupS Legal,Sutton Legal                            ,E10293,Supplies & Services           ,Services                      ,DF14,Doctors and Other Fees                  ,2800,13/12/2013,REV,REDACTED
361,Central Services,SupS Legal,Sutton Legal                            ,E10293,Supplies & Services           ,Services                      ,DF95,Services from Provider                  ,1130.78,18/06/2014,REV,RUSSELL -  COOKE LLP          
362,Central Services,SupS Legal,Sutton Legal                            ,E10293,Supplies & Services           ,Services                      ,DF95,Services from Provider                  ,3962.42,30/04/2014,REV,TERRAQUEST SOLUTIONS LTD      
363,Central Services,SupS Legal,Sutton Legal                            ,E10293,Supplies & Services           ,Services                      ,DF95,Services from Provider                  ,2152.8,14/04/2014,REV,REDACTED
364,Central Services,SupS Legal,Sutton Legal                            ,E10293,Supplies & Services           ,Services                      ,DF95,Services from Provider                  ,696.05,12/06/2014,REV,RUSSELL -  COOKE LLP          
365,Central Services,SupS Legal,Sutton Legal                            ,E10293,Supplies & Services           ,Services                      ,DF95,Services from Provider                  ,1565.43,30/05/2014,REV,TERRAQUEST SOLUTIONS LTD      
366,Central Services,SupS Legal,Sutton Legal                            ,E10293,Supplies & Services           ,Services                      ,DF95,Services from Provider                  ,1000,24/06/2014,REV,SYMBOL FAMILY SUPPORT SERVICES
367,Central Services,SupS Legal,Sutton Legal                            ,E10293,Supplies & Services           ,Services                      ,DF95,Services from Provider                  ,3854.44,26/03/2014,REV,CHARMINI RAVINDRAN LAW LTD    
368,Central Services,SupS Legal,Sutton Housing Partnership(SHP          ,E10294,Supplies & Services           ,Services                      ,DF11,Counsel's Fees                          ,1500,06/05/2014,REV,REDACTED
369,Central Services,SupS Legal,Achieving for Children (AFC),E10295,Supplies & Services           ,Services                      ,DF11,Counsel's Fees                          ,600,23/07/2014,REV,REDACTED
370,Central Services,SupS Legal,Achieving for Children (AFC),E10295,Supplies & Services           ,Services                      ,DF11,Counsel's Fees                          ,1950,27/05/2014,REV,REDACTED
371,Central Services,SupS Legal,Achieving for Children (AFC),E10295,Supplies & Services           ,Services                      ,DF11,Counsel's Fees                          ,3000,27/06/2014,REV,REDACTED
372,Central Services,SupS Legal,Achieving for Children (AFC),E10295,Supplies & Services           ,Services                      ,DF11,Counsel's Fees                          ,630,13/05/2014,REV,REDACTED
373,Central Services,SupS Legal,Achieving for Children (AFC),E10295,Supplies & Services           ,Services                      ,DF11,Counsel's Fees                          ,1870,14/07/2014,REV,REDACTED
374,Central Services,SupS Legal,Achieving for Children (AFC),E10295,Supplies & Services           ,Services                      ,DF11,Counsel's Fees                          ,607.5,12/05/2014,REV,REDACTED
375,Central Services,SupS Legal,Achieving for Children (AFC),E10295,Supplies & Services           ,Services                      ,DF11,Counsel's Fees                          ,960,08/04/2014,REV,REDACTED
376,Central Services,SupS Legal,Achieving for Children (AFC),E10295,Supplies & Services           ,Services                      ,DF95,Services from Provider                  ,983,30/05/2014,REV,WARD HADAWAY                  
377,Central Services,SupS Payroll,Coroners Courts,E11300,Third Party Payments          ,Joint Authorities             ,EC11,SW Inner London Coroners Crt C          ,60900,09/07/2014,REV,CITY OF WESTMINSTER           
378,Central Services,SupS IT,Social Care Info System (SCI)           ,E14357,Employees                     ,Direct Employee Expenses      ,AA17,Agency Staff & Casual Paymts            ,2486,11/06/2014,REV,HAYS RECRUITING EXPERTS       
379,Central Services,SupS IT,Social Care Info System (SCI)           ,E14357,Employees                     ,Direct Employee Expenses      ,AA17,Agency Staff & Casual Paymts            ,3107.5,19/06/2014,REV,HAYS RECRUITING EXPERTS       
380,Central Services,SupS IT,Social Care Info System (SCI)           ,E14357,Employees                     ,Direct Employee Expenses      ,AA17,Agency Staff & Casual Paymts            ,3107.5,09/07/2014,REV,HAYS RECRUITING EXPERTS       
381,Central Services,SupS IT,Social Care Info System (SCI)           ,E14357,Employees                     ,Direct Employee Expenses      ,AA17,Agency Staff & Casual Paymts            ,3107.5,02/07/2014,REV,HAYS RECRUITING EXPERTS       
382,Central Services,SupS IT,Social Care Info System (SCI)           ,E14357,Employees                     ,Direct Employee Expenses      ,AA17,Agency Staff & Casual Paymts            ,2486,18/07/2014,REV,HAYS RECRUITING EXPERTS       
383,Central Services,SupS IT,Social Care Info System (SCI)           ,E14357,Employees                     ,Direct Employee Expenses      ,AA17,Agency Staff & Casual Paymts            ,3107.5,25/06/2014,REV,HAYS RECRUITING EXPERTS       
384,Central Services,SupS IT,BI IT Projects,E14360,Employees                     ,Direct Employee Expenses      ,AA17,Agency Staff & Casual Paymts            ,3000,02/06/2014,REV,REDACTED
385,Central Services,SupS IT,BI IT Projects,E14360,Employees                     ,Direct Employee Expenses      ,AA17,Agency Staff & Casual Paymts            ,1500,02/06/2014,REV,REDACTED
386,Central Services,SupS IT,BI IT Projects,E14360,Supplies & Services           ,Services                      ,DF03,Consultants                             ,6222,09/07/2014,REV,PITNEY BOWES SOFTWARE LTD     
387,Central Services,SupS IT,AD I&T,E14363,Employees                     ,Direct Employee Expenses      ,AA17,Agency Staff & Casual Paymts            ,2062.5,09/07/2014,REV,REDACTED
388,Central Services,SupS IT,AD I&T,E14363,Employees                     ,Direct Employee Expenses      ,AA17,Agency Staff & Casual Paymts            ,2062.5,17/06/2014,REV,REDACTED
389,Central Services,SupS IT,AD I&T,E14363,Employees                     ,Direct Employee Expenses      ,AA17,Agency Staff & Casual Paymts            ,2062.5,01/07/2014,REV,REDACTED
390,Central Services,SupS IT,AD I&T,E14363,Employees                     ,Direct Employee Expenses      ,AA17,Agency Staff & Casual Paymts            ,1875,01/07/2014,REV,REDACTED
391,Central Services,SupS IT,Systems & Projects,E14366,Employees                     ,Direct Employee Expenses      ,AA17,Agency Staff & Casual Paymts            ,1375,04/07/2014,REV,REDACTED
392,Central Services,SupS IT,Systems & Projects,E14366,Employees                     ,Direct Employee Expenses      ,AA17,Agency Staff & Casual Paymts            ,1500.1,04/07/2014,REV,REDACTED
393,Central Services,SupS IT,Systems & Projects,E14366,Employees                     ,Direct Employee Expenses      ,AA17,Agency Staff & Casual Paymts            ,3000.2,14/07/2014,REV,REDACTED
394,Central Services,SupS IT,Systems & Projects,E14366,Employees                     ,Direct Employee Expenses      ,AA17,Agency Staff & Casual Paymts            ,1375,27/06/2014,REV,REDACTED
395,Central Services,SupS IT,Systems & Projects,E14366,Employees                     ,Direct Employee Expenses      ,AA17,Agency Staff & Casual Paymts            ,1375,11/07/2014,REV,REDACTED
396,Central Services,SupS IT,Systems & Projects,E14366,Employees                     ,Direct Employee Expenses      ,AA17,Agency Staff & Casual Paymts            ,2464.45,25/06/2014,REV,REDACTED
397,Central Services,SupS IT,Systems & Projects,E14366,Employees                     ,Direct Employee Expenses      ,AA17,Agency Staff & Casual Paymts            ,1375,20/06/2014,REV,REDACTED
398,Central Services,SupS IT,Systems & Projects,E14366,Supplies & Services           ,Comms and Computing           ,DG63,Software Licences - Data                ,72644.69,19/06/2014,REV,CIVICA UK LIMITED             
399,Central Services,SupS IT,Systems & Projects,E14366,Supplies & Services           ,Comms and Computing           ,DG63,Software Licences - Data                ,1417.7,24/03/2014,REV,CIVICA UK LIMITED             
400,Central Services,SupS IT,Operations & Telecomms,E14367,Employees                     ,Direct Employee Expenses      ,AA17,Agency Staff & Casual Paymts            ,5040,04/07/2014,REV,REDACTED
401,Central Services,SupS IT,Operations & Telecomms,E14367,Supplies & Services           ,Comms and Computing           ,DG15,Network Maintenance                     ,875,17/07/2014,REV,SCALABLE COMMUNICATIONS PLC   
402,Central Services,SupS IT,Operations & Telecomms,E14367,Supplies & Services           ,Comms and Computing           ,DG15,Network Maintenance                     ,915.01,04/04/2014,REV,MARQUEST LIMITED              
403,Central Services,SupS IT,Operations & Telecomms,E14367,Supplies & Services           ,Comms and Computing           ,DG15,Network Maintenance                     ,4193,10/06/2014,REV,NEC (UK) LTD                  
404,Central Services,SupS IT,Operations & Telecomms,E14367,Supplies & Services           ,Comms and Computing           ,DG15,Network Maintenance                     ,47519.78,25/06/2014,REV,NEC (UK) LTD                  
405,Central Services,SupS IT,Operations & Telecomms,E14367,Supplies & Services           ,Comms and Computing           ,DG15,Network Maintenance                     ,1945.64,15/07/2014,REV,SYNETRIX HOLDINGS LTD         
406,Central Services,SupS IT,Operations & Telecomms,E14367,Supplies & Services           ,Comms and Computing           ,DG54,Corporate Telephones                    ,6295.74,04/07/2014,REV,T MOBILE (UK)                 
407,Central Services,SupS IT,Operations & Telecomms,E14367,Supplies & Services           ,Comms and Computing           ,DG54,Corporate Telephones                    ,1094.22,29/06/2014,REV,O2 (UK) LIMITED               
408,Central Services,SupS IT,Operations & Telecomms,E14367,Supplies & Services           ,Comms and Computing           ,DG54,Corporate Telephones                    ,1094.22,29/05/2014,REV,O2 (UK) LIMITED               
409,Central Services,SupS IT,Operations & Telecomms,E14367,Supplies & Services           ,Comms and Computing           ,DG54,Corporate Telephones                    ,3782.08,17/06/2014,REV,ORANGE P'MENT PRO'SING AIRTIME
410,Central Services,SupS IT,Operations & Telecomms,E14367,Supplies & Services           ,Comms and Computing           ,DG54,Corporate Telephones                    ,3392.34,17/05/2014,REV,ORANGE P'MENT PRO'SING AIRTIME
411,Central Services,SupS IT,Operations & Telecomms,E14367,Supplies & Services           ,Comms and Computing           ,DG54,Corporate Telephones                    ,2587.06,02/07/2014,REV,COLT TELECOMMUNICATIONS       
412,Central Services,SupS IT,Distributed Services,E14368,Supplies & Services           ,Comms and Computing           ,DG63,Software Licences - Data                ,3800,07/07/2014,REV,BARRON MCCANN PAYMENTS LTD    
413,Central Services,SupS IT,Distributed Services,E14368,Supplies & Services           ,Comms and Computing           ,DG63,Software Licences - Data                ,650,04/07/2014,REV,ORBIT U.K.                    
414,Central Services,SupS IT,Distributed Services,E14368,Supplies & Services           ,Comms and Computing           ,DG63,Software Licences - Data                ,6957.38,27/06/2014,REV,CIVICA UK LIMITED             
415,Central Services,SupS IT,Corp Saving-IT Consolidation,E14370,Premises Related Expenditure  ,RepairsAlterations&MtceOfBldgs,BA01,DDM - General Building                  ,3280,11/06/2014,REV,NATIONCARE WINDOWS LTD        
416,Central Services,SupS IT,No longer used,E14371,Employees                     ,Direct Employee Expenses      ,AA17,Agency Staff & Casual Paymts            ,1648,07/04/2014,REV,CYBERTEAM                     
417,Central Services,SupS IT,No longer used,E14371,Employees                     ,Direct Employee Expenses      ,AA17,Agency Staff & Casual Paymts            ,1648,28/04/2014,REV,CYBERTEAM                     
418,Central Services,SupS IT,No longer used,E14371,Employees                     ,Direct Employee Expenses      ,AA17,Agency Staff & Casual Paymts            ,1648,02/06/2014,REV,CYBERTEAM                     
419,Central Services,SupS IT,No longer used,E14371,Employees                     ,Direct Employee Expenses      ,AA17,Agency Staff & Casual Paymts            ,2060,27/05/2014,REV,CYBERTEAM                     
420,Central Services,SupS IT,No longer used,E14371,Employees                     ,Direct Employee Expenses      ,AA17,Agency Staff & Casual Paymts            ,2060,19/05/2014,REV,CYBERTEAM                     
421,Central Services,SupS IT,No longer used,E14371,Employees                     ,Direct Employee Expenses      ,AA17,Agency Staff & Casual Paymts            ,1648,12/05/2014,REV,CYBERTEAM                     
422,Central Services,SupS IT,No longer used,E14371,Employees                     ,Direct Employee Expenses      ,AA17,Agency Staff & Casual Paymts            ,2060,09/06/2014,REV,CYBERTEAM                     
423,Central Services,SupS IT,No longer used,E14371,Employees                     ,Direct Employee Expenses      ,AA17,Agency Staff & Casual Paymts            ,2060,16/06/2014,REV,CYBERTEAM                     
424,Central Services,SupS IT,No longer used,E14371,Supplies & Services           ,Services                      ,DF03,Consultants                             ,10700,03/07/2014,REV,V4 SERVICES LIMITED           
425,Cultural Env Reg&Plan Services,Housing Standards,Shared Regulatory Service Proj          ,G00091,Supplies & Services           ,Services                      ,DF03,Consultants                             ,14000,30/06/2014,REV,GATENBYSANDERSON LIMITED      
426,Cultural Env Reg&Plan Services,Housing Standards,Shared Regulatory Service Proj          ,G00091,Supplies & Services           ,Services                      ,DF03,Consultants                             ,14000,12/06/2014,REV,GATENBYSANDERSON LIMITED      
427,Highways & Transport Services,Hwys/Rds (struct) not split,Surf Water Drainage,G00123,Third Party Payments          ,Private Contractors           ,EH56,Carriageway/Fway Maint                  ,722.8,25/07/2014,REV,FM CONWAY LTD                 
428,Highways & Transport Services,Repair prin/oth rds not split,Walk Sheets,G00127,Third Party Payments          ,Private Contractors           ,EH56,Carriageway/Fway Maint                  ,1187.05,25/07/2014,REV,FM CONWAY LTD                 
429,Highways & Transport Services,Repair prin/oth rds not split,Walk Sheets,G00127,Third Party Payments          ,Private Contractors           ,EH56,Carriageway/Fway Maint                  ,13761.95,09/07/2014,REV,FM CONWAY LTD                 
430,Highways & Transport Services,Repair prin/oth rds not split,Walk Sheets,G00127,Third Party Payments          ,Private Contractors           ,EH56,Carriageway/Fway Maint                  ,19663.9,02/07/2014,REV,FM CONWAY LTD                 
431,Highways & Transport Services,Repair prin/oth rds not split,Walk Sheets,G00127,Third Party Payments          ,Private Contractors           ,EH56,Carriageway/Fway Maint                  ,6289.75,02/07/2014,REV,FM CONWAY LTD                 
432,Highways & Transport Services,Repair prin/oth rds not split,Walk Sheets,G00127,Third Party Payments          ,Private Contractors           ,EH56,Carriageway/Fway Maint                  ,823.1,23/06/2014,REV,FM CONWAY LTD                 
433,Highways & Transport Services,Repair prin/oth rds not split,Walk Sheets,G00127,Third Party Payments          ,Private Contractors           ,EH56,Carriageway/Fway Maint                  ,15864.43,25/07/2014,REV,FM CONWAY LTD                 
434,Highways & Transport Services,Repair prin/oth rds not split,Walk Sheets,G00127,Third Party Payments          ,Private Contractors           ,EH56,Carriageway/Fway Maint                  ,1204.69,02/07/2014,REV,FM CONWAY LTD                 
435,Highways & Transport Services,Saf mtc prin/oth rds not split,Traffic Signs.,G00160,Supplies & Services           ,Equip Furniture/Materials     ,DA09,Equip-Purchases                         ,1683,29/07/2014,REV,MAGRATH SECURITY              
436,Highways & Transport Services,Saf mtc prin/oth rds not split,Traffic Signs.,G00160,Third Party Payments          ,Private Contractors           ,EH01,Miscellaneous Agency Services           ,3884.52,27/06/2014,REV,MAY GURNEY LTD T/A CARTLEDGE  
437,Highways & Transport Services,Saf mtc prin/oth rds not split,Traffic Signs.,G00160,Third Party Payments          ,Private Contractors           ,EH01,Miscellaneous Agency Services           ,584.94,29/07/2014,REV,MAY GURNEY LTD T/A CARTLEDGE  
438,Highways & Transport Services,Saf mtc prin/oth rds not split,Traffic Signs.,G00160,Third Party Payments          ,Private Contractors           ,EH01,Miscellaneous Agency Services           ,2871.79,25/07/2014,REV,FM CONWAY LTD                 
439,Highways & Transport Services,Saf mtc prin/oth rds not split,Traffic Signs.,G00160,Third Party Payments          ,Private Contractors           ,EH01,Miscellaneous Agency Services           ,1007.99,15/07/2014,REV,MAY GURNEY LTD T/A CARTLEDGE  
440,Highways & Transport Services,Saf mtc prin/oth rds not split,Traffic Signs.,G00160,Third Party Payments          ,Private Contractors           ,EH01,Miscellaneous Agency Services           ,584.26,15/07/2014,REV,MAY GURNEY LTD T/A CARTLEDGE  
441,Highways & Transport Services,Saf mtc prin/oth rds not split,Traffic Signals .,G00170,Third Party Payments          ,Other Agencies                ,EJ57,Traffic Signals Control Unit            ,84903.04,17/07/2014,REV,TRANSPORT FOR LONDON          
442,Highways & Transport Services,,TRAF & HWYS CAPITAL PROJECTS,G00210,Third Party Payments          ,Private Contractors           ,EH01,Miscellaneous Contrct Services          ,1124,10/07/2014,REV,UK POWER NETWORKS (OPERATIONS)
443,Highways & Transport Services,,TFL 20mph Zone                          ,G00213,Supplies & Services           ,Services                      ,DF05,Surveys (General)                       ,7680,14/07/2014,REV,TRAFFICWATCH (UK) LTD.        
444,Highways & Transport Services,,TFL 20mph Zone                          ,G00213,Supplies & Services           ,Services                      ,DF05,Surveys (General)                       ,10440,30/06/2014,REV,TRAFFICWATCH (UK) LTD.        
445,Highways & Transport Services,,TFL 20mph Zone                          ,G00213,Supplies & Services           ,Services                      ,DF05,Surveys (General)                       ,9360,14/07/2014,REV,TRAFFICWATCH (UK) LTD.        
446,Highways & Transport Services,Street Lighting.,Street Lighting .,G00260,Premises Related Expenditure  ,Energy Costs                  ,BB02,Electricity                             ,45053.02,03/07/2014,REV,SCOTTISHPOWER                 
447,Highways & Transport Services,Street Lighting.,Street Lighting .,G00260,Third Party Payments          ,Private Contractors           ,EH01,Miscellaneous Agency Services           ,2001.4,27/06/2014,REV,MAY GURNEY LTD T/A CARTLEDGE  
448,Highways & Transport Services,Street Lighting.,Street Lighting .,G00260,Third Party Payments          ,Private Contractors           ,EH01,Miscellaneous Agency Services           ,1272.47,29/07/2014,REV,MAY GURNEY LTD T/A CARTLEDGE  
449,Highways & Transport Services,Street Lighting.,Street Lighting .,G00260,Third Party Payments          ,Private Contractors           ,EH01,Miscellaneous Agency Services           ,3305.03,29/07/2014,REV,MAY GURNEY LTD T/A CARTLEDGE  
450,Highways & Transport Services,Street Lighting.,Street Lighting .,G00260,Third Party Payments          ,Private Contractors           ,EH01,Miscellaneous Agency Services           ,660.24,15/07/2014,REV,MAY GURNEY LTD T/A CARTLEDGE  
451,Highways & Transport Services,Street Lighting.,Street Lighting .,G00260,Third Party Payments          ,Private Contractors           ,EH01,Miscellaneous Agency Services           ,615,29/07/2014,REV,MAY GURNEY LTD T/A CARTLEDGE  
452,Highways & Transport Services,Street Lighting.,Street Lighting .,G00260,Third Party Payments          ,Private Contractors           ,EH01,Miscellaneous Agency Services           ,14129.84,27/06/2014,REV,MAY GURNEY LTD T/A CARTLEDGE  
453,Highways & Transport Services,Street Lighting.,Street Lighting .,G00260,Third Party Payments          ,Private Contractors           ,EH01,Miscellaneous Agency Services           ,13182,29/07/2014,REV,MAY GURNEY LTD T/A CARTLEDGE  
454,Highways & Transport Services,Street Lighting.,Street Lighting .,G00260,Third Party Payments          ,Private Contractors           ,EH01,Miscellaneous Agency Services           ,861.7,15/07/2014,REV,MAY GURNEY LTD T/A CARTLEDGE  
455,Highways & Transport Services,Street Lighting.,Street Lighting .,G00260,Third Party Payments          ,Private Contractors           ,EH01,Miscellaneous Agency Services           ,4197.46,15/07/2014,REV,MAY GURNEY LTD T/A CARTLEDGE  
456,Highways & Transport Services,Off-street parking,St. Georges Car Park WEST M/S,G00302,Premises Related Expenditure  ,Energy Costs                  ,BB02,Electricity                             ,629.54,02/07/2014,REV,SCOTTISHPOWER                 
457,Highways & Transport Services,On-street parking,On Street Parking.,G00311,Premises Related Expenditure  ,RepairsAlterations&MtceOfBldgs,BA06,Repairs & Maintenance General           ,1182.33,10/07/2014,REV,TEASDALE GROUP LTD            
458,Highways & Transport Services,On-street parking,On Street Parking.,G00311,Premises Related Expenditure  ,RepairsAlterations&MtceOfBldgs,BA06,Repairs & Maintenance General           ,557,10/07/2014,REV,TEASDALE GROUP LTD            
459,Highways & Transport Services,On-street parking,On Street Parking.,G00311,Premises Related Expenditure  ,RepairsAlterations&MtceOfBldgs,BA06,Repairs & Maintenance General           ,840.39,10/07/2014,REV,TEASDALE GROUP LTD            
460,Highways & Transport Services,Parking Enforcement not split,Operational Running Costs,G00331,Supplies & Services           ,Equip Furniture/Materials     ,DA09,Equip-Purchases                         ,-900,27/06/2014,REV,VIDEALERT LTD                 
461,Highways & Transport Services,Parking Enforcement not split,Operational Running Costs,G00331,Supplies & Services           ,Equip Furniture/Materials     ,DA09,Equip-Purchases                         ,1471.77,15/07/2014,REV,MAY GURNEY LTD T/A CARTLEDGE  
462,Highways & Transport Services,Parking Enforcement not split,Operational Running Costs,G00331,Supplies & Services           ,Equip Furniture/Materials     ,DA09,Equip-Purchases                         ,2312.8,15/07/2014,REV,MAY GURNEY LTD T/A CARTLEDGE  
463,Highways & Transport Services,Parking Enforcement not split,Operational Running Costs,G00331,Supplies & Services           ,Equip Furniture/Materials     ,DA09,Equip-Purchases                         ,9975,23/05/2014,REV,VIDEALERT LTD                 
464,Highways & Transport Services,Parking Enforcement not split,Operational Running Costs,G00331,Supplies & Services           ,Prntng Stnry Gen Off Exp      ,DE01,External Printing                       ,1426,30/06/2014,REV,ORION SECURITY PRINT LIMITED  
465,Highways & Transport Services,Parking Enforcement not split,Operational Running Costs,G00331,Third Party Payments          ,Other Agencies                ,EJ58,Parking Cttee for London                ,21785.41,16/07/2014,REV,LONDON COUNCILS               
466,Highways & Transport Services,Hwys/Rds (struct) not split,NRSWA Permitting (LoPS),G00385,Supplies & Services           ,Comms and Computing           ,DG61,Computer Servs Special                  ,12662.39,30/06/2014,REV,PITNEY BOWES SOFTWARE LTD     
467,Highways & Transport Services,Hwys/Rds (struct) not split,Footpath Crossings.,G00390,Third Party Payments          ,Private Contractors           ,EH56,Carriageway/Fway Maint                  ,5749.22,25/07/2014,REV,FM CONWAY LTD                 
468,Highways & Transport Services,Hwys/Rds (struct) not split,Footpath Crossings.,G00390,Third Party Payments          ,Private Contractors           ,EH56,Carriageway/Fway Maint                  ,2138.11,09/07/2014,REV,FM CONWAY LTD                 
469,Highways & Transport Services,Hwys/Rds (struct) not split,Footpath Crossings.,G00390,Third Party Payments          ,Private Contractors           ,EH56,Carriageway/Fway Maint                  ,2566.7,25/07/2014,REV,FM CONWAY LTD                 
470,Highways & Transport Services,Hwys/Rds (struct) not split,Footpath Crossings.,G00390,Third Party Payments          ,Private Contractors           ,EH56,Carriageway/Fway Maint                  ,2248,24/06/2014,REV,UK POWER NETWORKS (OPERATIONS)
471,Highways & Transport Services,Hwys/Rds (struct) not split,Footpath Crossings.,G00390,Third Party Payments          ,Private Contractors           ,EH56,Carriageway/Fway Maint                  ,3267.7,09/07/2014,REV,FM CONWAY LTD                 
472,Highways & Transport Services,Hwys/Rds (struct) not split,Footpath Crossings.,G00390,Third Party Payments          ,Private Contractors           ,EH56,Carriageway/Fway Maint                  ,1968.42,02/07/2014,REV,FM CONWAY LTD                 
473,Highways & Transport Services,Hwys/Rds (struct) not split,Footpath Crossings.,G00390,Third Party Payments          ,Private Contractors           ,EH56,Carriageway/Fway Maint                  ,930.43,25/07/2014,REV,FM CONWAY LTD                 
474,Highways & Transport Services,Hwys/Rds (struct) not split,Footpath Crossings.,G00390,Third Party Payments          ,Private Contractors           ,EH56,Carriageway/Fway Maint                  ,1763.48,25/07/2014,REV,FM CONWAY LTD                 
475,Highways & Transport Services,Hwys/Rds (struct) not split,Footpath Crossings.,G00390,Third Party Payments          ,Private Contractors           ,EH56,Carriageway/Fway Maint                  ,3497.74,09/07/2014,REV,FM CONWAY LTD                 
476,Highways & Transport Services,Hwys/Rds (struct) not split,Footpath Crossings.,G00390,Third Party Payments          ,Private Contractors           ,EH56,Carriageway/Fway Maint                  ,2387.26,25/07/2014,REV,FM CONWAY LTD                 
477,Highways & Transport Services,Hwys/Rds (struct) not split,Footpath Crossings.,G00390,Third Party Payments          ,Private Contractors           ,EH56,Carriageway/Fway Maint                  ,3710.52,09/07/2014,REV,FM CONWAY LTD                 
478,Highways & Transport Services,Hwys/Rds (struct) not split,Footpath Crossings.,G00390,Third Party Payments          ,Private Contractors           ,EH56,Carriageway/Fway Maint                  ,2324.45,02/07/2014,REV,FM CONWAY LTD                 
479,Cultural Env Reg&Plan Services,Street Clean - Not highways,Street Cleansing (Inc. Gully),G00492,Supplies & Services           ,Equip Furniture/Materials     ,DA31,Waste Sacks & Bags                      ,648,14/07/2014,REV,CROMWELL POLYTHENE            
480,Cultural Env Reg&Plan Services,Street Clean - Not highways,Street Cleansing (Inc. Gully),G00492,Supplies & Services           ,Equip Furniture/Materials     ,DA31,Waste Sacks & Bags                      ,1093.5,17/07/2014,REV,CROMWELL POLYTHENE            
481,Cultural Env Reg&Plan Services,Street Clean - Not highways,Street Cleansing (Inc. Gully),G00492,Supplies & Services           ,Equip Furniture/Materials     ,DA32,Wheeled Bins                            ,4050,24/05/2014,REV,UK CONTAINER MAINTENANCE LTD  
482,Cultural Env Reg&Plan Services,Street Clean - Not highways,Street Cleansing (Inc. Gully),G00492,Supplies & Services           ,Catering                      ,DB50,Refreshments                            ,2291.25,18/06/2014,REV,FACILITIES MANAGEMENT CATERING
483,Cultural Env Reg&Plan Services,Street Clean - Not highways,Street Cleansing (Inc. Gully),G00492,Supplies & Services           ,Clothing Unfrms Laundry       ,DC02,Clothing & Uniforms                     ,4099.87,01/07/2014,REV,SAFETY MANAGEMENT             
484,Cultural Env Reg&Plan Services,Waste Disposal (not separated),Waste Disposal .,G00550,Third Party Payments          ,Private Contractors           ,EH66,Clinical Waste Disposal                 ,744.53,30/06/2014,REV,S.GRUNDON (WASTE) LTD.        
485,Cultural Env Reg&Plan Services,Waste Disposal (not separated),Waste Disposal .,G00550,Third Party Payments          ,Private Contractors           ,EH96,GULLY DISPOSAL                          ,1257.05,30/06/2014,REV,CORY ENVIRONMENTAL LIMITED    
486,Cultural Env Reg&Plan Services,Civic Amenity Sites,Garth Road Site,G00580,Premises Related Expenditure  ,Energy Costs                  ,BB02,Electricity                             ,995.47,02/07/2014,REV,SCOTTISHPOWER                 
487,Cultural Env Reg&Plan Services,Civic Amenity Sites,SLWP (Garth Rd Site)                    ,G00581,Transport Related Expenditure ,Direct Transport Costs        ,CA01,Petrol Derv & Oil                       ,1918.2,14/07/2014,REV,HALL FUELS                    
488,Highways & Transport Services,Hwys/Rds (struct) not split,Grass Cut/Tr Mtce,G00600,Premises Related Expenditure  ,Ground Maintenance Costs      ,BL03,Maintenance of Grounds                  ,3296.4,25/07/2014,REV,FM CONWAY LTD                 
489,Cultural Env Reg&Plan Services,Public Health,Dog Control.,G00620,Third Party Payments          ,Private Contractors           ,EH02,Miscellaneous Hired Services            ,4178.14,08/07/2014,REV,NOAH'S ARK ENVIRONMENTAL SERV.
490,Cultural Env Reg&Plan Services,Recycling (Collection),Recycling Activities,G00640,Third Party Payments          ,Private Contractors           ,EH65,PAYMENTS - SITA                         ,576.84,31/05/2014,REV,BRITANNIA CREST RECYCLING LTD 
491,Cultural Env Reg&Plan Services,Recycling (Collection),Recycling Activities,G00640,Third Party Payments          ,Private Contractors           ,EH65,PAYMENTS - SITA                         ,2274,07/06/2014,REV,BRITANNIA CREST RECYCLING LTD 
492,Cultural Env Reg&Plan Services,Recycling (Collection),Recycling Activities,G00640,Third Party Payments          ,Private Contractors           ,EH65,PAYMENTS - SITA                         ,843.64,14/06/2014,REV,BRITANNIA CREST RECYCLING LTD 
493,Cultural Env Reg&Plan Services,Recycling (Collection),Recycling Activities,G00640,Third Party Payments          ,Private Contractors           ,EH65,PAYMENTS - SITA                         ,613.72,17/05/2014,REV,BRITANNIA CREST RECYCLING LTD 
494,Cultural Env Reg&Plan Services,Recycling (Collection),Recycling Activities,G00640,Third Party Payments          ,Private Contractors           ,EH65,PAYMENTS - SITA                         ,2182.72,10/05/2014,REV,BRITANNIA CREST RECYCLING LTD 
495,Cultural Env Reg&Plan Services,Recycling (Collection),Recycling Activities,G00640,Third Party Payments          ,Private Contractors           ,EH65,PAYMENTS - SITA                         ,2295.64,24/05/2014,REV,BRITANNIA CREST RECYCLING LTD 
496,Cultural Env Reg&Plan Services,Recycling (Collection),Recycling Activities,G00640,Third Party Payments          ,Private Contractors           ,EH65,PAYMENTS - SITA                         ,1887.92,17/05/2014,REV,BRITANNIA CREST RECYCLING LTD 
497,Cultural Env Reg&Plan Services,Recycling (Collection),Garden Waste Service,G00647,Supplies & Services           ,Comms and Computing           ,DG04,Postage - General                       ,983.92,16/06/2014,REV,ROYAL MAIL GROUP LTD          
498,Cultural Env Reg&Plan Services,Recycling (Collection),Food Waste Service,G00648,Premises Related Expenditure  ,Cleaning and Domestic Supplies,BH03,Cleaning Services                       ,1805.4,06/05/2014,REV,KLEENCARE SERVICE LTD         
499,Cultural Env Reg&Plan Services,Trade Waste Collection,Commercial Waste,G00663,Supplies & Services           ,Equip Furniture/Materials     ,DA08,Tools-Purchase                          ,984.15,30/06/2014,REV,BELL BRUSH                    
500,Cultural Env Reg&Plan Services,Street Clean - Not highways,Waste Enforcement,G00680,Supplies & Services           ,Services                      ,DF30,Activities Programme                    ,1400,27/06/2014,REV,DANGEROUS THEATRE COMPANY     
501,Cultural Env Reg&Plan Services,Street Clean - Not highways,Waste Enforcement,G00680,Third Party Payments          ,Private Contractors           ,EH02,Miscellaneous Hired Services            ,13824,31/05/2014,REV,PCL SECURITY LTD              
502,Cultural Env Reg&Plan Services,Inspect/Enforce (Consumer P),Trading Standards,G00690,Supplies & Services           ,Services                      ,DF11,Counsel's Fees                          ,9076.67,19/06/2014,REV,REDACTED
503,Cultural Env Reg&Plan Services,Food Safety,Health & Safety,G00697,Third Party Payments          ,Private Contractors           ,EH10,Contract Payments                       ,1470,30/05/2014,REV,PUBLIC ANALYST SCIENTIFIC SER.
504,Cultural Env Reg&Plan Services,Housing Standards,AIR QUALITY GRANT (DEFRA) MB,G00732,Third Party Payments          ,Private Contractors           ,EH02,Miscellaneous Hired Services            ,7300,09/07/2014,REV,DIVA CREATIVE LTD             
505,Cultural Env Reg&Plan Services,Housing Standards,AIR QUALITY GRANT (DEFRA) MB,G00732,Third Party Payments          ,Private Contractors           ,EH02,Miscellaneous Hired Services            ,7700,18/06/2014,REV,DIVA CREATIVE LTD             
506,Cultural Env Reg&Plan Services,Housing Standards,Contaminated Land Grant,G00734,Supplies & Services           ,Services                      ,DF03,Consultants                             ,3560,31/05/2014,REV,HYDROCK CONSULTANTS LTD       
507,Cultural Env Reg&Plan Services,Mgt & Support (Env),Waste Management,G00900,Employees                     ,Indirect Employee Expenses    ,AB02,Recruitment Adverts                     ,3226.16,30/05/2014,REV,HAYS EXECUTIVE                
508,Cultural Env Reg&Plan Services,Mgt & Support (Env),Waste Management,G00900,Employees                     ,Indirect Employee Expenses    ,AB02,Recruitment Adverts                     ,3216.67,27/06/2014,REV,HAYS EXECUTIVE                
509,Cultural Env Reg&Plan Services,Mgt & Support (Env),Waste Management,G00900,Employees                     ,Indirect Employee Expenses    ,AB02,Recruitment Adverts                     ,3416.67,27/06/2014,REV,HAYS EXECUTIVE                
510,Cultural Env Reg&Plan Services,Mgt & Support (Env),Waste Management,G00900,Employees                     ,Indirect Employee Expenses    ,AB02,Recruitment Adverts                     ,2440,10/07/2014,REV,PENNA COMMUNICATIONS (NO 2 A/C
511,Cultural Env Reg&Plan Services,Mgt & Support (Env),Waste Management,G00900,Employees                     ,Indirect Employee Expenses    ,AB02,Recruitment Adverts                     ,4105.89,27/06/2014,REV,HAYS EXECUTIVE                
512,Cultural Env Reg&Plan Services,Mgt & Support (Env),Waste Management,G00900,Employees                     ,Indirect Employee Expenses    ,AB02,Recruitment Adverts                     ,3416.66,30/05/2014,REV,HAYS EXECUTIVE                
513,Cultural Env Reg&Plan Services,Mgt & Support (Env),Waste Management,G00900,Employees                     ,Indirect Employee Expenses    ,AB02,Recruitment Adverts                     ,1700,27/06/2014,REV,HAYS EXECUTIVE                
514,Cultural Env Reg&Plan Services,Mgt & Support (Env),Waste Management,G00900,Premises Related Expenditure  ,Energy Costs                  ,BB02,Electricity                             ,539.21,02/07/2014,REV,SCOTTISHPOWER                 
515,Central Services,Grants - Voluntary Groups,Vestry Hall,G19290,Employees                     ,Direct Employee Expenses      ,AA17,Agency Staff & Casual Paymts            ,1083.9,30/06/2014,REV,REDACTED
516,Central Services,Grants - Voluntary Groups,Vestry Hall,G19290,Employees                     ,Direct Employee Expenses      ,AA17,Agency Staff & Casual Paymts            ,5148.13,10/07/2014,REV,REDACTED
517,Central Services,Grants - Voluntary Groups,Vestry Hall,G19290,Premises Related Expenditure  ,Water Services                ,BE01,Use of Water (Metered)                  ,505.33,17/07/2014,REV,THAMES WATER UTILITIES LTD    
518,Central Services,Grants - Voluntary Groups,Vestry Hall,G19290,Premises Related Expenditure  ,Cleaning and Domestic Supplies,BH03,Cleaning Services                       ,1383.56,01/07/2014,REV,BIRKIN CLEANING SERVICES LTD  
519,Central Services,Grants - Voluntary Groups,Vestry Hall,G19290,Supplies & Services           ,Expenses                      ,DH50,Special Projects                        ,3921,01/07/2014,REV,SOCIAL ENTERPRISE MERTON CIC  
520,Highways & Transport Services,Transport Plg/Policy/Strategy,Transport Planning,H01070,Supplies & Services           ,Services                      ,DF05,Surveys (General)                       ,13182,11/06/2014,REV,HAVERSTOCK ASSOCIATES LLP     
521,Highways & Transport Services,Safe routes inc schl x patrol,School & Road Safety TFL                ,H01083,Supplies & Services           ,Equip Furniture/Materials     ,DA04,Materials                               ,508,07/07/2014,REV,BLAKES DRIVER TRAINING        
522,Highways & Transport Services,Safe routes inc schl x patrol,School & Road Safety TFL                ,H01083,Supplies & Services           ,Equip Furniture/Materials     ,DA04,Materials                               ,926,20/06/2014,REV,BLAKES DRIVER TRAINING        
523,Cultural Env Reg&Plan Services,DC Advice Apps & Reg not split,Development Control,H01130,Employees                     ,Indirect Employee Expenses    ,AB57,External Training Costs                 ,2241.67,16/06/2014,REV,RTPI CONFERENCES              
524,Cultural Env Reg&Plan Services,DC Advice Apps & Reg not split,Development Control,H01130,Supplies & Services           ,Equip Furniture/Materials     ,DA09,Equip-Purchases                         ,1000,31/03/2014,REV,OCE (UK) LTD                  
525,Cultural Env Reg&Plan Services,DC Advice Apps & Reg not split,Development Control,H01130,Supplies & Services           ,Services                      ,DF02,Misc Advertising/Publicity              ,723.84,13/06/2014,REV,NEWSQUEST (LONDON)LTD         
526,Cultural Env Reg&Plan Services,DC Advice Apps & Reg not split,Development Control,H01130,Supplies & Services           ,Services                      ,DF02,Misc Advertising/Publicity              ,565.5,20/06/2014,REV,NEWSQUEST (LONDON)LTD         
527,Cultural Env Reg&Plan Services,DC Advice Apps & Reg not split,Development Control,H01130,Supplies & Services           ,Services                      ,DF11,Counsel's fees                          ,5285,26/04/2014,REV,REDACTED
528,Cultural Env Reg&Plan Services,DC Advice Apps & Reg not split,Development Control,H01130,Supplies & Services           ,Grants and Subscriptions      ,DJ04,Subscriptions                           ,1070,13/05/2014,REV,HAYMARKET PUBLISHING SERV.LTD 
529,Cultural Env Reg&Plan Services,Planning Policy not split,Spatial Policy,H01173,Supplies & Services           ,Services                      ,DF96,LBM Legal Services                      ,650,14/07/2014,REV,BUDE NATHAN IWANIER SOLICITORS
530,Cultural Env Reg&Plan Services,Planning Policy not split,Spatial Policy,H01173,Supplies & Services           ,Services                      ,DF96,LBM Legal Services                      ,1400,04/06/2014,REV,REDACTED
531,Cultural Env Reg&Plan Services,Planning Policy not split,Spatial Policy,H01173,Third Party Payments          ,Private Contractors           ,EH10,Contract Payments                       ,37381.51,17/06/2014,REV,THE PLANNING INSPECTORATE     
532,Cultural Env Reg&Plan Services,Planning Policy not split,REGENERATION & INVESTMENT,H01174,Supplies & Services           ,Services                      ,DF03,Consultants                             ,2200,30/06/2014,REV,STUDIO WEAVE LTD              
533,Cultural Env Reg&Plan Services,Planning Policy not split,HPDG - Spatial Policy,H01183,Supplies & Services           ,Services                      ,DF03,Consultants                             ,3500,16/05/2014,REV,REDACTED
534,Cultural Env Reg&Plan Services,Planning Policy not split,HPDG - Spatial Policy,H01183,Supplies & Services           ,Services                      ,DF03,Consultants                             ,1500,23/06/2014,REV,SWBA                          
535,Cultural Env Reg&Plan Services,Planning Policy not split,HPDG - Spatial Policy,H01183,Supplies & Services           ,Services                      ,DF05,Surveys (General)                       ,1950,08/07/2014,REV,FOXTROT SURVEYS LTD           
536,Cultural Env Reg&Plan Services,Planning Policy not split,HPDG - Spatial Policy,H01183,Supplies & Services           ,Services                      ,DF05,Surveys (General)                       ,2900,27/06/2014,REV,FOXTROT SURVEYS LTD           
537,Cultural Env Reg&Plan Services,Planning Policy not split,HPDG - Spatial Policy,H01183,Supplies & Services           ,Services                      ,DF05,Surveys (General)                       ,1125,10/06/2014,REV,MEND LONDON LTD               
538,CS -Oth Operating Inc & Expend,Extraordinary Items & PY Adj.,MILES RD GENERATOR,H01203,Premises Related Expenditure  ,RepairsAlterations&MtceOfBldgs,BA05,DDM - Electrical                        ,900,15/07/2014,REV,LAIDLAW ELECTRICAL            
539,Cultural Env Reg&Plan Services,Economic Dev (Not separated),LABGI-BUSINESS SUPPORT SERVICE,H01219,Third Party Payments          ,Private Contractors           ,EH02,Miscellaneous Hired Services            ,50000,26/06/2014,REV,MERTON CHAMBER OF COMMERCE    
540,Cultural Env Reg&Plan Services,Economic Dev (Not separated),LABGI-BUSINESS SUPPORT SERVICE,H01219,Third Party Payments          ,Private Contractors           ,EH02,Miscellaneous Hired Services            ,8500,24/06/2014,REV,MERTON CHAMBER OF COMMERCE    
541,Cultural Env Reg&Plan Services,Economic Dev (Not separated),GO GREEN PLUS (S106),H01225,Supplies & Services           ,Grants and Subscriptions      ,DJ54,Contributions                           ,2040.15,30/06/2014,REV,MERTON CHAMBER OF COMMERCE    
542,Cultural Env Reg&Plan Services,Economic Dev (Not separated),S106 - Town Centre Wimbledon,H01228,Supplies & Services           ,Prntng Stnry Gen Off Exp      ,DE22,Marketing                               ,2000,14/07/2014,REV,VICTOR FILMS LTD              
543,Cultural Env Reg&Plan Services,Economic Dev (Not separated),S106 - Town Centre Wimbledon,H01228,Supplies & Services           ,Services                      ,DF30,Activities Programme                    ,1000,21/07/2014,REV,SPUD & YAM                    
544,Cultural Env Reg&Plan Services,Economic Dev (Not separated),S106 - Town Centre Wimbledon,H01228,Supplies & Services           ,Services                      ,DF30,Activities Programme                    ,4000,21/07/2014,REV,SPUD & YAM                    
545,CS -Oth Operating Inc & Expend,T/A Vehicle Maintenance etc,Transport-Contract Hire,J01374,Transport Related Expenditure ,Direct Transport Costs        ,CA01,Petrol Derv & Oil                       ,38334.78,09/07/2014,REV,HARVEST ENERGY LIMITED        
546,CS -Oth Operating Inc & Expend,T/A Vehicle Maintenance etc,Transport-Contract Hire,J01374,Transport Related Expenditure ,Direct Transport Costs        ,CA01,Petrol Derv & Oil                       ,38453.04,19/06/2014,REV,HARVEST ENERGY LIMITED        
547,CS -Oth Operating Inc & Expend,T/A Vehicle Maintenance etc,Transport-Contract Hire,J01374,Transport Related Expenditure ,Contract Hire and Op Leasing  ,CC53,Plant Hire for MRCS                     ,1325,01/07/2014,REV,GVS HIRE LTD                  
548,CS -Oth Operating Inc & Expend,T/A Vehicle Maintenance etc,Transport-Contract Hire,J01374,Transport Related Expenditure ,Contract Hire and Op Leasing  ,CC53,Plant Hire for MRCS                     ,750,30/06/2014,REV,M6 VEHICLE HIRE               
549,CS -Oth Operating Inc & Expend,T/A Vehicle Maintenance etc,Transport-Contract Hire,J01374,Transport Related Expenditure ,Contract Hire and Op Leasing  ,CC53,Plant Hire for MRCS                     ,2400,30/06/2014,REV,M6 VEHICLE HIRE               
550,CS -Oth Operating Inc & Expend,T/A Vehicle Maintenance etc,Transport-Contract Hire,J01374,Transport Related Expenditure ,Contract Hire and Op Leasing  ,CC53,Plant Hire for MRCS                     ,516,10/07/2014,REV,REDACTED
551,CS -Oth Operating Inc & Expend,T/A Vehicle Maintenance etc,Transport-Contract Hire,J01374,Transport Related Expenditure ,Contract Hire and Op Leasing  ,CC53,Plant Hire for MRCS                     ,925,11/07/2014,REV,DRM MUNICIPAL SERVICES LIMITED
552,CS -Oth Operating Inc & Expend,T/A Vehicle Maintenance etc,Transport-Contract Hire,J01374,Transport Related Expenditure ,Contract Hire and Op Leasing  ,CC53,Plant Hire for MRCS                     ,925,04/07/2014,REV,DRM MUNICIPAL SERVICES LIMITED
553,CS -Oth Operating Inc & Expend,T/A Vehicle Maintenance etc,Transport-Contract Hire,J01374,Transport Related Expenditure ,Contract Hire and Op Leasing  ,CC53,Plant Hire for MRCS                     ,1325,01/07/2014,REV,GVS HIRE LTD                  
554,CS -Oth Operating Inc & Expend,T/A Vehicle Maintenance etc,Transport-Contract Hire,J01374,Transport Related Expenditure ,Contract Hire and Op Leasing  ,CC53,Plant Hire for MRCS                     ,925,27/06/2014,REV,DRM MUNICIPAL SERVICES LIMITED
555,CS -Oth Operating Inc & Expend,T/A Vehicle Maintenance etc,Transport-Contract Hire,J01374,Transport Related Expenditure ,Contract Hire and Op Leasing  ,CC53,Plant Hire for MRCS                     ,725,27/06/2014,REV,DRM MUNICIPAL SERVICES LIMITED
556,CS -Oth Operating Inc & Expend,T/A Vehicle Maintenance etc,Transport-Contract Hire,J01374,Transport Related Expenditure ,Contract Hire and Op Leasing  ,CC53,Plant Hire for MRCS                     ,925,20/06/2014,REV,DRM MUNICIPAL SERVICES LIMITED
557,CS -Oth Operating Inc & Expend,T/A Vehicle Maintenance etc,Transport-Contract Hire,J01374,Transport Related Expenditure ,Contract Hire and Op Leasing  ,CC53,Plant Hire for MRCS                     ,693,30/06/2014,REV,REDACTED
558,CS -Oth Operating Inc & Expend,T/A Vehicle Maintenance etc,Transport-Contract Hire,J01374,Transport Related Expenditure ,Contract Hire and Op Leasing  ,CC53,Plant Hire for MRCS                     ,925,13/06/2014,REV,DRM MUNICIPAL SERVICES LIMITED
559,CS -Oth Operating Inc & Expend,T/A Vehicle Maintenance etc,Transport-Contract Hire,J01374,Transport Related Expenditure ,Contract Hire and Op Leasing  ,CC53,Plant Hire for MRCS                     ,675,17/05/2014,REV,DRM MUNICIPAL SERVICES LIMITED
560,CS -Oth Operating Inc & Expend,T/A Vehicle Maintenance etc,Transport-Contract Hire,J01374,Transport Related Expenditure ,Contract Hire and Op Leasing  ,CC56,Plant Hire for Leisure                  ,1755,30/06/2014,REV,REDACTED
561,CS -Oth Operating Inc & Expend,T/A Vehicle Maintenance etc,Transport-Contract Hire,J01374,Transport Related Expenditure ,Contract Hire and Op Leasing  ,CC57,Pland Hire for Housing                  ,940,30/06/2014,REV,REDACTED
562,CS -Oth Operating Inc & Expend,T/A Vehicle Maintenance etc,Transport-Contract Hire,J01374,Transport Related Expenditure ,Contract Hire and Op Leasing  ,CC59,HIRING TRANSPORT OPERATIONS             ,1386,30/06/2014,REV,BURNT TREE VEHICLE RENTAL     
563,CS -Oth Operating Inc & Expend,T/A Vehicle Maintenance etc,Transport-Contract Hire,J01374,Transport Related Expenditure ,Contract Hire and Op Leasing  ,CC59,HIRING TRANSPORT OPERATIONS             ,2238.32,30/06/2014,REV,REDACTED
564,CS -Oth Operating Inc & Expend,T/A Vehicle Maintenance etc,Transport-Contract Hire,J01374,Transport Related Expenditure ,Contract Hire and Op Leasing  ,CC59,HIRING TRANSPORT OPERATIONS             ,1386,30/06/2014,REV,BURNT TREE VEHICLE RENTAL     
565,CS -Oth Operating Inc & Expend,T/A Vehicle Maintenance etc,Transport-Contract Hire,J01374,Transport Related Expenditure ,Contract Hire and Op Leasing  ,CC59,HIRING TRANSPORT OPERATIONS             ,1386,30/06/2014,REV,BURNT TREE VEHICLE RENTAL     
566,CS -Oth Operating Inc & Expend,T/A Vehicle Maintenance etc,Transport-Contract Hire,J01374,Transport Related Expenditure ,Contract Hire and Op Leasing  ,CC64,HIRING TRANSPORT SEN CABS               ,725,30/06/2014,REV,SHERWOOD TRANSPORT GROUP      
567,CS -Oth Operating Inc & Expend,T/A Vehicle Maintenance etc,Transport-Contract Hire,J01374,Transport Related Expenditure ,Contract Hire and Op Leasing  ,CC64,HIRING TRANSPORT SEN CABS               ,1250,30/06/2014,REV,NVCAR HIRE LTD                
568,CS -Oth Operating Inc & Expend,T/A Vehicle Maintenance etc,Transport-Contract Hire,J01374,Transport Related Expenditure ,Contract Hire and Op Leasing  ,CC64,HIRING TRANSPORT SEN CABS               ,3420,30/06/2014,REV,BARCLAYS ASSET & SALES FINANCE
569,CS -Oth Operating Inc & Expend,T/A Vehicle Maintenance etc,Transport-Contract Hire,J01374,Transport Related Expenditure ,Contract Hire and Op Leasing  ,CC64,HIRING TRANSPORT SEN CABS               ,1096.66,30/06/2014,REV,GALPINS SERVICE               
570,CS -Oth Operating Inc & Expend,T/A Vehicle Maintenance etc,Transport-Contract Hire,J01374,Transport Related Expenditure ,Contract Hire and Op Leasing  ,CC64,HIRING TRANSPORT SEN CABS               ,1386,30/06/2014,REV,NVCAR HIRE LTD                
571,CS -Oth Operating Inc & Expend,T/A Vehicle Maintenance etc,Transport-Contract Hire,J01374,Transport Related Expenditure ,Contract Hire and Op Leasing  ,CC64,HIRING TRANSPORT SEN CABS               ,1554,30/06/2014,REV,CAPITAL CARS                  
572,CS -Oth Operating Inc & Expend,T/A Vehicle Maintenance etc,Transport-Contract Hire,J01374,Transport Related Expenditure ,Contract Hire and Op Leasing  ,CC64,HIRING TRANSPORT SEN CABS               ,1890,30/06/2014,REV,CAPITAL CARS                  
573,CS -Oth Operating Inc & Expend,T/A Vehicle Maintenance etc,Transport-Contract Hire,J01374,Transport Related Expenditure ,Contract Hire and Op Leasing  ,CC64,HIRING TRANSPORT SEN CABS               ,858.9,30/06/2014,REV,SILVERBURN FINANCE (UK) LTD   
574,CS -Oth Operating Inc & Expend,T/A Vehicle Maintenance etc,Transport-Contract Hire,J01374,Transport Related Expenditure ,Contract Hire and Op Leasing  ,CC64,HIRING TRANSPORT SEN CABS               ,1440,31/07/2014,REV,KINGSTON ACCESSIBILITY TRAN LT
575,CS -Oth Operating Inc & Expend,T/A Vehicle Maintenance etc,Transport-Contract Hire,J01374,Transport Related Expenditure ,Contract Hire and Op Leasing  ,CC64,HIRING TRANSPORT SEN CABS               ,1800,30/06/2014,REV,KINGSTON ACCESSIBILITY TRAN LT
576,CS -Oth Operating Inc & Expend,T/A Vehicle Maintenance etc,Transport-Contract Hire,J01374,Transport Related Expenditure ,Contract Hire and Op Leasing  ,CC64,HIRING TRANSPORT SEN CABS               ,2855.58,30/06/2014,REV,KINGSTON ACCESSIBILITY TRAN LT
577,CS -Oth Operating Inc & Expend,T/A Vehicle Maintenance etc,Transport-Contract Hire,J01374,Transport Related Expenditure ,Contract Hire and Op Leasing  ,CC64,HIRING TRANSPORT SEN CABS               ,3339,30/06/2014,REV,SHERWOOD TRANSPORT GROUP      
578,CS -Oth Operating Inc & Expend,T/A Vehicle Maintenance etc,Transport-Contract Hire,J01374,Transport Related Expenditure ,Contract Hire and Op Leasing  ,CC64,HIRING TRANSPORT SEN CABS               ,3759,30/06/2014,REV,SILVERBURN FINANCE (UK) LTD   
579,CS -Oth Operating Inc & Expend,T/A Vehicle Maintenance etc,Transport-Contract Hire,J01374,Transport Related Expenditure ,Contract Hire and Op Leasing  ,CC64,HIRING TRANSPORT SEN CABS               ,2380,30/06/2014,REV,BRUNSWICK CARS LTD            
580,CS -Oth Operating Inc & Expend,T/A Vehicle Maintenance etc,Transport-Contract Hire,J01374,Transport Related Expenditure ,Contract Hire and Op Leasing  ,CC64,HIRING TRANSPORT SEN CABS               ,550,30/06/2014,REV,CHEAM STATION CARS            
581,CS -Oth Operating Inc & Expend,T/A Vehicle Maintenance etc,Transport-Contract Hire,J01374,Transport Related Expenditure ,Contract Hire and Op Leasing  ,CC64,HIRING TRANSPORT SEN CABS               ,945,30/06/2014,REV,CAPITAL CARS                  
582,CS -Oth Operating Inc & Expend,T/A Vehicle Maintenance etc,Transport-Contract Hire,J01374,Transport Related Expenditure ,Contract Hire and Op Leasing  ,CC64,HIRING TRANSPORT SEN CABS               ,2032.8,30/06/2014,REV,SHERWOOD TRANSPORT GROUP      
583,CS -Oth Operating Inc & Expend,T/A Vehicle Maintenance etc,Transport-Contract Hire,J01374,Transport Related Expenditure ,Contract Hire and Op Leasing  ,CC64,HIRING TRANSPORT SEN CABS               ,1890,30/06/2014,REV,SHERWOOD TRANSPORT GROUP      
584,CS -Oth Operating Inc & Expend,T/A Vehicle Maintenance etc,Transport-Contract Hire,J01374,Transport Related Expenditure ,Contract Hire and Op Leasing  ,CC64,HIRING TRANSPORT SEN CABS               ,2760,30/06/2014,REV,WALLINGTON CARS & COURIERS LTD
585,CS -Oth Operating Inc & Expend,T/A Vehicle Maintenance etc,Transport-Contract Hire,J01374,Transport Related Expenditure ,Contract Hire and Op Leasing  ,CC64,HIRING TRANSPORT SEN CABS               ,624,30/06/2014,REV,CAPITAL CARS                  
586,CS -Oth Operating Inc & Expend,T/A Vehicle Maintenance etc,Transport-Contract Hire,J01374,Transport Related Expenditure ,Contract Hire and Op Leasing  ,CC64,HIRING TRANSPORT SEN CABS               ,825,30/06/2014,REV,SHERWOOD TRANSPORT GROUP      
587,CS -Oth Operating Inc & Expend,T/A Vehicle Maintenance etc,Transport-Contract Hire,J01374,Transport Related Expenditure ,Contract Hire and Op Leasing  ,CC64,HIRING TRANSPORT SEN CABS               ,1360,30/06/2014,REV,GALPINS SERVICE               
588,CS -Oth Operating Inc & Expend,T/A Vehicle Maintenance etc,Transport-Contract Hire,J01374,Transport Related Expenditure ,Contract Hire and Op Leasing  ,CC64,HIRING TRANSPORT SEN CABS               ,1350,30/06/2014,REV,NVCAR HIRE LTD                
589,CS -Oth Operating Inc & Expend,T/A Vehicle Maintenance etc,Transport-Contract Hire,J01374,Transport Related Expenditure ,Contract Hire and Op Leasing  ,CC64,HIRING TRANSPORT SEN CABS               ,1659,30/06/2014,REV,SHERWOOD TRANSPORT GROUP      
590,CS -Oth Operating Inc & Expend,T/A Vehicle Maintenance etc,Transport-Contract Hire,J01374,Transport Related Expenditure ,Contract Hire and Op Leasing  ,CC64,HIRING TRANSPORT SEN CABS               ,924,30/06/2014,REV,NVCAR HIRE LTD                
591,CS -Oth Operating Inc & Expend,T/A Vehicle Maintenance etc,Transport-Contract Hire,J01374,Transport Related Expenditure ,Contract Hire and Op Leasing  ,CC64,HIRING TRANSPORT SEN CABS               ,1092,30/06/2014,REV,CHEAM STATION CARS            
592,CS -Oth Operating Inc & Expend,T/A Vehicle Maintenance etc,Transport-Contract Hire,J01374,Transport Related Expenditure ,Contract Hire and Op Leasing  ,CC64,HIRING TRANSPORT SEN CABS               ,1599.2,30/06/2014,REV,KINGSTON ACCESSIBILITY TRAN LT
593,CS -Oth Operating Inc & Expend,T/A Vehicle Maintenance etc,Transport-Contract Hire,J01374,Transport Related Expenditure ,Contract Hire and Op Leasing  ,CC64,HIRING TRANSPORT SEN CABS               ,2750,31/07/2014,REV,KINGSTON ACCESSIBILITY TRAN LT
594,CS -Oth Operating Inc & Expend,T/A Vehicle Maintenance etc,Transport-Contract Hire,J01374,Transport Related Expenditure ,Contract Hire and Op Leasing  ,CC64,HIRING TRANSPORT SEN CABS               ,1806,30/06/2014,REV,A STAR TRANSPORT LIMITED      
595,CS -Oth Operating Inc & Expend,T/A Vehicle Maintenance etc,Transport-Contract Hire,J01374,Transport Related Expenditure ,Contract Hire and Op Leasing  ,CC64,HIRING TRANSPORT SEN CABS               ,2604,30/06/2014,REV,KINGSTON ACCESSIBILITY TRAN LT
596,CS -Oth Operating Inc & Expend,T/A Vehicle Maintenance etc,Transport-Contract Hire,J01374,Transport Related Expenditure ,Contract Hire and Op Leasing  ,CC64,HIRING TRANSPORT SEN CABS               ,2920,30/06/2014,REV,KINGSTON ACCESSIBILITY TRAN LT
597,CS -Oth Operating Inc & Expend,T/A Vehicle Maintenance etc,Transport-Contract Hire,J01374,Transport Related Expenditure ,Contract Hire and Op Leasing  ,CC64,HIRING TRANSPORT SEN CABS               ,704,01/07/2014,REV,AERIAL CAR SERVICES LTD       
598,CS -Oth Operating Inc & Expend,T/A Vehicle Maintenance etc,Transport-Contract Hire,J01374,Transport Related Expenditure ,Contract Hire and Op Leasing  ,CC64,HIRING TRANSPORT SEN CABS               ,840,30/06/2014,REV,NVCAR HIRE LTD                
599,CS -Oth Operating Inc & Expend,T/A Vehicle Maintenance etc,Transport-Contract Hire,J01374,Transport Related Expenditure ,Contract Hire and Op Leasing  ,CC64,HIRING TRANSPORT SEN CABS               ,1560,30/06/2014,REV,NVCAR HIRE LTD                
600,CS -Oth Operating Inc & Expend,T/A Vehicle Maintenance etc,Transport-Contract Hire,J01374,Transport Related Expenditure ,Contract Hire and Op Leasing  ,CC64,HIRING TRANSPORT SEN CABS               ,1637.58,30/06/2014,REV,KINGSTON ACCESSIBILITY TRAN LT
601,CS -Oth Operating Inc & Expend,T/A Vehicle Maintenance etc,Transport-Contract Hire,J01374,Transport Related Expenditure ,Contract Hire and Op Leasing  ,CC64,HIRING TRANSPORT SEN CABS               ,3339,30/06/2014,REV,SHERWOOD TRANSPORT GROUP      
602,CS -Oth Operating Inc & Expend,T/A Vehicle Maintenance etc,Transport-Contract Hire,J01374,Transport Related Expenditure ,Contract Hire and Op Leasing  ,CC64,HIRING TRANSPORT SEN CABS               ,690,30/06/2014,REV,CAPITAL CARS                  
603,CS -Oth Operating Inc & Expend,T/A Vehicle Maintenance etc,Transport-Contract Hire,J01374,Transport Related Expenditure ,Contract Hire and Op Leasing  ,CC64,HIRING TRANSPORT SEN CABS               ,1638.4,31/07/2014,REV,KINGSTON ACCESSIBILITY TRAN LT
604,CS -Oth Operating Inc & Expend,T/A Vehicle Maintenance etc,Transport-Contract Hire,J01374,Transport Related Expenditure ,Contract Hire and Op Leasing  ,CC64,HIRING TRANSPORT SEN CABS               ,3444,30/06/2014,REV,BARCLAYS ASSET & SALES FINANCE
605,CS -Oth Operating Inc & Expend,T/A Vehicle Maintenance etc,Transport-Contract Hire,J01374,Transport Related Expenditure ,Contract Hire and Op Leasing  ,CC64,HIRING TRANSPORT SEN CABS               ,1499.7,31/07/2014,REV,KINGSTON ACCESSIBILITY TRAN LT
606,CS -Oth Operating Inc & Expend,T/A Vehicle Maintenance etc,Transport-Contract Hire,J01374,Transport Related Expenditure ,Contract Hire and Op Leasing  ,CC64,HIRING TRANSPORT SEN CABS               ,1325.66,31/07/2014,REV,KINGSTON ACCESSIBILITY TRAN LT
607,CS -Oth Operating Inc & Expend,T/A Vehicle Maintenance etc,Transport-Contract Hire,J01374,Transport Related Expenditure ,Contract Hire and Op Leasing  ,CC64,HIRING TRANSPORT SEN CABS               ,1675.38,30/06/2014,REV,KINGSTON ACCESSIBILITY TRAN LT
608,CS -Oth Operating Inc & Expend,T/A Vehicle Maintenance etc,Transport-Contract Hire,J01374,Transport Related Expenditure ,Contract Hire and Op Leasing  ,CC64,HIRING TRANSPORT SEN CABS               ,2058,30/06/2014,REV,KINGSTON ACCESSIBILITY TRAN LT
609,CS -Oth Operating Inc & Expend,T/A Vehicle Maintenance etc,Transport-Contract Hire,J01374,Transport Related Expenditure ,Contract Hire and Op Leasing  ,CC64,HIRING TRANSPORT SEN CABS               ,550,30/06/2014,REV,NVCAR HIRE LTD                
610,CS -Oth Operating Inc & Expend,T/A Vehicle Maintenance etc,Transport-Contract Hire,J01374,Transport Related Expenditure ,Contract Hire and Op Leasing  ,CC64,HIRING TRANSPORT SEN CABS               ,3570,30/06/2014,REV,BARCLAYS ASSET & SALES FINANCE
611,CS -Oth Operating Inc & Expend,T/A Vehicle Maintenance etc,Transport-Contract Hire,J01374,Transport Related Expenditure ,Contract Hire and Op Leasing  ,CC64,HIRING TRANSPORT SEN CABS               ,792,30/06/2014,REV,NVCAR HIRE LTD                
612,CS -Oth Operating Inc & Expend,T/A Vehicle Maintenance etc,Transport-Contract Hire,J01374,Transport Related Expenditure ,Contract Hire and Op Leasing  ,CC64,HIRING TRANSPORT SEN CABS               ,936,30/06/2014,REV,NVCAR HIRE LTD                
613,CS -Oth Operating Inc & Expend,T/A Vehicle Maintenance etc,Transport-Contract Hire,J01374,Transport Related Expenditure ,Contract Hire and Op Leasing  ,CC64,HIRING TRANSPORT SEN CABS               ,-714,31/05/2014,REV,BRUNSWICK CARS LTD            
614,CS -Oth Operating Inc & Expend,T/A Vehicle Maintenance etc,Transport-Contract Hire,J01374,Transport Related Expenditure ,Contract Hire and Op Leasing  ,CC64,HIRING TRANSPORT SEN CABS               ,-680,31/05/2014,REV,BRUNSWICK CARS LTD            
615,CS -Oth Operating Inc & Expend,T/A Vehicle Maintenance etc,Transport-Contract Hire,J01374,Transport Related Expenditure ,Contract Hire and Op Leasing  ,CC64,HIRING TRANSPORT SEN CABS               ,2138,30/06/2014,REV,KINGSTON ACCESSIBILITY TRAN LT
616,CS -Oth Operating Inc & Expend,T/A Vehicle Maintenance etc,Transport-Contract Hire,J01374,Transport Related Expenditure ,Contract Hire and Op Leasing  ,CC64,HIRING TRANSPORT SEN CABS               ,600,30/06/2014,REV,SHERWOOD TRANSPORT GROUP      
617,CS -Oth Operating Inc & Expend,T/A Vehicle Maintenance etc,Transport-Contract Hire,J01374,Transport Related Expenditure ,Contract Hire and Op Leasing  ,CC64,HIRING TRANSPORT SEN CABS               ,3192,30/06/2014,REV,BARCLAYS ASSET & SALES FINANCE
618,CS -Oth Operating Inc & Expend,T/A Vehicle Maintenance etc,Transport-Contract Hire,J01374,Transport Related Expenditure ,Contract Hire and Op Leasing  ,CC64,HIRING TRANSPORT SEN CABS               ,1890,30/06/2014,REV,CHEAM STATION CARS            
619,CS -Oth Operating Inc & Expend,T/A Vehicle Maintenance etc,Transport-Contract Hire,J01374,Transport Related Expenditure ,Contract Hire and Op Leasing  ,CC64,HIRING TRANSPORT SEN CABS               ,1596,30/06/2014,REV,CAPITAL CARS                  
620,CS -Oth Operating Inc & Expend,T/A Vehicle Maintenance etc,Transport-Contract Hire,J01374,Transport Related Expenditure ,Contract Hire and Op Leasing  ,CC64,HIRING TRANSPORT SEN CABS               ,1890,30/06/2014,REV,SHERWOOD TRANSPORT GROUP      
621,CS -Oth Operating Inc & Expend,T/A Vehicle Maintenance etc,Transport-Contract Hire,J01374,Transport Related Expenditure ,Contract Hire and Op Leasing  ,CC64,HIRING TRANSPORT SEN CABS               ,1036.8,30/06/2014,REV,KINGSTON ACCESSIBILITY TRAN LT
622,CS -Oth Operating Inc & Expend,T/A Vehicle Maintenance etc,Transport-Contract Hire,J01374,Transport Related Expenditure ,Contract Hire and Op Leasing  ,CC64,HIRING TRANSPORT SEN CABS               ,1050,30/06/2014,REV,KINGSTON ACCESSIBILITY TRAN LT
623,CS -Oth Operating Inc & Expend,T/A Vehicle Maintenance etc,Transport-Contract Hire,J01374,Transport Related Expenditure ,Contract Hire and Op Leasing  ,CC64,HIRING TRANSPORT SEN CABS               ,987,30/06/2014,REV,CAPITAL CARS                  
624,CS -Oth Operating Inc & Expend,T/A Vehicle Maintenance etc,Transport-Contract Hire,J01374,Transport Related Expenditure ,Contract Hire and Op Leasing  ,CC64,HIRING TRANSPORT SEN CABS               ,532,30/06/2014,REV,CAPITAL CARS                  
625,CS -Oth Operating Inc & Expend,T/A Vehicle Maintenance etc,Transport-Contract Hire,J01374,Transport Related Expenditure ,Contract Hire and Op Leasing  ,CC64,HIRING TRANSPORT SEN CABS               ,1379.32,31/07/2014,REV,KINGSTON ACCESSIBILITY TRAN LT
626,CS -Oth Operating Inc & Expend,T/A Vehicle Maintenance etc,Transport-Contract Hire,J01374,Transport Related Expenditure ,Contract Hire and Op Leasing  ,CC64,HIRING TRANSPORT SEN CABS               ,1512,30/06/2014,REV,NVCAR HIRE LTD                
627,CS -Oth Operating Inc & Expend,T/A Vehicle Maintenance etc,Transport-Contract Hire,J01374,Transport Related Expenditure ,Contract Hire and Op Leasing  ,CC64,HIRING TRANSPORT SEN CABS               ,1562.4,30/06/2014,REV,SILVERBURN FINANCE (UK) LTD   
628,CS -Oth Operating Inc & Expend,T/A Vehicle Maintenance etc,Transport-Contract Hire,J01374,Transport Related Expenditure ,Contract Hire and Op Leasing  ,CC64,HIRING TRANSPORT SEN CABS               ,1100,30/06/2014,REV,SHERWOOD TRANSPORT GROUP      
629,CS -Oth Operating Inc & Expend,T/A Vehicle Maintenance etc,Transport-Contract Hire,J01374,Transport Related Expenditure ,Contract Hire and Op Leasing  ,CC64,HIRING TRANSPORT SEN CABS               ,3759,30/06/2014,REV,BARCLAYS ASSET & SALES FINANCE
630,CS -Oth Operating Inc & Expend,T/A Vehicle Maintenance etc,Transport-Contract Hire,J01374,Transport Related Expenditure ,Contract Hire and Op Leasing  ,CC64,HIRING TRANSPORT SEN CABS               ,2170,30/06/2014,REV,BARCLAYS ASSET & SALES FINANCE
631,CS -Oth Operating Inc & Expend,T/A Vehicle Maintenance etc,Transport-Contract Hire,J01374,Transport Related Expenditure ,Contract Hire and Op Leasing  ,CC64,HIRING TRANSPORT SEN CABS               ,840,30/06/2014,REV,NVCAR HIRE LTD                
632,CS -Oth Operating Inc & Expend,T/A Vehicle Maintenance etc,Transport-Contract Hire,J01374,Transport Related Expenditure ,Contract Hire and Op Leasing  ,CC64,HIRING TRANSPORT SEN CABS               ,3339,30/06/2014,REV,KINGSTON ACCESSIBILITY TRAN LT
633,CS -Oth Operating Inc & Expend,T/A Vehicle Maintenance etc,Transport-Contract Hire,J01374,Transport Related Expenditure ,Contract Hire and Op Leasing  ,CC64,HIRING TRANSPORT SEN CABS               ,2184,30/06/2014,REV,KINGSTON ACCESSIBILITY TRAN LT
634,CS -Oth Operating Inc & Expend,T/A Vehicle Maintenance etc,Transport-Contract Hire,J01374,Transport Related Expenditure ,Contract Hire and Op Leasing  ,CC64,HIRING TRANSPORT SEN CABS               ,1948.38,30/06/2014,REV,KINGSTON ACCESSIBILITY TRAN LT
635,CS -Oth Operating Inc & Expend,T/A Vehicle Maintenance etc,Transport-Contract Hire,J01374,Transport Related Expenditure ,Contract Hire and Op Leasing  ,CC64,HIRING TRANSPORT SEN CABS               ,2079,30/06/2014,REV,SHERWOOD TRANSPORT GROUP      
636,CS -Oth Operating Inc & Expend,T/A Vehicle Maintenance etc,Transport-Contract Hire,J01374,Transport Related Expenditure ,Contract Hire and Op Leasing  ,CC64,HIRING TRANSPORT SEN CABS               ,735,01/07/2014,REV,AERIAL CAR SERVICES LTD       
637,CS -Oth Operating Inc & Expend,T/A Vehicle Maintenance etc,Transport-Contract Hire,J01374,Transport Related Expenditure ,Contract Hire and Op Leasing  ,CC64,HIRING TRANSPORT SEN CABS               ,1116,31/07/2014,REV,KINGSTON ACCESSIBILITY TRAN LT
638,CS -Oth Operating Inc & Expend,T/A Vehicle Maintenance etc,Transport-Contract Hire,J01374,Transport Related Expenditure ,Contract Hire and Op Leasing  ,CC64,HIRING TRANSPORT SEN CABS               ,1439.52,31/07/2014,REV,KINGSTON ACCESSIBILITY TRAN LT
639,CS -Oth Operating Inc & Expend,T/A Vehicle Maintenance etc,Transport-Contract Hire,J01374,Transport Related Expenditure ,Contract Hire and Op Leasing  ,CC64,HIRING TRANSPORT SEN CABS               ,2099.58,30/06/2014,REV,KINGSTON ACCESSIBILITY TRAN LT
640,CS -Oth Operating Inc & Expend,T/A Vehicle Maintenance etc,Transport-Contract Hire,J01374,Transport Related Expenditure ,Contract Hire and Op Leasing  ,CC64,HIRING TRANSPORT SEN CABS               ,1560,31/07/2014,REV,KINGSTON ACCESSIBILITY TRAN LT
641,CS -Oth Operating Inc & Expend,T/A Vehicle Maintenance etc,Transport-Contract Hire,J01374,Transport Related Expenditure ,Contract Hire and Op Leasing  ,CC64,HIRING TRANSPORT SEN CABS               ,2450,30/06/2014,REV,BARCLAYS ASSET & SALES FINANCE
642,CS -Oth Operating Inc & Expend,T/A Vehicle Maintenance etc,Transport-Contract Hire,J01374,Transport Related Expenditure ,Contract Hire and Op Leasing  ,CC64,HIRING TRANSPORT SEN CABS               ,2175.68,31/07/2014,REV,KINGSTON ACCESSIBILITY TRAN LT
643,CS -Oth Operating Inc & Expend,T/A Vehicle Maintenance etc,Transport-Contract Hire,J01374,Transport Related Expenditure ,Contract Hire and Op Leasing  ,CC64,HIRING TRANSPORT SEN CABS               ,2310,30/06/2014,REV,CAPITAL CARS                  
644,CS -Oth Operating Inc & Expend,T/A Vehicle Maintenance etc,Transport-Contract Hire,J01374,Transport Related Expenditure ,Contract Hire and Op Leasing  ,CC64,HIRING TRANSPORT SEN CABS               ,990,30/06/2014,REV,CAPITAL CARS                  
645,CS -Oth Operating Inc & Expend,T/A Vehicle Maintenance etc,Transport-Contract Hire,J01374,Transport Related Expenditure ,Contract Hire and Op Leasing  ,CC64,HIRING TRANSPORT SEN CABS               ,2016,30/06/2014,REV,SILVERBURN FINANCE (UK) LTD   
646,CS -Oth Operating Inc & Expend,T/A Vehicle Maintenance etc,Transport-Contract Hire,J01374,Transport Related Expenditure ,Contract Hire and Op Leasing  ,CC64,HIRING TRANSPORT SEN CABS               ,735,30/06/2014,REV,CAPITAL CARS                  
647,CS -Oth Operating Inc & Expend,T/A Vehicle Maintenance etc,Transport-Contract Hire,J01374,Transport Related Expenditure ,Contract Hire and Op Leasing  ,CC64,HIRING TRANSPORT SEN CABS               ,1968,30/06/2014,REV,BARCLAYS ASSET & SALES FINANCE
648,CS -Oth Operating Inc & Expend,T/A Vehicle Maintenance etc,Transport-Contract Hire,J01374,Transport Related Expenditure ,Contract Hire and Op Leasing  ,CC64,HIRING TRANSPORT SEN CABS               ,1739,30/06/2014,REV,CAPITAL CARS                  
649,CS -Oth Operating Inc & Expend,T/A Vehicle Maintenance etc,Transport-Contract Hire,J01374,Transport Related Expenditure ,Contract Hire and Op Leasing  ,CC64,HIRING TRANSPORT SEN CABS               ,2250,30/06/2014,REV,WALLINGTON CARS & COURIERS LTD
650,CS -Oth Operating Inc & Expend,T/A Vehicle Maintenance etc,Transport-Contract Hire,J01374,Transport Related Expenditure ,Contract Hire and Op Leasing  ,CC64,HIRING TRANSPORT SEN CABS               ,2016,30/06/2014,REV,KINGSTON ACCESSIBILITY TRAN LT
651,CS -Oth Operating Inc & Expend,T/A Vehicle Maintenance etc,Transport-Contract Hire,J01374,Transport Related Expenditure ,Contract Hire and Op Leasing  ,CC64,HIRING TRANSPORT SEN CABS               ,1692,30/06/2014,REV,CAPITAL CARS                  
652,CS -Oth Operating Inc & Expend,T/A Vehicle Maintenance etc,Transport-Contract Hire,J01374,Transport Related Expenditure ,Contract Hire and Op Leasing  ,CC64,HIRING TRANSPORT SEN CABS               ,1050,30/06/2014,REV,CHEAM STATION CARS            
653,CS -Oth Operating Inc & Expend,T/A Vehicle Maintenance etc,Transport-Contract Hire,J01374,Transport Related Expenditure ,Contract Hire and Op Leasing  ,CC64,HIRING TRANSPORT SEN CABS               ,2024.4,30/06/2014,REV,SILVERBURN FINANCE (UK) LTD   
654,CS -Oth Operating Inc & Expend,T/A Vehicle Maintenance etc,Transport-Contract Hire,J01374,Transport Related Expenditure ,Contract Hire and Op Leasing  ,CC64,HIRING TRANSPORT SEN CABS               ,1260,30/06/2014,REV,SILVERBURN FINANCE (UK) LTD   
655,CS -Oth Operating Inc & Expend,T/A Vehicle Maintenance etc,Transport-Contract Hire,J01374,Transport Related Expenditure ,Contract Hire and Op Leasing  ,CC64,HIRING TRANSPORT SEN CABS               ,3485,30/06/2014,REV,NVCAR HIRE LTD                
656,CS -Oth Operating Inc & Expend,T/A Vehicle Maintenance etc,Transport-Contract Hire,J01374,Transport Related Expenditure ,Contract Hire and Op Leasing  ,CC64,HIRING TRANSPORT SEN CABS               ,684,30/06/2014,REV,SILVERBURN FINANCE (UK) LTD   
657,CS -Oth Operating Inc & Expend,T/A Vehicle Maintenance etc,Transport-Contract Hire,J01374,Transport Related Expenditure ,Contract Hire and Op Leasing  ,CC64,HIRING TRANSPORT SEN CABS               ,3465,30/06/2014,REV,SHERWOOD TRANSPORT GROUP      
658,CS -Oth Operating Inc & Expend,T/A Vehicle Maintenance etc,Transport-Contract Hire,J01374,Transport Related Expenditure ,Contract Hire and Op Leasing  ,CC64,HIRING TRANSPORT SEN CABS               ,600,30/06/2014,REV,GALPINS SERVICE               
659,CS -Oth Operating Inc & Expend,T/A Vehicle Maintenance etc,Transport-Contract Hire,J01374,Transport Related Expenditure ,Contract Hire and Op Leasing  ,CC64,HIRING TRANSPORT SEN CABS               ,588,30/06/2014,REV,SILVERBURN FINANCE (UK) LTD   
660,CS -Oth Operating Inc & Expend,T/A Vehicle Maintenance etc,Transport-Contract Hire,J01374,Transport Related Expenditure ,Contract Hire and Op Leasing  ,CC64,HIRING TRANSPORT SEN CABS               ,1530,31/07/2014,REV,KINGSTON ACCESSIBILITY TRAN LT
661,CS -Oth Operating Inc & Expend,T/A Vehicle Maintenance etc,Transport-Contract Hire,J01374,Transport Related Expenditure ,Contract Hire and Op Leasing  ,CC64,HIRING TRANSPORT SEN CABS               ,3695,30/06/2014,REV,CAPITAL CARS                  
662,CS -Oth Operating Inc & Expend,T/A Vehicle Maintenance etc,Transport-Contract Hire,J01374,Transport Related Expenditure ,Contract Hire and Op Leasing  ,CC64,HIRING TRANSPORT SEN CABS               ,2880,30/06/2014,REV,CAPITAL CARS                  
663,CS -Oth Operating Inc & Expend,T/A Vehicle Maintenance etc,Transport-Contract Hire,J01374,Transport Related Expenditure ,Contract Hire and Op Leasing  ,CC64,HIRING TRANSPORT SEN CABS               ,1050,30/06/2014,REV,SHERWOOD TRANSPORT GROUP      
664,CS -Oth Operating Inc & Expend,T/A Vehicle Maintenance etc,Transport-Contract Hire,J01374,Transport Related Expenditure ,Contract Hire and Op Leasing  ,CC64,HIRING TRANSPORT SEN CABS               ,1666,31/07/2014,REV,KINGSTON ACCESSIBILITY TRAN LT
665,CS -Oth Operating Inc & Expend,T/A Vehicle Maintenance etc,Transport-Contract Hire,J01374,Transport Related Expenditure ,Contract Hire and Op Leasing  ,CC64,HIRING TRANSPORT SEN CABS               ,1060,30/06/2014,REV,SHERWOOD TRANSPORT GROUP      
666,CS -Oth Operating Inc & Expend,T/A Vehicle Maintenance etc,Transport-Contract Hire,J01374,Transport Related Expenditure ,Contract Hire and Op Leasing  ,CC64,HIRING TRANSPORT SEN CABS               ,1276.48,31/07/2014,REV,KINGSTON ACCESSIBILITY TRAN LT
667,CS -Oth Operating Inc & Expend,T/A Vehicle Maintenance etc,Transport-Contract Hire,J01374,Transport Related Expenditure ,Contract Hire and Op Leasing  ,CC64,HIRING TRANSPORT SEN CABS               ,1881,30/06/2014,REV,SHERWOOD TRANSPORT GROUP      
668,CS -Oth Operating Inc & Expend,T/A Vehicle Maintenance etc,Transport-Contract Hire,J01374,Transport Related Expenditure ,Contract Hire and Op Leasing  ,CC64,HIRING TRANSPORT SEN CABS               ,1590,30/06/2014,REV,CAPITAL CARS                  
669,CS -Oth Operating Inc & Expend,T/A Vehicle Maintenance etc,Transport-Contract Hire,J01374,Transport Related Expenditure ,Contract Hire and Op Leasing  ,CC64,HIRING TRANSPORT SEN CABS               ,1206.14,31/07/2014,REV,KINGSTON ACCESSIBILITY TRAN LT
670,CS -Oth Operating Inc & Expend,T/A Vehicle Maintenance etc,Transport-Contract Hire,J01374,Transport Related Expenditure ,Contract Hire and Op Leasing  ,CC64,HIRING TRANSPORT SEN CABS               ,2703,31/07/2014,REV,KINGSTON ACCESSIBILITY TRAN LT
671,CS -Oth Operating Inc & Expend,T/A Vehicle Maintenance etc,Transport-Contract Hire,J01374,Transport Related Expenditure ,Contract Hire and Op Leasing  ,CC64,HIRING TRANSPORT SEN CABS               ,2068,30/06/2014,REV,NVCAR HIRE LTD                
672,CS -Oth Operating Inc & Expend,T/A Vehicle Maintenance etc,Transport-Contract Hire,J01374,Transport Related Expenditure ,Contract Hire and Op Leasing  ,CC64,HIRING TRANSPORT SEN CABS               ,840,30/06/2014,REV,BARCLAYS ASSET & SALES FINANCE
673,CS -Oth Operating Inc & Expend,T/A Vehicle Maintenance etc,Transport-Contract Hire,J01374,Transport Related Expenditure ,Contract Hire and Op Leasing  ,CC64,HIRING TRANSPORT SEN CABS               ,2152.5,30/06/2014,REV,SHERWOOD TRANSPORT GROUP      
674,CS -Oth Operating Inc & Expend,T/A Vehicle Maintenance etc,Transport-Contract Hire,J01374,Transport Related Expenditure ,Contract Hire and Op Leasing  ,CC64,HIRING TRANSPORT SEN CABS               ,1889.37,30/06/2014,REV,KINGSTON ACCESSIBILITY TRAN LT
675,CS -Oth Operating Inc & Expend,T/A Vehicle Maintenance etc,Transport-Contract Hire,J01374,Transport Related Expenditure ,Contract Hire and Op Leasing  ,CC64,HIRING TRANSPORT SEN CABS               ,1170,16/07/2014,REV,PREMIER CARS                  
676,CS -Oth Operating Inc & Expend,T/A Vehicle Maintenance etc,Transport-Contract Hire,J01374,Transport Related Expenditure ,Contract Hire and Op Leasing  ,CC64,HIRING TRANSPORT SEN CABS               ,1554,30/06/2014,REV,CAPITAL CARS                  
677,CS -Oth Operating Inc & Expend,T/A Vehicle Maintenance etc,Transport-Contract Hire,J01374,Transport Related Expenditure ,Contract Hire and Op Leasing  ,CC64,HIRING TRANSPORT SEN CABS               ,555,30/06/2014,REV,KENDALL CARS                  
678,CS -Oth Operating Inc & Expend,T/A Vehicle Maintenance etc,Transport-Contract Hire,J01374,Transport Related Expenditure ,Contract Hire and Op Leasing  ,CC64,HIRING TRANSPORT SEN CABS               ,2725.38,30/06/2014,REV,KINGSTON ACCESSIBILITY TRAN LT
679,CS -Oth Operating Inc & Expend,T/A Vehicle Maintenance etc,Transport-Contract Hire,J01374,Transport Related Expenditure ,Contract Hire and Op Leasing  ,CC64,HIRING TRANSPORT SEN CABS               ,2271.78,30/06/2014,REV,KINGSTON ACCESSIBILITY TRAN LT
680,CS -Oth Operating Inc & Expend,T/A Vehicle Maintenance etc,Transport-Contract Hire,J01374,Transport Related Expenditure ,Contract Hire and Op Leasing  ,CC64,HIRING TRANSPORT SEN CABS               ,2499,30/06/2014,REV,SHERWOOD TRANSPORT GROUP      
681,CS -Oth Operating Inc & Expend,T/A Vehicle Maintenance etc,Transport-Contract Hire,J01374,Transport Related Expenditure ,Contract Hire and Op Leasing  ,CC64,HIRING TRANSPORT SEN CABS               ,980,30/06/2014,REV,SHERWOOD TRANSPORT GROUP      
682,CS -Oth Operating Inc & Expend,T/A Vehicle Maintenance etc,Transport-Contract Hire,J01374,Transport Related Expenditure ,Contract Hire and Op Leasing  ,CC64,HIRING TRANSPORT SEN CABS               ,1596,30/06/2014,REV,CAPITAL CARS                  
683,CS -Oth Operating Inc & Expend,T/A Vehicle Maintenance etc,Transport-Contract Hire,J01374,Transport Related Expenditure ,Contract Hire and Op Leasing  ,CC64,HIRING TRANSPORT SEN CABS               ,1113,30/06/2014,REV,BARCLAYS ASSET & SALES FINANCE
684,CS -Oth Operating Inc & Expend,T/A Vehicle Maintenance etc,Transport-Contract Hire,J01374,Transport Related Expenditure ,Contract Hire and Op Leasing  ,CC64,HIRING TRANSPORT SEN CABS               ,4000,30/06/2014,REV,SHERWOOD TRANSPORT GROUP      
685,CS -Oth Operating Inc & Expend,T/A Vehicle Maintenance etc,Transport-Contract Hire,J01374,Transport Related Expenditure ,Contract Hire and Op Leasing  ,CC64,HIRING TRANSPORT SEN CABS               ,1323,30/06/2014,REV,NVCAR HIRE LTD                
686,CS -Oth Operating Inc & Expend,T/A Vehicle Maintenance etc,Transport-Contract Hire,J01374,Transport Related Expenditure ,Contract Hire and Op Leasing  ,CC64,HIRING TRANSPORT SEN CABS               ,2922,30/06/2014,REV,CAPITAL CARS                  
687,CS -Oth Operating Inc & Expend,T/A Vehicle Maintenance etc,Transport-Contract Hire,J01374,Transport Related Expenditure ,Contract Hire and Op Leasing  ,CC64,HIRING TRANSPORT SEN CABS               ,504,30/06/2014,REV,CAPITAL CARS                  
688,CS -Oth Operating Inc & Expend,T/A Vehicle Maintenance etc,Transport-Contract Hire,J01374,Transport Related Expenditure ,Contract Hire and Op Leasing  ,CC64,HIRING TRANSPORT SEN CABS               ,2336,31/07/2014,REV,KINGSTON ACCESSIBILITY TRAN LT
689,CS -Oth Operating Inc & Expend,T/A Vehicle Maintenance etc,Transport-Contract Hire,J01374,Transport Related Expenditure ,Contract Hire and Op Leasing  ,CC64,HIRING TRANSPORT SEN CABS               ,1612,30/06/2014,REV,BARCLAYS ASSET & SALES FINANCE
690,CS -Oth Operating Inc & Expend,T/A Vehicle Maintenance etc,Transport-Contract Hire,J01374,Transport Related Expenditure ,Contract Hire and Op Leasing  ,CC64,HIRING TRANSPORT SEN CABS               ,3558.24,30/06/2014,REV,SILVERBURN FINANCE (UK) LTD   
691,CS -Oth Operating Inc & Expend,T/A Vehicle Maintenance etc,Transport-Contract Hire,J01374,Transport Related Expenditure ,Contract Hire and Op Leasing  ,CC64,HIRING TRANSPORT SEN CABS               ,3150,30/06/2014,REV,BARCLAYS ASSET & SALES FINANCE
692,CS -Oth Operating Inc & Expend,T/A Vehicle Maintenance etc,Transport-Contract Hire,J01374,Transport Related Expenditure ,Contract Hire and Op Leasing  ,CC64,HIRING TRANSPORT SEN CABS               ,880,30/06/2014,REV,CAPITAL CARS                  
693,CS -Oth Operating Inc & Expend,T/A Vehicle Maintenance etc,Transport-Contract Hire,J01374,Transport Related Expenditure ,Contract Hire and Op Leasing  ,CC64,HIRING TRANSPORT SEN CABS               ,750,31/07/2014,REV,KINGSTON ACCESSIBILITY TRAN LT
694,CS -Oth Operating Inc & Expend,T/A Vehicle Maintenance etc,Transport-Contract Hire,J01374,Transport Related Expenditure ,Contract Hire and Op Leasing  ,CC64,HIRING TRANSPORT SEN CABS               ,1134,30/06/2014,REV,SILVERBURN FINANCE (UK) LTD   
695,CS -Oth Operating Inc & Expend,T/A Vehicle Maintenance etc,Transport-Contract Hire,J01374,Transport Related Expenditure ,Contract Hire and Op Leasing  ,CC64,HIRING TRANSPORT SEN CABS               ,3465,30/06/2014,REV,SHERWOOD TRANSPORT GROUP      
696,CS -Oth Operating Inc & Expend,T/A Vehicle Maintenance etc,Transport-Contract Hire,J01374,Transport Related Expenditure ,Contract Hire and Op Leasing  ,CC64,HIRING TRANSPORT SEN CABS               ,1386,30/06/2014,REV,SILVERBURN FINANCE (UK) LTD   
697,CS -Oth Operating Inc & Expend,T/A Vehicle Maintenance etc,Transport-Contract Hire,J01374,Transport Related Expenditure ,Contract Hire and Op Leasing  ,CC64,HIRING TRANSPORT SEN CABS               ,2284,30/06/2014,REV,NVCAR HIRE LTD                
698,CS -Oth Operating Inc & Expend,T/A Vehicle Maintenance etc,Transport-Contract Hire,J01374,Transport Related Expenditure ,Contract Hire and Op Leasing  ,CC64,HIRING TRANSPORT SEN CABS               ,850,30/06/2014,REV,GALPINS SERVICE               
699,CS -Oth Operating Inc & Expend,T/A Vehicle Maintenance etc,Transport-Contract Hire,J01374,Transport Related Expenditure ,Contract Hire and Op Leasing  ,CC64,HIRING TRANSPORT SEN CABS               ,1440,30/06/2014,REV,NVCAR HIRE LTD                
700,CS -Oth Operating Inc & Expend,T/A Vehicle Maintenance etc,Transport-Contract Hire,J01374,Transport Related Expenditure ,Contract Hire and Op Leasing  ,CC64,HIRING TRANSPORT SEN CABS               ,1687.14,31/07/2014,REV,KINGSTON ACCESSIBILITY TRAN LT
701,CS -Oth Operating Inc & Expend,T/A Vehicle Maintenance etc,Transport-Contract Hire,J01374,Transport Related Expenditure ,Contract Hire and Op Leasing  ,CC64,HIRING TRANSPORT SEN CABS               ,882,30/06/2014,REV,NVCAR HIRE LTD                
702,CS -Oth Operating Inc & Expend,T/A Vehicle Maintenance etc,Transport-Contract Hire,J01374,Transport Related Expenditure ,Contract Hire and Op Leasing  ,CC64,HIRING TRANSPORT SEN CABS               ,1302.34,31/07/2014,REV,KINGSTON ACCESSIBILITY TRAN LT
703,CS -Oth Operating Inc & Expend,T/A Vehicle Maintenance etc,Transport-Contract Hire,J01374,Transport Related Expenditure ,Contract Hire and Op Leasing  ,CC64,HIRING TRANSPORT SEN CABS               ,2016,30/06/2014,REV,A STAR TRANSPORT LIMITED      
704,CS -Oth Operating Inc & Expend,T/A Vehicle Maintenance etc,Transport-Contract Hire,J01374,Transport Related Expenditure ,Contract Hire and Op Leasing  ,CC64,HIRING TRANSPORT SEN CABS               ,840,30/06/2014,REV,GALPINS SERVICE               
705,CS -Oth Operating Inc & Expend,T/A Vehicle Maintenance etc,Transport-Contract Hire,J01374,Transport Related Expenditure ,Contract Hire and Op Leasing  ,CC64,HIRING TRANSPORT SEN CABS               ,2730,30/06/2014,REV,KINGSTON ACCESSIBILITY TRAN LT
706,CS -Oth Operating Inc & Expend,T/A Vehicle Maintenance etc,Transport-Contract Hire,J01374,Transport Related Expenditure ,Contract Hire and Op Leasing  ,CC64,HIRING TRANSPORT SEN CABS               ,1260,30/06/2014,REV,NVCAR HIRE LTD                
707,CS -Oth Operating Inc & Expend,T/A Vehicle Maintenance etc,Transport-Contract Hire,J01374,Transport Related Expenditure ,Contract Hire and Op Leasing  ,CC64,HIRING TRANSPORT SEN CABS               ,2232,30/06/2014,REV,BARCLAYS ASSET & SALES FINANCE
708,CS -Oth Operating Inc & Expend,T/A Vehicle Maintenance etc,Transport-Contract Hire,J01374,Transport Related Expenditure ,Contract Hire and Op Leasing  ,CC64,HIRING TRANSPORT SEN CABS               ,1386,30/06/2014,REV,NVCAR HIRE LTD                
709,CS -Oth Operating Inc & Expend,T/A Vehicle Maintenance etc,Transport-Contract Hire,J01374,Transport Related Expenditure ,Contract Hire and Op Leasing  ,CC64,HIRING TRANSPORT SEN CABS               ,770,30/06/2014,REV,CAPITAL CARS                  
710,CS -Oth Operating Inc & Expend,T/A Vehicle Maintenance etc,Transport-Contract Hire,J01374,Transport Related Expenditure ,Contract Hire and Op Leasing  ,CC64,HIRING TRANSPORT SEN CABS               ,1036.8,31/07/2014,REV,KINGSTON ACCESSIBILITY TRAN LT
711,CS -Oth Operating Inc & Expend,T/A Vehicle Maintenance etc,Transport-Contract Hire,J01374,Transport Related Expenditure ,Contract Hire and Op Leasing  ,CC64,HIRING TRANSPORT SEN CABS               ,2730,30/06/2014,REV,BARCLAYS ASSET & SALES FINANCE
712,CS -Oth Operating Inc & Expend,T/A Vehicle Maintenance etc,Transport-Contract Hire,J01374,Transport Related Expenditure ,Contract Hire and Op Leasing  ,CC64,HIRING TRANSPORT SEN CABS               ,2940,30/06/2014,REV,BARCLAYS ASSET & SALES FINANCE
713,CS -Oth Operating Inc & Expend,T/A Vehicle Maintenance etc,Transport-Contract Hire,J01374,Transport Related Expenditure ,Contract Hire and Op Leasing  ,CC64,HIRING TRANSPORT SEN CABS               ,1400,30/06/2014,REV,SHERWOOD TRANSPORT GROUP      
714,CS -Oth Operating Inc & Expend,T/A Vehicle Maintenance etc,Transport-Contract Hire,J01374,Transport Related Expenditure ,Contract Hire and Op Leasing  ,CC66,HIRING TRANSPORT H&SS CAB CHILDREN      ,756,30/06/2014,REV,NVCAR HIRE LTD                
715,CS -Oth Operating Inc & Expend,T/A Vehicle Maintenance etc,Transport-Contract Hire,J01374,Transport Related Expenditure ,Contract Hire and Op Leasing  ,CC67,HIRING TRANSPORT H&SS CAB ADULTS        ,1360,30/06/2014,REV,BARCLAYS ASSET & SALES FINANCE
716,CS -Oth Operating Inc & Expend,T/A Vehicle Maintenance etc,Transport-Contract Hire,J01374,Transport Related Expenditure ,Contract Hire and Op Leasing  ,CC67,HIRING TRANSPORT H&SS CAB ADULTS        ,850,30/06/2014,REV,NVCAR HIRE LTD                
717,CS -Oth Operating Inc & Expend,T/A Vehicle Maintenance etc,Transport-Contract Hire,J01374,Transport Related Expenditure ,Contract Hire and Op Leasing  ,CC67,HIRING TRANSPORT H&SS CAB ADULTS        ,810,30/06/2014,REV,CAPITAL CARS                  
718,CS -Oth Operating Inc & Expend,T/A Vehicle Maintenance etc,Transport-Contract Hire,J01374,Transport Related Expenditure ,Contract Hire and Op Leasing  ,CC67,HIRING TRANSPORT H&SS CAB ADULTS        ,1024,30/06/2014,REV,A STAR TRANSPORT LIMITED      
719,CS -Oth Operating Inc & Expend,T/A Vehicle Maintenance etc,Transport-Contract Hire,J01374,Transport Related Expenditure ,Contract Hire and Op Leasing  ,CC67,HIRING TRANSPORT H&SS CAB ADULTS        ,504,30/06/2014,REV,NVCAR HIRE LTD                
720,CS -Oth Operating Inc & Expend,T/A Vehicle Maintenance etc,Transport-Contract Hire,J01374,Transport Related Expenditure ,Contract Hire and Op Leasing  ,CC67,HIRING TRANSPORT H&SS CAB ADULTS        ,910,30/06/2014,REV,KINGSTON ACCESSIBILITY TRAN LT
721,CS -Oth Operating Inc & Expend,T/A Vehicle Maintenance etc,Transport-Contract Hire,J01374,Transport Related Expenditure ,Contract Hire and Op Leasing  ,CC67,HIRING TRANSPORT H&SS CAB ADULTS        ,2297.14,30/06/2014,REV,BARCLAYS ASSET & SALES FINANCE
722,CS -Oth Operating Inc & Expend,T/A Vehicle Maintenance etc,Transport-Contract Hire,J01374,Transport Related Expenditure ,Contract Hire and Op Leasing  ,CC67,HIRING TRANSPORT H&SS CAB ADULTS        ,592,30/06/2014,REV,CAPITAL CARS                  
723,CS -Oth Operating Inc & Expend,T/A Vehicle Maintenance etc,Transport-Contract Hire,J01374,Transport Related Expenditure ,Contract Hire and Op Leasing  ,CC67,HIRING TRANSPORT H&SS CAB ADULTS        ,980,31/07/2014,REV,KINGSTON ACCESSIBILITY TRAN LT
724,CS -Oth Operating Inc & Expend,T/A Vehicle Maintenance etc,Transport-Contract Hire,J01374,Transport Related Expenditure ,Contract Hire and Op Leasing  ,CC67,HIRING TRANSPORT H&SS CAB ADULTS        ,858,30/06/2014,REV,A STAR TRANSPORT LIMITED      
725,CS -Oth Operating Inc & Expend,T/A Vehicle Maintenance etc,Transport-Contract Hire,J01374,Transport Related Expenditure ,Contract Hire and Op Leasing  ,CC67,HIRING TRANSPORT H&SS CAB ADULTS        ,648,30/06/2014,REV,A STAR TRANSPORT LIMITED      
726,CS -Oth Operating Inc & Expend,T/A Vehicle Maintenance etc,Transport-Contract Hire,J01374,Transport Related Expenditure ,Contract Hire and Op Leasing  ,CC67,HIRING TRANSPORT H&SS CAB ADULTS        ,608,30/06/2014,REV,NVCAR HIRE LTD                
727,CS -Oth Operating Inc & Expend,T/A Vehicle Maintenance etc,Transport-Contract Hire,J01374,Transport Related Expenditure ,Contract Hire and Op Leasing  ,CC67,HIRING TRANSPORT H&SS CAB ADULTS        ,714,31/05/2014,REV,CAPITAL CARS                  
728,CS -Oth Operating Inc & Expend,T/A Vehicle Maintenance etc,Transport-Contract Hire,J01374,Transport Related Expenditure ,Contract Hire and Op Leasing  ,CC67,HIRING TRANSPORT H&SS CAB ADULTS        ,1062,30/06/2014,REV,CAPITAL CARS                  
729,CS -Oth Operating Inc & Expend,T/A Vehicle Maintenance etc,Transport-Contract Hire,J01374,Transport Related Expenditure ,Contract Hire and Op Leasing  ,CC67,HIRING TRANSPORT H&SS CAB ADULTS        ,1328.8,30/06/2014,REV,KINGSTON ACCESSIBILITY TRAN LT
730,CS -Oth Operating Inc & Expend,T/A Vehicle Maintenance etc,Transport-Contract Hire,J01374,Transport Related Expenditure ,Contract Hire and Op Leasing  ,CC67,HIRING TRANSPORT H&SS CAB ADULTS        ,840,01/07/2014,REV,AERIAL CAR SERVICES LTD       
731,CS -Oth Operating Inc & Expend,T/A Vehicle Maintenance etc,Transport-Contract Hire,J01374,Transport Related Expenditure ,Contract Hire and Op Leasing  ,CC67,HIRING TRANSPORT H&SS CAB ADULTS        ,1428,30/06/2014,REV,SILVERBURN FINANCE (UK) LTD   
732,CS -Oth Operating Inc & Expend,T/A Vehicle Maintenance etc,Transport-Contract Hire,J01374,Transport Related Expenditure ,Contract Hire and Op Leasing  ,CC67,HIRING TRANSPORT H&SS CAB ADULTS        ,714.78,31/07/2014,REV,KINGSTON ACCESSIBILITY TRAN LT
733,CS -Oth Operating Inc & Expend,T/A Vehicle Maintenance etc,Transport-Contract Hire,J01374,Transport Related Expenditure ,Contract Hire and Op Leasing  ,CC67,HIRING TRANSPORT H&SS CAB ADULTS        ,1559.52,30/06/2014,REV,KINGSTON ACCESSIBILITY TRAN LT
734,CS -Oth Operating Inc & Expend,T/A Vehicle Maintenance etc,Transport-Contract Hire,J01374,Transport Related Expenditure ,Contract Hire and Op Leasing  ,CC67,HIRING TRANSPORT H&SS CAB ADULTS        ,1176,30/06/2014,REV,CAPITAL CARS                  
735,CS -Oth Operating Inc & Expend,T/A Vehicle Maintenance etc,Transport-Contract Hire,J01374,Transport Related Expenditure ,Contract Hire and Op Leasing  ,CC67,HIRING TRANSPORT H&SS CAB ADULTS        ,720,30/06/2014,REV,CAPITAL CARS                  
736,CS -Oth Operating Inc & Expend,T/A Vehicle Maintenance etc,Transport-Contract Hire,J01374,Transport Related Expenditure ,Contract Hire and Op Leasing  ,CC67,HIRING TRANSPORT H&SS CAB ADULTS        ,1264,30/06/2014,REV,NVCAR HIRE LTD                
737,CS -Oth Operating Inc & Expend,T/A Vehicle Maintenance etc,Transport-Contract Hire,J01374,Transport Related Expenditure ,Contract Hire and Op Leasing  ,CC67,HIRING TRANSPORT H&SS CAB ADULTS        ,1224,30/06/2014,REV,BARCLAYS ASSET & SALES FINANCE
738,CS -Oth Operating Inc & Expend,T/A Vehicle Maintenance etc,Transport-Contract Hire,J01374,Transport Related Expenditure ,Contract Hire and Op Leasing  ,CC67,HIRING TRANSPORT H&SS CAB ADULTS        ,896,30/06/2014,REV,NVCAR HIRE LTD                
739,CS -Oth Operating Inc & Expend,T/A Vehicle Maintenance etc,Transport-Contract Hire,J01374,Transport Related Expenditure ,Contract Hire and Op Leasing  ,CC67,HIRING TRANSPORT H&SS CAB ADULTS        ,564,30/06/2014,REV,CAPITAL CARS                  
740,CS -Oth Operating Inc & Expend,T/A Vehicle Maintenance etc,Transport-Contract Hire,J01374,Transport Related Expenditure ,Contract Hire and Op Leasing  ,CC67,HIRING TRANSPORT H&SS CAB ADULTS        ,624,30/06/2014,REV,BARCLAYS ASSET & SALES FINANCE
741,CS -Oth Operating Inc & Expend,T/A Vehicle Maintenance etc,Transport-Contract Hire,J01374,Transport Related Expenditure ,Contract Hire and Op Leasing  ,CC67,HIRING TRANSPORT H&SS CAB ADULTS        ,730.84,31/07/2014,REV,KINGSTON ACCESSIBILITY TRAN LT
742,CS -Oth Operating Inc & Expend,T/A Vehicle Maintenance etc,Transport-Contract Hire,J01374,Transport Related Expenditure ,Contract Hire and Op Leasing  ,CC68,HIRING TRANSPORT SEN COLLEGES CABS      ,1641.24,30/06/2014,REV,KINGSTON ACCESSIBILITY TRAN LT
743,CS -Oth Operating Inc & Expend,T/A Vehicle Maintenance etc,Transport-Contract Hire,J01374,Transport Related Expenditure ,Contract Hire and Op Leasing  ,CC68,HIRING TRANSPORT SEN COLLEGES CABS      ,800,30/06/2014,REV,NVCAR HIRE LTD                
744,CS -Oth Operating Inc & Expend,T/A Vehicle Maintenance etc,Transport-Contract Hire,J01374,Transport Related Expenditure ,Contract Hire and Op Leasing  ,CC68,HIRING TRANSPORT SEN COLLEGES CABS      ,1039.68,30/06/2014,REV,KINGSTON ACCESSIBILITY TRAN LT
745,CS -Oth Operating Inc & Expend,T/A Vehicle Maintenance etc,Transport-Contract Hire,J01374,Transport Related Expenditure ,Contract Hire and Op Leasing  ,CC68,HIRING TRANSPORT SEN COLLEGES CABS      ,1224,30/06/2014,REV,BARCLAYS ASSET & SALES FINANCE
746,CS -Oth Operating Inc & Expend,T/A Vehicle Maintenance etc,Transport-Contract Hire,J01374,Transport Related Expenditure ,Contract Hire and Op Leasing  ,CC68,HIRING TRANSPORT SEN COLLEGES CABS      ,664.4,30/06/2014,REV,KINGSTON ACCESSIBILITY TRAN LT
747,CS -Oth Operating Inc & Expend,T/A Vehicle Maintenance etc,Transport-Contract Hire,J01374,Transport Related Expenditure ,Contract Hire and Op Leasing  ,CC68,HIRING TRANSPORT SEN COLLEGES CABS      ,1764,30/06/2014,REV,CAPITAL CARS                  
748,CS -Oth Operating Inc & Expend,T/A Vehicle Maintenance etc,Transport-Contract Hire,J01374,Transport Related Expenditure ,Contract Hire and Op Leasing  ,CC68,HIRING TRANSPORT SEN COLLEGES CABS      ,714.78,31/07/2014,REV,KINGSTON ACCESSIBILITY TRAN LT
749,CS -Oth Operating Inc & Expend,T/A Vehicle Maintenance etc,Transport-Workshop,J01376,Premises Related Expenditure  ,RepairsAlterations&MtceOfBldgs,BA01,DDM - General Building                  ,1740,12/11/2013,REV,SALTASH ENTERPRISES LTD       
750,CS -Oth Operating Inc & Expend,T/A Vehicle Maintenance etc,Transport-Workshop,J01376,Transport Related Expenditure ,Contract Hire and Op Leasing  ,CC60,Vehicle Hire for LB Sutton              ,2240,30/06/2014,REV,CAPITAL CARS                  
751,CS -Oth Operating Inc & Expend,T/A Vehicle Maintenance etc,Transport-Workshop,J01376,Transport Related Expenditure ,Contract Hire and Op Leasing  ,CC60,Vehicle Hire for LB Sutton              ,2940,30/06/2014,REV,BRUNSWICK CARS LTD            
752,CS -Oth Operating Inc & Expend,T/A Vehicle Maintenance etc,Transport-Workshop,J01376,Transport Related Expenditure ,Contract Hire and Op Leasing  ,CC60,Vehicle Hire for LB Sutton              ,5208,30/06/2014,REV,BARCLAYS ASSET & SALES FINANCE
753,CS -Oth Operating Inc & Expend,T/A Vehicle Maintenance etc,Transport-Workshop,J01376,Transport Related Expenditure ,Contract Hire and Op Leasing  ,CC60,Vehicle Hire for LB Sutton              ,2604,30/06/2014,REV,BARCLAYS ASSET & SALES FINANCE
754,CS -Oth Operating Inc & Expend,T/A Vehicle Maintenance etc,Transport-Workshop,J01376,Transport Related Expenditure ,Contract Hire and Op Leasing  ,CC60,Vehicle Hire for LB Sutton              ,1080,24/06/2014,REV,CALVERTON FACTORS LTD         
755,CS -Oth Operating Inc & Expend,T/A Vehicle Maintenance etc,Transport-Workshop,J01376,Transport Related Expenditure ,Contract Hire and Op Leasing  ,CC60,Vehicle Hire for LB Sutton              ,2060,30/06/2014,REV,BRUNSWICK CARS LTD            
756,CS -Oth Operating Inc & Expend,T/A Vehicle Maintenance etc,Transport-Workshop,J01376,Transport Related Expenditure ,Contract Hire and Op Leasing  ,CC60,Vehicle Hire for LB Sutton              ,629.79,30/06/2014,REV,KINGSTON ACCESSIBILITY TRAN LT
757,CS -Oth Operating Inc & Expend,T/A Vehicle Maintenance etc,Transport-Workshop,J01376,Transport Related Expenditure ,Contract Hire and Op Leasing  ,CC60,Vehicle Hire for LB Sutton              ,2350,24/06/2014,REV,CALVERTON FACTORS LTD         
758,CS -Oth Operating Inc & Expend,T/A Vehicle Maintenance etc,Transport-Workshop,J01376,Transport Related Expenditure ,Contract Hire and Op Leasing  ,CC65,Vehicle Hire for Education              ,1020,28/07/2014,REV,PC COACHES                    
759,CS -Oth Operating Inc & Expend,T/A Vehicle Maintenance etc,Transport-Workshop,J01376,Transport Related Expenditure ,Contract Hire and Op Leasing  ,CC65,Vehicle Hire for Education              ,2720,30/06/2014,REV,BARCLAYS ASSET & SALES FINANCE
760,CS -Oth Operating Inc & Expend,T/A Vehicle Maintenance etc,Transport-Workshop,J01376,Transport Related Expenditure ,Contract Hire and Op Leasing  ,CC65,Vehicle Hire for Education              ,2296,30/06/2014,REV,BARCLAYS ASSET & SALES FINANCE
761,CS -Oth Operating Inc & Expend,T/A Vehicle Maintenance etc,Transport-Workshop,J01376,Transport Related Expenditure ,Contract Hire and Op Leasing  ,CC65,Vehicle Hire for Education              ,805,30/06/2014,REV,CAPITAL CARS                  
762,CS -Oth Operating Inc & Expend,T/A Vehicle Maintenance etc,Transport-Workshop,J01376,Transport Related Expenditure ,Contract Hire and Op Leasing  ,CC65,Vehicle Hire for Education              ,1475,25/07/2014,REV,G T INTERNATIONAL             
763,CS -Oth Operating Inc & Expend,T/A Vehicle Maintenance etc,Transport-Workshop,J01376,Transport Related Expenditure ,Contract Hire and Op Leasing  ,CC65,Vehicle Hire for Education              ,665,30/06/2014,REV,KENDALL CARS                  
764,CS -Oth Operating Inc & Expend,T/A Vehicle Maintenance etc,Transport-Workshop,J01376,Transport Related Expenditure ,Contract Hire and Op Leasing  ,CC65,Vehicle Hire for Education              ,2940,30/06/2014,REV,BARCLAYS ASSET & SALES FINANCE
765,CS -Oth Operating Inc & Expend,T/A Vehicle Maintenance etc,Vehicle Workshops,J01378,Employees                     ,Direct Employee Expenses      ,AA17,Agency Staff & Casual Paymts            ,660,25/06/2014,REV,REDACTED
766,CS -Oth Operating Inc & Expend,T/A Vehicle Maintenance etc,Vehicle Workshops,J01378,Employees                     ,Direct Employee Expenses      ,AA17,Agency Staff & Casual Paymts            ,660,18/06/2014,REV,REDACTED
767,CS -Oth Operating Inc & Expend,T/A Vehicle Maintenance etc,Vehicle Workshops,J01378,Employees                     ,Direct Employee Expenses      ,AA17,Agency Staff & Casual Paymts            ,693,16/07/2014,REV,REDACTED
768,CS -Oth Operating Inc & Expend,T/A Vehicle Maintenance etc,Vehicle Workshops,J01378,Employees                     ,Direct Employee Expenses      ,AA17,Agency Staff & Casual Paymts            ,660,09/07/2014,REV,REDACTED
769,CS -Oth Operating Inc & Expend,T/A Vehicle Maintenance etc,Vehicle Workshops,J01378,Employees                     ,Direct Employee Expenses      ,AA17,Agency Staff & Casual Paymts            ,660,02/07/2014,REV,REDACTED
770,CS -Oth Operating Inc & Expend,T/A Vehicle Maintenance etc,Vehicle Workshops,J01378,Transport Related Expenditure ,Direct Transport Costs        ,CA02,Tyres                                   ,940,17/07/2014,REV,MORDEN TYRE SERVICES LTD      
771,CS -Oth Operating Inc & Expend,T/A Vehicle Maintenance etc,Vehicle Workshops,J01378,Transport Related Expenditure ,Direct Transport Costs        ,CA02,Tyres                                   ,975,08/07/2014,REV,MORDEN TYRE SERVICES LTD      
772,CS -Oth Operating Inc & Expend,T/A Vehicle Maintenance etc,Vehicle Workshops,J01378,Transport Related Expenditure ,Direct Transport Costs        ,CA02,Tyres                                   ,1650,03/07/2014,REV,MORDEN TYRE SERVICES LTD      
773,CS -Oth Operating Inc & Expend,T/A Vehicle Maintenance etc,Vehicle Workshops,J01378,Transport Related Expenditure ,Direct Transport Costs        ,CA02,Tyres                                   ,700,27/06/2014,REV,MORDEN TYRE SERVICES LTD      
774,CS -Oth Operating Inc & Expend,T/A Vehicle Maintenance etc,Vehicle Workshops,J01378,Transport Related Expenditure ,Direct Transport Costs        ,CA02,Tyres                                   ,525,02/07/2014,REV,MORDEN TYRE SERVICES LTD      
775,CS -Oth Operating Inc & Expend,T/A Vehicle Maintenance etc,Vehicle Workshops,J01378,Transport Related Expenditure ,Direct Transport Costs        ,CA04,R & M of Veh - General                  ,2139.6,07/07/2014,REV,FREIGHT TRANSPORT ASSOCIATION 
776,CS -Oth Operating Inc & Expend,T/A Vehicle Maintenance etc,Vehicle Workshops,J01378,Transport Related Expenditure ,Direct Transport Costs        ,CA55,Specialist Maint. (Off Site)            ,2510,20/06/2014,REV,REDACTED
777,CS -Oth Operating Inc & Expend,T/A Vehicle Maintenance etc,Vehicle Workshops,J01378,Transport Related Expenditure ,Direct Transport Costs        ,CA55,Specialist Maint. (Off Site)            ,692.51,30/06/2014,REV,KINGSLEY COMM COMPONENTS LTD  
778,CS -Oth Operating Inc & Expend,T/A Vehicle Maintenance etc,Vehicle Workshops,J01378,Transport Related Expenditure ,Direct Transport Costs        ,CA55,Specialist Maint. (Off Site)            ,699.05,13/05/2014,REV,GLENSIDE COMMERCIALS LTD      
779,CS -Oth Operating Inc & Expend,T/A Vehicle Maintenance etc,Vehicle Workshops,J01378,Transport Related Expenditure ,Direct Transport Costs        ,CA55,Specialist Maint. (Off Site)            ,605.81,30/06/2014,REV,KINGSLEY COMM COMPONENTS LTD  
780,CS -Oth Operating Inc & Expend,T/A Vehicle Maintenance etc,Vehicle Workshops,J01378,Transport Related Expenditure ,Direct Transport Costs        ,CA55,Specialist Maint. (Off Site)            ,683.69,30/06/2014,REV,KINGSLEY COMM COMPONENTS LTD  
781,CS -Oth Operating Inc & Expend,T/A Vehicle Maintenance etc,Vehicle Workshops,J01378,Transport Related Expenditure ,Direct Transport Costs        ,CA55,Specialist Maint. (Off Site)            ,1557.02,06/06/2014,REV,DEES OF CROYDON LTD.          
782,CS -Oth Operating Inc & Expend,T/A Vehicle Maintenance etc,Vehicle Workshops,J01378,Transport Related Expenditure ,Direct Transport Costs        ,CA55,Specialist Maint. (Off Site)            ,658.49,30/06/2014,REV,KINGSLEY COMM COMPONENTS LTD  
783,CS -Oth Operating Inc & Expend,T/A Vehicle Maintenance etc,Vehicle Workshops,J01378,Transport Related Expenditure ,Direct Transport Costs        ,CA56,Specialist Maint. (On Site)             ,1483.42,18/07/2014,REV,GEESINK NORBA                 
784,CS -Oth Operating Inc & Expend,T/A Vehicle Maintenance etc,Vehicle Workshops,J01378,Transport Related Expenditure ,Direct Transport Costs        ,CA56,Specialist Maint. (On Site)             ,584.75,06/07/2014,REV,R.J.H.WELDING                 
785,CS -Oth Operating Inc & Expend,T/A Vehicle Maintenance etc,Vehicle Workshops,J01378,Transport Related Expenditure ,Direct Transport Costs        ,CA56,Specialist Maint. (On Site)             ,991.25,20/06/2014,REV,R.J.H.WELDING                 
786,CS -Oth Operating Inc & Expend,T/A Vehicle Maintenance etc,Vehicle Workshops,J01378,Transport Related Expenditure ,Direct Transport Costs        ,CA56,Specialist Maint. (On Site)             ,1195,20/06/2014,REV,R.J.H.WELDING                 
787,CS -Oth Operating Inc & Expend,T/A Vehicle Maintenance etc,Vehicle Workshops,J01378,Transport Related Expenditure ,Direct Transport Costs        ,CA56,Specialist Maint. (On Site)             ,682.5,20/06/2014,REV,R.J.H.WELDING                 
788,CS -Oth Operating Inc & Expend,T/A Vehicle Maintenance etc,Vehicle Workshops,J01378,Transport Related Expenditure ,Direct Transport Costs        ,CA56,Specialist Maint. (On Site)             ,644.9,30/06/2014,REV,REDACTED
789,CS -Oth Operating Inc & Expend,T/A Vehicle Maintenance etc,Vehicle Workshops,J01378,Transport Related Expenditure ,Direct Transport Costs        ,CA56,Specialist Maint. (On Site)             ,812.21,15/07/2014,REV,REDACTED
790,CS -Oth Operating Inc & Expend,T/A Vehicle Maintenance etc,Vehicle Workshops,J01378,Transport Related Expenditure ,Direct Transport Costs        ,CA56,Specialist Maint. (On Site)             ,643.7,15/07/2014,REV,REDACTED
791,CS -Oth Operating Inc & Expend,T/A Vehicle Maintenance etc,Vehicle Workshops,J01378,Transport Related Expenditure ,Direct Transport Costs        ,CA56,Specialist Maint. (On Site)             ,786.19,26/06/2014,REV,MITCHELL POWER SYSTEMS        
792,CS -Oth Operating Inc & Expend,T/A Vehicle Maintenance etc,Vehicle Workshops,J01378,Transport Related Expenditure ,Direct Transport Costs        ,CA56,Specialist Maint. (On Site)             ,1076,20/06/2014,REV,R.J.H.WELDING                 
793,CS -Oth Operating Inc & Expend,T/A Vehicle Maintenance etc,Vehicle Workshops,J01378,Transport Related Expenditure ,Direct Transport Costs        ,CA56,Specialist Maint. (On Site)             ,2034.85,06/07/2014,REV,R.J.H.WELDING                 
794,CS -Oth Operating Inc & Expend,T/A Vehicle Maintenance etc,Vehicle Workshops,J01378,Transport Related Expenditure ,Direct Transport Costs        ,CA56,Specialist Maint. (On Site)             ,1973.82,11/07/2014,REV,NTM GB LIMITED                
795,CS -Oth Operating Inc & Expend,T/A Vehicle Maintenance etc,Vehicle Workshops,J01378,Transport Related Expenditure ,Direct Transport Costs        ,CA56,Specialist Maint. (On Site)             ,1024.64,07/07/2014,REV,FARID MUNICIPAL VEHICLES LTD  
796,CS -Oth Operating Inc & Expend,T/A Vehicle Maintenance etc,Vehicle Workshops,J01378,Transport Related Expenditure ,Direct Transport Costs        ,CA56,Specialist Maint. (On Site)             ,914.69,27/06/2014,REV,MITCHELL POWER SYSTEMS        
797,CS -Oth Operating Inc & Expend,T/A Vehicle Maintenance etc,Vehicle Workshops,J01378,Transport Related Expenditure ,Direct Transport Costs        ,CA56,Specialist Maint. (On Site)             ,1868.75,20/06/2014,REV,R.J.H.WELDING                 
798,CS -Oth Operating Inc & Expend,T/A Vehicle Maintenance etc,Vehicle Workshops,J01378,Transport Related Expenditure ,Direct Transport Costs        ,CA56,Specialist Maint. (On Site)             ,2013.23,27/06/2014,REV,GEESINK NORBA                 
799,CS -Oth Operating Inc & Expend,T/A Vehicle Maintenance etc,Vehicle Workshops,J01378,Transport Related Expenditure ,Direct Transport Costs        ,CA56,Specialist Maint. (On Site)             ,847.6,20/06/2014,REV,R.J.H.WELDING                 
800,CS -Oth Operating Inc & Expend,T/A Vehicle Maintenance etc,Vehicle Workshops,J01378,Transport Related Expenditure ,Direct Transport Costs        ,CA56,Specialist Maint. (On Site)             ,1322.5,06/07/2014,REV,R.J.H.WELDING                 
801,CS -Oth Operating Inc & Expend,T/A Vehicle Maintenance etc,Vehicle Workshops,J01378,Transport Related Expenditure ,Direct Transport Costs        ,CA72,Vehicle Parts                           ,573.74,17/07/2014,REV,GEESINK NORBA                 
802,CS -Oth Operating Inc & Expend,T/A Vehicle Maintenance etc,Vehicle Workshops,J01378,Transport Related Expenditure ,Direct Transport Costs        ,CA72,Vehicle Parts                           ,603.09,21/07/2014,REV,COMMERCIAL & PLANT LTD        
803,CS -Oth Operating Inc & Expend,T/A Vehicle Maintenance etc,Vehicle Workshops,J01378,Transport Related Expenditure ,Direct Transport Costs        ,CA72,Vehicle Parts                           ,1060,07/07/2014,REV,CBOC LUBRICANTS               
804,CS -Oth Operating Inc & Expend,T/A Vehicle Maintenance etc,Vehicle Workshops,J01378,Transport Related Expenditure ,Direct Transport Costs        ,CA72,Vehicle Parts                           ,500,07/07/2014,REV,FRM TRUCKS& TRAILER SPARES LTD
805,CS -Oth Operating Inc & Expend,T/A Vehicle Maintenance etc,Vehicle Workshops,J01378,Transport Related Expenditure ,Direct Transport Costs        ,CA72,Vehicle Parts                           ,610,07/07/2014,REV,COMMERCIAL & PLANT LTD        
806,CS -Oth Operating Inc & Expend,T/A Vehicle Maintenance etc,Vehicle Workshops,J01378,Transport Related Expenditure ,Direct Transport Costs        ,CA72,Vehicle Parts                           ,626.81,24/06/2014,REV,COMMERCIAL & PLANT LTD        
807,CS -Oth Operating Inc & Expend,T/A Vehicle Maintenance etc,Vehicle Workshops,J01378,Transport Related Expenditure ,Direct Transport Costs        ,CA72,Vehicle Parts                           ,856.92,01/07/2014,REV,DENNIS EAGLE LIMITED          
808,CS -Oth Operating Inc & Expend,T/A Vehicle Maintenance etc,Vehicle Workshops,J01378,Transport Related Expenditure ,Direct Transport Costs        ,CA72,Vehicle Parts                           ,640,23/05/2014,REV,EUROCAR PARTS                 
809,CS -Oth Operating Inc & Expend,T/A Vehicle Maintenance etc,Vehicle Workshops,J01378,Transport Related Expenditure ,Direct Transport Costs        ,CA72,Vehicle Parts                           ,828.41,30/06/2014,REV,DENNIS EAGLE LIMITED          
810,CS -Oth Operating Inc & Expend,T/A Vehicle Maintenance etc,Vehicle Workshops,J01378,Transport Related Expenditure ,Direct Transport Costs        ,CA72,Vehicle Parts                           ,888.4,19/06/2014,REV,GEESINK NORBA                 
811,CS -Oth Operating Inc & Expend,T/A Vehicle Maintenance etc,Vehicle Workshops,J01378,Supplies & Services           ,Clothing Unfrms Laundry       ,DC01,Laundry                                 ,526.96,01/07/2014,REV,SUNLIGHT SERVICE GROUP LTD    
812,Cultural Env Reg&Plan Services,Mgt & Support (Env),Estates Mgt,J01420,Supplies & Services           ,Grants and Subscriptions      ,DJ04,SUBSCRIPTION                            ,2964,03/06/2014,REV,COSTAR UK LTD                 
813,CS -Oth Operating Inc & Expend,Extraordinary Items & PY Adj.,Other Misc Props Budget,J01526,Supplies & Services           ,Services                      ,DF03,CONSULTANTS                             ,1000,30/06/2014,REV,FIVE PLUS ARCHITECTS LDN LTD  
814,CS -Oth Operating Inc & Expend,Extraordinary Items & PY Adj.,Other Misc Props Budget,J01526,Third Party Payments          ,Private Contractors           ,EH02,MISCELLANEOUS HIRED SERVICES            ,3870,23/06/2014,REV,LAND MANAGEMENT SERVICE LTD   
815,CS -Oth Operating Inc & Expend,Extraordinary Items & PY Adj.,Pollards Hill Comm Cntre,J08074,Premises Related Expenditure  ,RepairsAlterations&MtceOfBldgs,BA03,DDM - Mechanical                        ,602.28,16/06/2014,REV,EUROPA NATIONWIDE TECH.SER.LTD
816,Childrens & Education Services,Statutory & Regulatory Duties,Senior Mngt & Support Services,K01005,Supplies & Services           ,Services                      ,DF11,Counsel's Fees                          ,520,26/06/2014,REV,REDACTED
817,Childrens & Education Services,Statutory & Regulatory Duties,Senior Mngt & Support Services,K01005,Supplies & Services           ,Services                      ,DF11,Counsel's Fees                          ,735,28/07/2014,REV,REDACTED
818,Childrens & Education Services,Statutory & Regulatory Duties,Senior Mngt & Support Services,K01005,Supplies & Services           ,Services                      ,DF11,Counsel's Fees                          ,1030,26/06/2014,REV,REDACTED
819,Childrens & Education Services,Statutory & Regulatory Duties,Senior Mngt & Support Services,K01005,Supplies & Services           ,Services                      ,DF11,Counsel's Fees                          ,1030,26/06/2014,REV,REDACTED
820,Childrens & Education Services,Statutory & Regulatory Duties,Senior Mngt & Support Services,K01005,Supplies & Services           ,Services                      ,DF11,Counsel's Fees                          ,610,26/06/2014,REV,REDACTED
821,Childrens & Education Services,Statutory & Regulatory Duties,Senior Mngt & Support Services,K01005,Supplies & Services           ,Services                      ,DF11,Counsel's Fees                          ,2680,26/06/2014,REV,REDACTED
822,Childrens & Education Services,Statutory & Regulatory Duties,Senior Mngt & Support Services,K01005,Supplies & Services           ,Services                      ,DF11,Counsel's Fees                          ,925,26/06/2014,REV,REDACTED
823,Childrens & Education Services,Statutory & Regulatory Duties,Senior Mngt & Support Services,K01005,Supplies & Services           ,Services                      ,DF11,Counsel's Fees                          ,520,26/06/2014,REV,REDACTED
824,Childrens & Education Services,Statutory & Regulatory Duties,Senior Mngt & Support Services,K01005,Supplies & Services           ,Services                      ,DF11,Counsel's Fees                          ,840,26/06/2014,REV,REDACTED
825,Childrens & Education Services,Statutory & Regulatory Duties,Senior Mngt & Support Services,K01005,Supplies & Services           ,Services                      ,DF11,Counsel's Fees                          ,940,26/06/2014,REV,REDACTED
826,Childrens & Education Services,Statutory & Regulatory Duties,Central Administration,K01008,Supplies & Services           ,Equip Furniture/Materials     ,DA58,Education Materials                     ,740,10/07/2014,REV,STORMFRONT RETAIL LTD         
827,Childrens & Education Services,Statutory & Regulatory Duties,Schools IT Support,K02008,Supplies & Services           ,Catering                      ,DB50,Refreshments                            ,706,30/06/2014,REV,GOSTO FINO PORTUGAL PATISSERIE
828,Childrens & Education Services,Statutory & Regulatory Duties,Schools IT Support,K02008,Supplies & Services           ,Comms and Computing           ,DG50,Other IT Expenditure                    ,600,18/06/2014,REV,ATOMWIDE LTD                  
829,Childrens & Education Services,Statutory & Regulatory Duties,Research and Statistics,K03016,Supplies & Services           ,Comms and Computing           ,DG66,Data Centre Maintenance                 ,8670,01/07/2014,REV,TRI-X                         
830,Childrens & Education Services,Asset Management,PFI Unitary Charges,K03023,Third Party Payments          ,Private Contractors           ,EH02,Miscellaneous Hired Services            ,8000,17/07/2014,REV,THE CRESCENT FENCING CO.      
831,Childrens & Education Services,Asset Management,PFI Unitary Charges,K03023,Third Party Payments          ,Private Contractors           ,EH02,Miscellaneous Hired Services            ,11704.5,13/06/2014,REV,NEWSCHOOLS (MERTON) LIMITED   
832,Childrens & Education Services,Asset Management,PFI Unitary Charges,K03023,Third Party Payments          ,Private Contractors           ,EH02,Miscellaneous Hired Services            ,918.45,04/07/2014,REV,NEWSCHOOLS (MERTON) LIMITED   
833,Childrens & Education Services,Asset Management,PFI Unitary Charges,K03023,Third Party Payments          ,Private Contractors           ,EH02,Miscellaneous Hired Services            ,42335.02,17/06/2014,REV,NEWSCHOOLS (MERTON) LIMITED   
834,Childrens & Education Services,Asset Management,PFI Unitary Charges,K03023,Third Party Payments          ,Private Contractors           ,EH02,Miscellaneous Hired Services            ,1085.12,24/10/2014,REV,NEWSCHOOLS (MERTON) LIMITED   
835,Childrens & Education Services,Asset Management,PFI Unitary Charges,K03023,Third Party Payments          ,Private Contractors           ,EH02,Miscellaneous Hired Services            ,6367.46,03/06/2014,REV,NEWSCHOOLS (MERTON) LIMITED   
836,Childrens & Education Services,Statutory & Regulatory Duties,Head of Special Educatn Needs,K04017,Supplies & Services           ,Services                      ,DF03,Consultants                             ,3000,24/07/2014,REV,OTFE CONSULTANCY LTD          
837,Childrens & Education Services,Statutory & Regulatory Duties,Head of Special Educatn Needs,K04017,Supplies & Services           ,Services                      ,DF03,Consultants                             ,2600,30/06/2014,REV,MERTON MENCAP                 
838,Childrens & Education Services,Statutory & Regulatory Duties,Head of Special Educatn Needs,K04017,Supplies & Services           ,Services                      ,DF03,Consultants                             ,2500,12/06/2014,REV,OTFE CONSULTANCY LTD          
839,Childrens & Education Services,Statutory & Regulatory Duties,Head of Special Educatn Needs,K04017,Supplies & Services           ,Services                      ,DF03,Consultants                             ,500,12/06/2014,REV,OTFE CONSULTANCY LTD          
840,Childrens & Education Services,Statutory & Regulatory Duties,Head of Special Educatn Needs,K04017,Supplies & Services           ,Services                      ,DF03,Consultants                             ,3400,30/06/2014,REV,MERTON MENCAP                 
841,Childrens & Education Services,Statutory & Regulatory Duties,Head of Special Educatn Needs,K04017,Supplies & Services           ,Services                      ,DF03,Consultants                             ,2000,12/06/2014,REV,OTFE CONSULTANCY LTD          
842,Childrens & Education Services,Statutory & Regulatory Duties,Head of Special Educatn Needs,K04017,Supplies & Services           ,Services                      ,DF03,Consultants                             ,500,12/06/2014,REV,OTFE CONSULTANCY LTD          
843,Childrens & Education Services,Education Psychology Service,Education Psychology.,K04018,Employees                     ,Direct Employee Expenses      ,AA17,Agency Staff & Casual Paymts            ,937.5,30/06/2014,REV,REDACTED
844,Childrens & Education Services,Education Psychology Service,Education Psychology.,K04018,Employees                     ,Direct Employee Expenses      ,AA17,Agency Staff & Casual Paymts            ,937.5,30/06/2014,REV,REDACTED
845,Childrens & Education Services,Support for SEN Pupils,Statementing-Transport,K04023,Transport Related Expenditure ,Public Transport              ,CD50,Home Sch/Coll Trans(Trav Exps)          ,1440,30/06/2014,REV,REDACTED
846,Childrens & Education Services,Support for SEN Pupils,Statementing-Transport,K04023,Transport Related Expenditure ,Public Transport              ,CD50,Home Sch/Coll Trans(Trav Exps)          ,729,11/06/2014,REV,ST MARY'S WRESTWOOD CHILDRENS 
847,Childrens & Education Services,Oth U5s Provn Not Prim or Spec,Provider Support,K05078,Supplies & Services           ,Comms and Computing           ,DG02,Software Licences                       ,1095.37,11/07/2014,REV,CACI LIMITED                  
848,Childrens & Education Services,Pupil Referral Units,Expanded Pupil Referral Unit,K05099,Third Party Payments          ,Private Contractors           ,EH01,Miscellaneous Agency Services           ,5003.77,26/06/2014,REV,SW LONDON ST GEORGES NHS TRUST
849,Childrens & Education Services,Oth U5s Provn Not Prim or Spec,GSSG Workforce Development,K05111,Supplies & Services           ,Services                      ,DF03,Consultants                             ,2000,30/06/2014,REV,REDACTED
850,Childrens & Education Services,GENERATED ACCOUNT,Children's centres,K05137,Supplies & Services           ,Services                      ,DF03,Consultants                             ,750,03/07/2014,REV,SKILLS FOR LOCAL AUTHORITIES  
851,Childrens & Education Services,GENERATED ACCOUNT,Children's centres,K05137,Supplies & Services           ,Services                      ,DF03,Consultants                             ,1250,03/07/2014,REV,SKILLS FOR LOCAL AUTHORITIES  
852,Childrens & Education Services,GENERATED ACCOUNT,Children's centres,K05137,Supplies & Services           ,Comms and Computing           ,DG50,Other IT Expenditure                    ,2995.5,13/01/2014,REV,MM-ICT LIMITED                
853,Childrens & Education Services,Nursery schools,GSSG Central Administration,K05400,Supplies & Services           ,Expenses                      ,DH02,Conferences                             ,600,11/07/2014,REV,CENTRE LITERACY IN PRIM. EDUC.
854,Childrens & Education Services,GENERATED ACCOUNT,Mitcham MAT (Premises),K05412,Premises Related Expenditure  ,Cleaning and Domestic Supplies,BH03,Cleaning Services                       ,1208.78,01/07/2014,REV,BIRKIN CLEANING SERVICES LTD  
855,Childrens & Education Services,Nursery schools,Lavender CC Non Childcare,K05415,Premises Related Expenditure  ,Cleaning and Domestic Supplies,BH03,Cleaning Services                       ,1212.14,01/07/2014,REV,BIRKIN CLEANING SERVICES LTD  
856,Childrens & Education Services,Nursery schools,Lavender CC Non Childcare,K05415,Supplies & Services           ,Equip Furniture/Materials     ,DA09,Equip-Purchases                         ,1490.95,10/07/2014,REV,ROMPA LTD                     
857,Childrens & Education Services,Nursery schools,E.Years-Intergenerational Cntr,K05416,Premises Related Expenditure  ,RepairsAlterations&MtceOfBldgs,BA01,DDM - General Building                  ,927.88,09/07/2014,REV,POWER HYGIENE & SAFETY PRODUCT
858,Childrens & Education Services,Nursery schools,E.Years-Intergenerational Cntr,K05416,Premises Related Expenditure  ,RepairsAlterations&MtceOfBldgs,BA05,DDM - Electrical                        ,1013.1,27/06/2014,REV,EUROPA NATIONWIDE TECH.SER.LTD
859,Childrens & Education Services,Nursery schools,E.Years-Intergenerational Cntr,K05416,Premises Related Expenditure  ,RepairsAlterations&MtceOfBldgs,BA06,Repairs & Maintenance General           ,1185,07/07/2014,REV,CATER-KWIK LTD                
860,Childrens & Education Services,Nursery schools,E.Years-Intergenerational Cntr,K05416,Premises Related Expenditure  ,Energy Costs                  ,BB02,Electricity                             ,830.35,07/07/2014,REV,SCOTTISHPOWER                 
861,Childrens & Education Services,Nursery schools,E.Years-Intergenerational Cntr,K05416,Premises Related Expenditure  ,Cleaning and Domestic Supplies,BH03,Cleaning Services                       ,811.96,01/07/2014,REV,BIRKIN CLEANING SERVICES LTD  
862,Childrens & Education Services,Nursery schools,EY-Support Separating Parents,K05417,Supplies & Services           ,Services                      ,DF30,Activities Programme                    ,825,09/06/2014,REV,THE JAYNE STEWART SCH OF DANCE
863,Childrens & Education Services,Nursery schools,EY- DCATC,K05420,Supplies & Services           ,Equip Furniture/Materials     ,DA09,Equip-Purchases                         ,620.1,09/06/2014,REV,GLS EDUCATIONAL SUPPLIES LTD  
864,Childrens & Education Services,Vocational - Adult Education,AE-Familiy Learning,K06041,Supplies & Services           ,Services                      ,DF30,Activities Programme                    ,500,30/06/2014,REV,HARRIS ACADEMY MERTON         
865,Childrens & Education Services,Vocational - Adult Education,AE-Neighbourhood Learning,K06043,Supplies & Services           ,Services                      ,DF30,Activities Programme                    ,4992,14/06/2014,REV,SOCIAL ENTERPRISE MERTON CIC  
866,Childrens & Education Services,Vocational - Adult Education,MAE-Bldgs Repairs & Maintenanc,K06048,Premises Related Expenditure  ,RepairsAlterations&MtceOfBldgs,BA05,DDM - Electrical                        ,519.64,27/06/2014,REV,EUROPA NATIONWIDE TECH.SER.LTD
867,Childrens & Education Services,Vocational - Adult Education,AE-Adult Education Main,K06049,Premises Related Expenditure  ,Energy Costs                  ,BB02,Electricity                             ,1418.88,02/07/2014,REV,SCOTTISHPOWER                 
868,Childrens & Education Services,Vocational - Adult Education,AE-Adult Education Main,K06049,Premises Related Expenditure  ,Energy Costs                  ,BB03,Gas (incl. Butane)                      ,526.52,02/07/2014,REV,GAZPROM MARKETING&TRADING LTD 
869,Childrens & Education Services,Vocational - Adult Education,AE-Adult Education Main,K06049,Premises Related Expenditure  ,Cleaning and Domestic Supplies,BH01,Cleaning Materials                      ,599.4,02/07/2014,REV,THAMESMEAD BUSINESS SER LTD   
870,Childrens & Education Services,Vocational - Adult Education,AE-Adult Education Main,K06049,Premises Related Expenditure  ,Cleaning and Domestic Supplies,BH03,Cleaning Services                       ,2747.9,30/06/2014,REV,JULIUS RUTHERFOORD & CO LTD   
871,Childrens & Education Services,Vocational - Adult Education,AE-Adult Education Main,K06049,Premises Related Expenditure  ,Cleaning and Domestic Supplies,BH03,Cleaning Services                       ,2747.9,30/07/2014,REV,JULIUS RUTHERFOORD & CO LTD   
872,Childrens & Education Services,Vocational - Adult Education,AE-Adult Education Main,K06049,Supplies & Services           ,Equip Furniture/Materials     ,DA01,Equipment - R & M                       ,867.1,30/06/2014,REV,REDACTED
873,Childrens & Education Services,Vocational - Adult Education,AE-Adult Education Main,K06049,Supplies & Services           ,Equip Furniture/Materials     ,DA01,Equipment - R & M                       ,1787.72,14/05/2014,REV,CHUBB ELECTRONIC SEC. SYSTEMS 
874,Childrens & Education Services,Vocational - Adult Education,AE-Adult Education Main,K06049,Supplies & Services           ,Prntng Stnry Gen Off Exp      ,DE22,Marketing                               ,1500,23/06/2014,REV,REDACTED
875,Childrens & Education Services,Vocational - Adult Education,AE-Adult Education Main,K06049,Supplies & Services           ,Services                      ,DF02,Misc Advertising/Publicity              ,1104,13/06/2014,REV,NEWSQUEST (LONDON)LTD         
876,Childrens & Education Services,Vocational - Adult Education,AE-Adult Education Main,K06049,Supplies & Services           ,Services                      ,DF02,Misc Advertising/Publicity              ,2852.5,27/06/2014,REV,IDEAS BY NET                  
877,Childrens & Education Services,Vocational - Adult Education,AE-Adult Education Main,K06049,Supplies & Services           ,Services                      ,DF02,Misc Advertising/Publicity              ,1716,09/06/2014,REV,STUDIO ELEVEN LTD             
878,Childrens & Education Services,Vocational - Adult Education,AE-Adult Education Main,K06049,Supplies & Services           ,Services                      ,DF02,Misc Advertising/Publicity              ,800,18/07/2014,REV,NEWSQUEST (LONDON)LTD         
879,Childrens & Education Services,Vocational - Adult Education,AE-Adult Education Main,K06049,Supplies & Services           ,Services                      ,DF09,Miscellaneous Fees                      ,504,11/07/2014,REV,LA PETITE FLEUR PRE-SCHOOL    
880,Childrens & Education Services,Vocational - Adult Education,AE-Adult Education Main,K06049,Supplies & Services           ,Services                      ,DF27,Examination Fees                        ,1310,30/06/2014,REV,UCLES                         
881,Childrens & Education Services,Vocational - Adult Education,AE-Adult Education Main,K06049,Supplies & Services           ,Services                      ,DF27,Examination Fees                        ,900,26/06/2014,REV,ASCENTIS                      
882,Childrens & Education Services,Vocational - Adult Education,AE-Adult Education Main,K06049,Supplies & Services           ,Services                      ,DF27,Examination Fees                        ,550,19/06/2014,REV,CITY & GUILDS                 
883,Childrens & Education Services,Vocational - Adult Education,AE-Adult Education Main,K06049,Supplies & Services           ,Services                      ,DF27,Examination Fees                        ,2428.5,19/06/2014,REV,UCLES                         
884,Childrens & Education Services,Vocational - Adult Education,AE-Adult Education Main,K06049,Supplies & Services           ,Services                      ,DF27,Examination Fees                        ,668,04/07/2014,REV,CACHE                         
885,Childrens & Education Services,Vocational - Adult Education,AE-Adult Education Main,K06049,Supplies & Services           ,Comms and Computing           ,DG02,Software Licences                       ,1195,03/07/2014,REV,PLUS BUSINESS SYSTEMS LIMITED 
886,Childrens & Education Services,Vocational - Adult Education,AE-Adult Education Main,K06049,Supplies & Services           ,Comms and Computing           ,DG02,Software Licences                       ,1350,03/07/2014,REV,PLUS BUSINESS SYSTEMS LIMITED 
887,Childrens & Education Services,Vocational - Adult Education,AE-Adult Education Main,K06049,Supplies & Services           ,Comms and Computing           ,DG02,Software Licences                       ,7295,03/07/2014,REV,PLUS BUSINESS SYSTEMS LIMITED 
888,Childrens & Education Services,Vocational - Adult Education,AE-Adult Education Main,K06049,Supplies & Services           ,Comms and Computing           ,DG02,Software Licences                       ,1350,03/07/2014,REV,PLUS BUSINESS SYSTEMS LIMITED 
889,Childrens & Education Services,Vocational - Adult Education,AE-Adult Education Main,K06049,Supplies & Services           ,Comms and Computing           ,DG07,Computer Software                       ,2286,16/06/2014,REV,PUGH COMPUTERS LTD            
890,Childrens & Education Services,Vocational - Adult Education,AE-Learner Support Fund-Access,K06050,Supplies & Services           ,Services                      ,DF09,Miscellaneous Fees                      ,695,01/04/2014,REV,DICKY BIRDS (PEPYS RD)        
891,Childrens & Education Services,Vocational - Adult Education,MAE- CATERING SERVICES 2011>,K06052,Supplies & Services           ,Catering                      ,DB01,Contract Catering                       ,520,18/07/2014,REV,INVESTEC ASSET FINANCE PLC    
892,Childrens & Education Services,Youth Centres (Residential),Youth Service,K06053,Premises Related Expenditure  ,Cleaning and Domestic Supplies,BH03,Cleaning Services                       ,506.69,01/07/2014,REV,BIRKIN CLEANING SERVICES LTD  
893,Childrens & Education Services,Youth Centres (Residential),Youth Service,K06053,Supplies & Services           ,Expenses                      ,DH12,Young Peoples Expenses                  ,795,21/07/2014,REV,MULTI CULTURAL WELLB'NG & HEAL
894,Childrens & Education Services,Youth Centres (Residential),Youth Service,K06053,Supplies & Services           ,Expenses                      ,DH12,Young Peoples Expenses                  ,570,27/06/2014,REV,YOUTH FUN DAYS                
895,Childrens & Education Services,Youth Centres (Residential),Youth Service,K06053,Supplies & Services           ,Expenses                      ,DH12,Young Peoples Expenses                  ,587.08,03/07/2014,REV,YOUTH FUN DAYS                
896,Childrens & Education Services,Youth Centres (Residential),Youth Service,K06053,Supplies & Services           ,Expenses                      ,DH12,Young Peoples Expenses                  ,800,10/07/2014,REV,REDACTED
897,Childrens & Education Services,Youth Centres (Residential),Youth Service,K06053,Supplies & Services           ,Expenses                      ,DH12,Young Peoples Expenses                  ,1950,22/07/2014,REV,PURPLE KETTLE                 
898,Childrens & Education Services,Youth Centres (Residential),Youth Service,K06053,Supplies & Services           ,Expenses                      ,DH12,Young Peoples Expenses                  ,2400,01/07/2014,REV,UPTOWN UK                     
899,Childrens & Education Services,Youth Centres (Residential),Youth Office Premises Cost,K06073,Premises Related Expenditure  ,RepairsAlterations&MtceOfBldgs,BA06,Repairs & Maintenance General           ,535.5,25/06/2014,REV,P J HARVEY & CO LTD           
900,Childrens & Education Services,Vocational - Adult Education,AE-Family Literacy,K06082,Supplies & Services           ,Services                      ,DF30,Activities Programme                    ,900,30/06/2014,REV,HARRIS ACADEMY MERTON         
901,Childrens & Education Services,Youth Centres (Residential),PAYP Moving Forward in Life,K06092,Premises Related Expenditure  ,Rents                         ,BC01,Miscellaneous Rent                      ,656.18,14/07/2014,REV,GOLDPLAZA (MITCHAM) LIMITED   
902,Childrens & Education Services,Youth Centres (Residential),PAYP Moving Forward in Life,K06092,Supplies & Services           ,Expenses                      ,DH50,Special Projects                        ,600,15/07/2014,REV,SNOZONE                       
903,Childrens & Education Services,Youth Centres (Residential),Youth Opps Fund (GF C G),K06093,Supplies & Services           ,Grants and Subscriptions      ,DJ01,Grants                                  ,880,01/07/2014,REV,SYMMETRICAL FUTURES           
904,Childrens & Education Services,Youth Centres (Residential),Youth Opps Fund (GF C G),K06093,Supplies & Services           ,Grants and Subscriptions      ,DJ01,Grants                                  ,1456,17/07/2014,REV,LEARN THROUGH SPORT           
905,Childrens & Education Services,Youth Centres (Residential),Youth Opps Fund (GF C G),K06093,Supplies & Services           ,Grants and Subscriptions      ,DJ01,Grants                                  ,2389.6,24/07/2014,REV,SOUTH LONDON REFUGEE ASSOC.   
906,Childrens & Education Services,Youth Centres (Residential),Youth Opps Fund (GF C G),K06093,Supplies & Services           ,Grants and Subscriptions      ,DJ01,Grants                                  ,1396,15/07/2014,REV,BMETVFM                       
907,Childrens & Education Services,Youth Centres (Residential),Youth Opps Fund (GF C G),K06093,Supplies & Services           ,Grants and Subscriptions      ,DJ01,Grants                                  ,1060,17/07/2014,REV,LEARN THROUGH SPORT           
908,Childrens & Education Services,Pupil Support,Careers Educ IAG Contracts,K06097,Supplies & Services           ,Grants and Subscriptions      ,DJ01,Grants                                  ,25000,11/07/2014,REV,GRENFELL HOUSING ASSOCIATION  
909,Childrens & Education Services,Pupil Support,Careers Educ IAG Contracts,K06097,Third Party Payments          ,Private Contractors           ,EH01,Miscellaneous Agency Services           ,8005.5,24/07/2014,REV,ROYAL BOR'GH KINGSTON U THAMES
910,Childrens & Education Services,Pupil Support,Young Person Substance Misuse,K06114,Third Party Payments          ,Private Contractors           ,EH01,Miscellaneous Agency Services           ,1628.2,10/07/2014,REV,PENNA PLC                     
911,Childrens & Education Services,Pupil Support,Young Person Substance Misuse,K06114,Third Party Payments          ,Private Contractors           ,EH01,Miscellaneous Agency Services           ,1189.2,10/07/2014,REV,PENNA PLC                     
912,Childrens & Education Services,Asset Management,S106 Bid,K08077,Premises Related Expenditure  ,RepairsAlterations&MtceOfBldgs,BA06,Repairs & Maintenance General           ,1500,26/06/2014,REV,R DURTNELL & SONS LTD         
913,Childrens & Education Services,Asset Management,S106 Bid,K08077,Premises Related Expenditure  ,RepairsAlterations&MtceOfBldgs,BA29,Build Maint Mgt Fees                    ,2700,30/06/2014,REV,REDACTED
914,Childrens & Education Services,Asset Management,S106 Bid,K08077,Premises Related Expenditure  ,RepairsAlterations&MtceOfBldgs,BA79,Security of Premises                    ,1160,01/07/2014,REV,SIGHT & SOUND                 
915,Childrens & Education Services,Asset Management,S106 Bid,K08077,Premises Related Expenditure  ,RepairsAlterations&MtceOfBldgs,BA79,Security of Premises                    ,1160,01/06/2014,REV,SIGHT & SOUND                 
916,Childrens & Education Services,Asset Management,S106 Bid,K08077,Premises Related Expenditure  ,Energy Costs                  ,BB02,Electricity                             ,1667.18,30/06/2014,REV,SOUTHERN ELECTRIC             
917,Childrens & Education Services,Asset Management,S106 Bid,K08077,Premises Related Expenditure  ,Rents                         ,BC03,Room/venue rental hire                  ,680.34,01/07/2014,REV,PORTAKABIN LIMITED            
918,Childrens & Education Services,Asset Management,S106 Bid,K08077,Supplies & Services           ,Services                      ,DF09,Miscellaneous Fees                      ,1750,29/05/2014,REV,MILLS & REEVE LLP             
919,Childrens & Education Services,Asset Management,Centre Commissioned Servs,K08078,Supplies & Services           ,Grants and Subscriptions      ,DJ01,Grants                                  ,12202.5,21/07/2014,REV,JIGSAW4U                      
920,Childrens & Education Services,Asset Management,Centre Commissioned Servs,K08078,Supplies & Services           ,Grants and Subscriptions      ,DJ01,Grants                                  ,7312.5,16/07/2014,REV,COMMONSIDE COMMUNITY DEV TRUST
921,Childrens & Education Services,Asset Management,Centre Commissioned Servs,K08078,Supplies & Services           ,Grants and Subscriptions      ,DJ01,Grants                                  ,9875,08/07/2014,REV,MERTON VOLUNTARY SERV COUNCIL 
922,Childrens & Education Services,Asset Management,Centre Commissioned Servs,K08078,Supplies & Services           ,Grants and Subscriptions      ,DJ01,Grants                                  ,6101,21/07/2014,REV,JIGSAW4U                      
923,Childrens & Education Services,Asset Management,Centre Commissioned Servs,K08078,Supplies & Services           ,Grants and Subscriptions      ,DJ01,Grants                                  ,2750,14/07/2014,REV,SOUTH LONDON REFUGEE ASSOC.   
924,Childrens & Education Services,Asset Management,Centre Commissioned Servs,K08078,Supplies & Services           ,Grants and Subscriptions      ,DJ01,Grants                                  ,24056,15/07/2014,REV,HOME-START MERTON             
925,Childrens & Education Services,Asset Management,Centre Commissioned Servs,K08078,Supplies & Services           ,Grants and Subscriptions      ,DJ01,Grants                                  ,8000,14/07/2014,REV,SOUTH LONDON REFUGEE ASSOC.   
926,Childrens & Education Services,Asset Management,Centre Commissioned Servs,K08078,Supplies & Services           ,Grants and Subscriptions      ,DJ01,Grants                                  ,6093.75,16/07/2014,REV,PRE SCHOOL LEARNING ALLIANCE  
927,Childrens & Education Services,Asset Management,Centre Commissioned Servs,K08078,Supplies & Services           ,Grants and Subscriptions      ,DJ01,Grants                                  ,8762.5,15/07/2014,REV,BARNARDOS                     
928,Childrens & Education Services,Asset Management,Centre Commissioned Servs,K08078,Supplies & Services           ,Grants and Subscriptions      ,DJ01,Grants                                  ,9737.5,11/07/2014,REV,BARNARDOS                     
929,Childrens & Education Services,Asset Management,Centre Commissioned Servs,K08078,Supplies & Services           ,Grants and Subscriptions      ,DJ01,Grants                                  ,7500,01/07/2014,REV,ENDEAVOUR CLUB                
930,Childrens & Education Services,Asset Management,Centre Commissioned Servs,K08078,Supplies & Services           ,Grants and Subscriptions      ,DJ01,Grants                                  ,5760,14/07/2014,REV,ASSOC. FOR THE POLISH FAMILY  
931,Childrens & Education Services,Asset Management,Centre Commissioned Servs,K08078,Supplies & Services           ,Grants and Subscriptions      ,DJ01,Grants                                  ,6250,02/07/2014,REV,SOUTH LONDON TAMIL WELFARE GRP
932,Childrens & Education Services,Asset Management,Centre Commissioned Servs,K08078,Supplies & Services           ,Grants and Subscriptions      ,DJ01,Grants                                  ,12320,15/05/2014,REV,MERTON VOLUNTARY SERV COUNCIL 
